Workbook

Sheet Forside
G4: Prosjektnavn:
G6: Prosjektnr:
C8: Weber Produktkalkulasjoner: | E8: Leca Produktkalkulasjoner: | G8: Dato:
C10: VentiGuard | E10: Leca Venti Ettløps Pipe
C12: Fiberpuss | E12: Leca Venti Toløps Pipe
C14: Diverse Puss | E14: Leca Maxi Pipe
E16: Lecablokker

Sheet Diverse Puss (hidden)
E5: Forside | O5: *minimums bestillingskvanta
D7: Diverse puss | E7: Inndata
O8: Vare | P8: NOBB | Q8: sekkestørelse kg | R8: Enhet | S8: Forbruk i kg pr m2 | T8: Sjikttykkelse | U8: kalk. Mengde i kg | V8: antall sekker
O9: KC 50/50 | P9: 55244223 | Q9: 25 | R9: á 25 kg sekk | S9: 18 | T9: 10mm | U9: =ROUNDUP(E10*S9,0) -> 0 | V9: =ROUNDUP(U9/Q9,0) -> 0
D10: Netto Veggareal | E10: 0 | F10: m² | G10: (inntasting) | O10: KC 35/65 | P10: 55244238 | Q10: 25 | R10: á 25 kg sekk | S10: 18 | T10: 10mm | U10: =ROUNDUP(E10*S10,0) -> 0 | V10: 0
D11: Type puss | E11: KC 50/50 | G11: (flervalg) | O11: 132 Grovpuss B | P11: 56639516 | Q11: 20 | R11: á 20 kg sekk | S11: 20 | T11: 10mm | U11: =ROUNDUP(E10*S11,0) -> 0 | V11: 0
D12: Sluttpuss/maling | E12: Sluttpuss - Silco render | G12: (flervalg) | O12: 134 Grovpuss C | P12: 56639520 | Q12: 20 | R12: á 20 kg sekk | S12: 20 | T12: 10mm | U12: =ROUNDUP(E10*S12,0) -> 0 | V12: 0 | Z12: 15
O13: 136 Tynnpuss | P13: 56518696 | Q13: 20 | R13: á 20 kg sekk | S13: 8.34 | T13: 5mm | U13: =ROUNDUP(E10*S13,0) -> 0 | V13: 0 | Z13: 30
O14: 138 Tynnpuss | P14: 56518700 | Q14: 20 | R14: á 20 kg sekk | S14: 6 | T14: 3mm | U14: =ROUNDUP(E10*S14,0) -> 0 | V14: 0 | Z14: 45
D15: Materialliste | O15: Weber Sparkel | P15: 46307535 | Q15: 12 | R15: á 12 L spann | S15: 5 | T15: 5mm | U15: =ROUNDUP(E10*S15,0) -> 0 | V15: 0 | Z15: 60
O16: Gypsum Naturgips | P16: 23596406 | Q16: 25 | R16: á 25 kg sekk | S16: 9 | T16: 10mm | U16: =ROUNDUP(E10*S16,0) -> 0 | V16: 0
D17: Vare | E17: NOBB | F17: Kalk. Mengde | H17: Antall | I17: Enhet | J17: kg pr. m² | K17: i tykkelse
D18: =E11 -> KC 50/50 | E18: =VLOOKUP(E11,O9:P18,2,FALSE) -> 55244223 | G18: =VLOOKUP(E11,O9:U18,7,FALSE) -> 0 | H18: =VLOOKUP(E11,O9:V18,8,FALSE) -> 0 | I18: =VLOOKUP(E11,O9:R18,4,FALSE) -> á 25 kg sekk | J18: =VLOOKUP(E11,O9:S18,5,FALSE) -> 18 | K18: =VLOOKUP(E11,O9:T18,6,FALSE) -> 10mm
D19: =VLOOKUP(E12,O25:Q28,3,FALSE) -> Silco render std farge 20 kg | E19: =VLOOKUP(E12,O25:P28,2,FALSE) -> 30171516 | G19: =VLOOKUP(E12,O25:U28,7,FALSE) -> 0 | H19: =VLOOKUP(E12,O25:V28,8,FALSE) -> 0 | I19: =VLOOKUP(E12,O25:S28,5,FALSE) -> á 20 kg spann | J19: =VLOOKUP(E12,O25:T28,6,FALSE) -> 2.9 | K19: =VLOOKUP(E12,O25:W28,9,FALSE) -> 1,5mm
D20: =IF(VLOOKUP(E12,O25:Y28,11,FALSE)="","",VLOOKUP(E12,O25:Y28,11,FALSE)) -> Silco paint std farge 15 kg | E20: =IF(VLOOKUP(E12,O25:X28,10,FALSE)="","",VLOOKUP(E12,O25:X28,10,FALSE)) -> 30171474 | G20: =VLOOKUP(E12,O25:AC28,15,FALSE) -> 0 | H20: =VLOOKUP(E12,O25:AD28,16,FALSE) -> 0 | I20: =VLOOKUP(E12,O25:AA28,13,FALSE) -> á 15 kg spann | J20: =VLOOKUP(E12,O25:AC28,14,FALSE) -> 0.3 | K20: =VLOOKUP(E12,O25:AE28,17,FALSE) -> 1 strøk
P24: NOBBnr | Q24: Produkt 1 | R24: Enhet | S24: Forpakning | T24: Forbruk | U24: Kalk. Antall | V24: Antall enhet | W24: tykkelse | X24: NOBBnr | Y24: Produkt 2 | Z24: Enhet | AA24: Forpakning | AB24: Forbruk | AC24: Kalk. Antall | AD24: Antall enhet | AE24: tykkelse
O25: Maling - Silikatmaling | P25: 23852551 | Q25: Weber.ton 303 Silikatmaling - 15 kg | R25: spann | S25: á 15 kg spann | T25: 0.6 | U25: =T25*E10 -> 0 | V25: =ROUNDUP(U25/15,0) -> 0 | W25: 2 strøk | X25: 23852502 | Y25: Weber.ton 301 Silikatgrunning - 10 kg | Z25: kanne | AA25: á 10 kg kanne | AB25: 0.1 | AC25: =AB25*E10 -> 0 | AD25: =ROUNDUP(AC25/10,0) -> 0 | AE25: 1 strøk
O26: Maling - Silco paint | P26: 30171474 | Q26: Silco paint std farge 15 kg | R26: spann | S26: á 15 kg spann | T26: 0.6 | U26: =T26*E10 -> 0 | V26: =ROUNDUP(U26/15,0) -> 0 | W26: 2 strøk
O27: Sluttpuss - Silicate render | P27: 28167625 | Q27: Silicate render std farge 20 kg | R27: spann | S27: á 20 kg spann | T27: 2.9 | U27: =T27*E10 -> 0 | V27: =ROUNDUP(U27/20,0) -> 0 | W27: 1,5mm | X27: 23852551 | Y27: Weber.ton 303 Silikatmaling - 15 kg | Z27: spann | AA27: á 15 kg spann | AB27: 0.3 | AC27: =AB27*E10 -> 0 | AD27: =ROUNDUP(AC27/15,0) -> 0 | AE27: 1 strøk
O28: Sluttpuss - Silco render | P28: 30171516 | Q28: Silco render std farge 20 kg | R28: spann | S28: á 20 kg spann | T28: 2.9 | U28: =T28*E10 -> 0 | V28: =ROUNDUP(U28/20,0) -> 0 | W28: 1,5mm | X28: 30171474 | Y28: Silco paint std farge 15 kg | Z28: spann | AA28: á 15 kg spann | AB28: 0.3 | AC28: =AB28*E10 -> 0 | AD28: =ROUNDUP(AC28/15,0) -> 0 | AE28: 1 strøk

Sheet Fiberpuss - Intern (hidden)
A2: Veggareal uten vinduer/dører | C2: W | D2: H | E2: A
B3: A1 | E3: =C3*D3 -> 0 | L3: Omkrets på huset | M3: W1 | S3: Factor | T3: 0
B4: A2 | E4: =C4*D4 -> 0 | M4: W2
B5: A3 | E5: 0 | M5: W3 | R5: W1 | S5: 0 | T5: =S5*$T$3 -> 0
B6: A4 | E6: 0 | M6: W4 | R6: W2 | T6: =S6*$T$3 -> 0
B7: A5 | E7: 0 | M7: W5 | R7: W3 | T7: 0
B8: A6 | E8: 0 | M8: W6 | R8: W4 | T8: 0
B9: A7 | E9: 0 | M9: W7 | R9: W5 | T9: 0
B10: A8 | E10: 0 | M10: W8 | R10: W6 | T10: 0
B11: A9 | E11: 0 | N11: =SUM(N3:N10) -> 0 | R11: W7 | T11: 0
B12: A10 | E12: 0 | R12: W8 | T12: 0
B13: A11 | E13: 0 | L13: Antall meter hjørne | M13: Hjø 1 | R13: W9 | T13: 0
B14: A12 | E14: 0 | M14: Hjø 2 | R14: W10 | T14: 0
B15: A13 | E15: 0 | M15: Hjø 3 | R15: W11 | T15: 0
B16: A14 | E16: 0 | F16: Areal (vind + dør) | M16: Hjø 4 | R16: W12 | T16: 0
B17: A15 | E17: 0 | M17: Hjø 5 | R17: W13 | T17: 0
E18: =SUM(E3:E17) -> 0 | F18: =I41 -> 0 | G18: =E18-F18 -> 0 | M18: Hjø 6 | R18: W14 | T18: 0
M19: Hjø 7 | T19: =SUM(T5:T18) -> 0
M20: Hjø 8
M21: Hjø 9
A22: Antall meter Vinduer/dører (B + 2xH) | C22: Antall | D22: W | E22: H | F22: Total W | G22: Total H | I22: A | M22: Hjø 10
B23: V1 | F23: =D23*C23 -> 0 | G23: =C23*E23*2 -> 0 | I23: =D23*E23*C23 -> 0 | M23: Hjø 11
B24: V2 | F24: =D24*C24 -> 0 | G24: =C24*E24*2 -> 0 | I24: =D24*E24*C24 -> 0 | M24: Hjø 12
B25: V3 | F25: 0 | G25: 0 | I25: 0 | M25: Hjø 13
B26: V4 | F26: 0 | G26: 0 | I26: 0 | M26: Hjø 14
B27: V5 | F27: 0 | G27: 0 | I27: 0 | M27: Hjø 15
B28: V6 | F28: 0 | G28: 0 | I28: 0 | M28: Hjø 16
B29: V7 | F29: 0 | G29: 0 | I29: 0 | M29: Hjø 17
B30: V8 | F30: 0 | G30: 0 | I30: 0 | M30: Hjø 18
B31: V9 | F31: 0 | G31: 0 | I31: 0 | M31: Hjø 19
B32: V10 | F32: 0 | G32: 0 | I32: 0 | M32: Hjø 20
B33: V11 | F33: 0 | G33: 0 | I33: 0 | N33: =SUM(N13:N32) -> 0
B34: V12 | F34: 0 | G34: 0 | I34: 0
B35: V13 | F35: 0 | G35: 0 | I35: 0
B36: V14 | F36: 0 | G36: 0 | I36: 0
B37: V15 | F37: 0 | G37: 0 | I37: 0
B38: V16 | F38: 0 | G38: 0 | I38: 0
B39: V17 | F39: 0 | G39: 0 | I39: 0
B40: V18 | F40: 0 | G40: 0 | I40: 0
F41: =SUM(F23:F40) -> 0 | G41: =SUM(G23:G40) -> 0 | I41: =SUM(I23:I40) -> 0
F43: B + 2xH
F44: =SUM(F41:G41) -> 0

Sheet Fiberpuss (hidden)
F4: Forside
C6: Weber Fiberpussystem
D9: Netto veggareal | H9: (inntasting) | I9: 0 | J9: m2
D10: Antall meter vinduer/dører (B + 2xH) | H10: (inntasting) | I10: 0 | J10: m
D11: Omkrets på huset | H11: (inntasting) | I11: 0 | J11: m
D12: Antall meter hjørne | H12: (inntasting) | I12: 0 | J12: m | M12: 2 | N12: 3 | O12: 4 | P12: 5 | Q12: 6 | R12: 7 | S12: 8 | T12: 9 | U12: 10 | W12: 12 | X12: 13 | Y12: 14 | Z12: 15 | AA12: 16 | AB12: 17 | AC12: 18
D13: Netto veggareal sokkelpuss | H13: (inntasting) | I13: 0 | J13: m²
M14: NOBBnr | N14: Produkt 1 | O14: Enhet | P14: Forpakning | Q14: Forbruk | R14: Kalk. Antall | S14: Antall enhet | T14: Pris 2017 | U14: Pris | W14: NOBBnr | X14: Produkt 2 | Y14: Enhet | Z14: Forpakning | AA14: Forbruk | AB14: Kalk. Antall | AC14: Antall enhet
L15: Maling - Silikatmaling | M15: 23852551 | N15: weber.ton 303 Silikatmaling - 15 kg | O15: spann | P15: à 15 kg | Q15: 0.6 | R15: =Q15*$I$9 -> 0 | S15: =ROUNDUP(R15/15,0) -> 0 | T15: 1393 | U15: =T15*S15 -> 0 | W15: 23852502 | X15: weber.ton 301 Silikatgrunning - 10 kg | Y15: kanne | Z15: à 10 kg | AA15: 0.1 | AB15: =AA15*$I$9 -> 0 | AC15: =ROUNDUP(AB15/10,0) -> 0
D16: Velg sluttbehandling | F16: (flervalg) | G16: Sluttpuss - Silco render | L16: Maling - Silco paint | M16: 30171474 | N16: Silco paint std farge 15 kg | O16: spann | P16: à 15 kg | Q16: 0.6 | R16: =Q16*$I$9 -> 0 | S16: =ROUNDUP(R16/15,0) -> 0 | T16: 1435 | U16: =T16*S16 -> 0
L17: Sluttpuss - Silicate render | M17: 28167625 | N17: Silicate render std farge 20 kg | O17: spann | P17: à 20 kg | Q17: 2.9 | R17: =Q17*$I$9 -> 0 | S17: =ROUNDUP(R17/20,0) -> 0 | T17: 959 | U17: =T17*S17 -> 0 | W17: 23852551 | X17: weber.ton 303 Silikatmaling - 15 kg | Y17: spann | Z17: à 15 kg | AA17: 0.3 | AB17: =AA17*$I$9 -> 0 | AC17: =ROUNDUP(AB17/15,0) -> 0
E18: Materialliste Fiberpuss | L18: Sluttpuss - Silco render | M18: 30171516 | N18: Silco render std farge 20 kg | O18: spann | P18: à 20 kg | Q18: 2.9 | R18: =Q18*$I$9 -> 0 | S18: =ROUNDUP(R18/20,0) -> 0 | T18: 1006 | U18: =T18*S18 -> 0 | W18: 30171474 | X18: Silco paint std farge 15 kg | Y18: spann | Z18: à 15 kg | AA18: 0.3 | AB18: =AA18*$I$9 -> 0 | AC18: =ROUNDUP(AB18/15,0) -> 0
C22: Sist oppdatert 04.08.2017

Sheet Materialliste Fiberpuss (hidden)
F5: Fiberpuss | I5: Forside
C7: Weber Fiberpussystem - materialliste
C9: Nobb-nr | D9: Vare-nr | E9: Produkt | F9: Kalk. antall | H9: Ant. Enhet | J9: Enhet
C10: Fasadesystem: Weber Fiberpussystem
C11: 48390436 | D11: 5200668459 | E11: weber.base 261 Fiberpuss - 25 kg | F11: =Fiberpuss!I9*14 -> 0 | H11: =ROUNDUP(F11/25,0) -> 0 | I11: à 25 kg | J11: sekk
C12: 23826282 | D12: 5200629714 | E12: weber.therm 397 Armeringsnett | F12: =(Fiberpuss!I9+Fiberpuss!I13)*1.15 -> 0 | H12: =ROUNDUP((F12/50),0) -> 0 | I12: à 50 m² | J12: rull
C13: 55367374 | D13: 5200629077 | E13: Weber 400 N Startlist rett vegg | F13: =Fiberpuss!I11 -> 0 | H13: =ROUNDUP((F13/2.5),0) -> 0 | I13: à 2,5 m | J13: stk
C14: 57187253 | D14: 5200629034 | E14: weber.therm 391 Hjørnelist | F14: =Fiberpuss!I10+Fiberpuss!I12 -> 0 | H14: =ROUNDUP((F14/2.5),0) -> 0 | I14: à 2,5 m | J14: stk
C15: =VLOOKUP(Fiberpuss!G16,Fiberpuss!L15:M18,2,FALSE) -> 30171516 | E15: =VLOOKUP(Fiberpuss!G16,Fiberpuss!L15:N18,3,FALSE) -> Silco render std farge 20 kg | F15: =VLOOKUP(Fiberpuss!G16,Fiberpuss!L15:R18,7,FALSE) -> 0 | H15: =VLOOKUP(Fiberpuss!G16,Fiberpuss!L15:S18,8,FALSE) -> 0 | I15: =VLOOKUP(Fiberpuss!G16,Fiberpuss!L15:P18,5,FALSE) -> à 20 kg | J15: =VLOOKUP(Fiberpuss!G16,Fiberpuss!L15:O18,4,FALSE) -> spann
C16: =IF(VLOOKUP(Fiberpuss!G16,Fiberpuss!L15:W18,12,FALSE)="","",VLOOKUP(Fiberpuss!G16,Fiberpuss!L15:W18,12,FALSE)) -> 30171474 | E16: =IF(VLOOKUP(Fiberpuss!G16,Fiberpuss!L15:X18,13,FALSE)="","",VLOOKUP(Fiberpuss!G16,Fiberpuss!L15:X18,13,FALSE)) -> Silco paint std farge 15 kg | F16: =VLOOKUP(Fiberpuss!G16,Fiberpuss!L15:AB18,17,FALSE) -> 0 | H16: =VLOOKUP(Fiberpuss!G16,Fiberpuss!L15:AC18,18,FALSE) -> 0 | I16: =VLOOKUP(Fiberpuss!G16,Fiberpuss!L15:Z18,15,FALSE) -> à 15 kg | J16: =VLOOKUP(Fiberpuss!G16,Fiberpuss!L15:Y18,14,FALSE) -> spann
C17: 57186341 | E17: weber.therm 260 Sokkelpuss - 25 kg | F17: =Fiberpuss!I13*14 -> 0 | H17: =ROUNDUP(F17/25,0) -> 0 | I17: à 25 kg | J17: sekk

Sheet ISO 30 (hidden)
D5: ISOBLOKK 30 | Q5: Vegg 1 | S5: Vegg 2 | U5: Vegg 3
D6: INNDATA
D7: Veggtype | F7: (flervalg) | G7: Grunnmur | K7: 5200626735 | Q7: =IF(G11="Ja",ROUNDUP(M34*2,0),0) -> 0 | R7: pc | S7: =IF(G35="Ja",ROUNDUP(M47*2,0),0) -> 0 | T7: pc | U7: =IF(G58="Ja",ROUNDUP(M60*2,0),0) -> 0 | V7: pc | Y7: Lavblokk - V1 | Z7: Lavblokk - V2 | AA7: Lavblokk - V3 | AC7: Hjørnelist v1 | AD7: Hjørnelist v2 | AE7: Hjørnelist v3
D8: Vegglengde | F8: (inntasting) | G8: 0 | H8: m | K8: 5200815469 | Q8: =ROUNDUP(IF(G7="Yttervegg",(M41*10)-Q9-(Q10/2)-(Q11/2)-(Q12*3.6),(M41*9.6)-Q9-(Q10/2)-(Q11/2)-(Q12*3.6)),0) -> 0 | R8: pc | S8: =ROUNDUP(IF(G31="Yttervegg",(M54*10)-S9-(S10/2)-(S11/2)-(S12*3.6),(M54*9.6)-S9-(S10/2)-(S11/2)-(S12*3.6)),0) -> 0 | T8: pc | U8: =ROUNDUP(IF(G54="Yttervegg",(M67*10)-U9-(U10/2)-(U11/2)-(U12*3.6),(M67*9.6)-U9-(U10/2)-(U11/2)-(U12*3.6)),0) -> 0 | V8: pc | Y8: =VLOOKUP(G9,AC29:AE91,3,FALSE) -> Nei | Z8: =VLOOKUP(G33,AC29:AE91,3,FALSE) -> Nei | AA8: =VLOOKUP(G56,AC29:AE91,3,FALSE) -> Nei | AC8: =(E18+(F18*2))*G18 -> 0 | AD8: =(E41+(F41*2))*G41 -> 0 | AE8: =(E64+(F64*2))*G64 -> 0
D9: Vegghøyde | F9: (flervalg) | G9: 0 | H9: m | K9: 5200815470 | Q9: =ROUNDUP(M36*M33,0)-(IF(G12="Ja",M36,0)) -> 0 | R9: pc | S9: =ROUNDUP(M49*M46,0)-(IF(G36="Ja",M49,0)) -> 0 | T9: pc | U9: =ROUNDUP(M62*M59,0)-(IF(G59="Ja",M62,0)) -> 0 | V9: pc | AC9: 0 | AD9: 0 | AE9: 0
D10: Antall hjørner | F10: (inntasting) | G10: 0 | H10: stk | K10: 5200815471 | N10: Forside | P10: Lecablokker | Q10: =IF(Y8="Ja",M31*2,0) -> 0 | R10: pc | S10: =IF(Z8="Ja",M44*2,0) -> 0 | T10: pc | U10: =IF(AA8="Ja",M57*2,0) -> 0 | V10: pc | Y10: Veggtype | Z10: U-blokk | AA10: Såleblokk | AC10: 0 | AD10: 0 | AE10: 0
D11: Såleblokk | F11: (flervalg) | G11: Ja | K11: 5200819317 | Q11: =IF(G12="Ja",ROUNDUP(M35*4,0),0)+ROUNDUP(M38*4,0) -> 0 | R11: pc | S11: =IF(G36="Ja",ROUNDUP(M48*4,0),0)+ROUNDUP(M51*4,0) -> 0 | T11: pc | U11: =IF(G59="Ja",ROUNDUP(M61*4,0),0)+ROUNDUP(M64*4,0) -> 0 | V11: pc | Y11: Grunnmur | Z11: Ja | AA11: Ja | AC11: 0 | AD11: 0 | AE11: 0
D12: U-blokk | F12: (flervalg) | G12: Ja | K12: 5200674991 | Q12: =M37 -> 0 | R12: pc | S12: =M50 -> 0 | T12: pc | U12: =M63 -> 0 | V12: pc | Y12: Yttervegg | Z12: Nei | AA12: Nei | AC12: 0 | AD12: 0 | AE12: 0
D13: Puss (slemming) under bakken | F13: (inntasting) | G13: 0 | H13: m2 | K13: 5200626806 | Q13: =IF(G7="Grunnmur",ROUNDUP(M41*5.2,0),0) -> 0 | R13: m | S13: =IF(G31="Grunnmur",ROUNDUP(M54*5.2,0),0) -> 0 | T13: m | U13: =IF(G54="Grunnmur",ROUNDUP(M67*5.2,0),0) -> 0 | V13: m | AC13: 0 | AD13: 0 | AE13: 0
D14: Antall skift: | G14: =M33 -> 0 | H14: skift | K14: 5200626782 | L14: Materialliste: | Q14: =IF(G7="Grunnmur",ROUNDUP(M41*2.8,0),0) -> 0 | R14: m | S14: =IF(G31="Grunnmur",ROUNDUP(M54*2.8,0),0) -> 0 | T14: m | U14: =IF(G54="Grunnmur",ROUNDUP(M67*2.8,0),0) -> 0 | V14: m | Y14: Fugearmering | Z14: Pakker | AC14: 0 | AD14: 0 | AE14: 0
D15: Netto veggareal: | G15: =M41 -> 0 | H15: m2 | K15: 5200642507 | L15: Produkt | M15: Nobb | N15: Antall | P15: enhet | Q15: =IF(G7="Yttervegg",ROUNDUP(M41*5.3,0),0) -> 0 | R15: m | S15: =IF(G31="Yttervegg",ROUNDUP(M54*5.3,0),0) -> 0 | T15: m | U15: =IF(G54="Yttervegg",ROUNDUP(M67*5.3,0),0) -> 0 | V15: m | Y15: =SUM(Q15,S15,U15) -> 0 | Z15: =ROUNDUP(Y15/400,1) -> 0 | AC15: 0 | AD15: 0 | AE15: 0
K16: 5200633054 | L16: Leca Såleblokk 33 cm | M16: 10523777 | N16: =SUM(Q7,S7,U7) -> 0 | P16: stk | AC16: 0 | AD16: 0 | AE16: 0
E17: Bredde | F17: Høyde | G17: Antall | K17: 5200626795 | L17: Leca Isoblokk 30 cm | M17: 51972953 | N17: 0 | P17: stk | Q17: =ROUNDUP((M34*1.1),0) -> 0 | R17: m | S17: =ROUNDUP((M47*1.1),0) -> 0 | T17: m | U17: =ROUNDUP((M60*1.1),0) -> 0 | V17: m | Y17: Laftestrimmel | Z17: Sikksakk | AA17: U-blokkarm | AC17: 0 | AD17: 0 | AE17: 0
D18: V1 | G18: 0 | H18: =IF(AND(ISNUMBER(E18),E18>0,F18>0,G18>0),IF(E18<=1.5,$Y$84,IF(AND(E18>1.5,E18<=2.5),$Y$85,"Krever tiltak (mengdeberegnes ikke)")),"") ->  | K18: 5200631518 | L18: Leca Isoblokk 30 cm Multicut | M18: 51972964 | N18: 0 | P18: stk | Q18: =IF(G7="Yttervegg",ROUNDUP(M41*11.3,0),ROUNDUP(M41*23,0)) -> 0 | R18: kg | S18: =IF(G31="Yttervegg",ROUNDUP(M54*11.3,0),ROUNDUP(M54*23,0)) -> 0 | T18: kg | U18: =IF(G54="Yttervegg",ROUNDUP(M67*11.3,0),ROUNDUP(M67*23,0)) -> 0 | V18: kg | Y18: =SUM(Q13,S13,U13) -> 0 | Z18: =SUM(Q14,S14,U14) -> 0 | AA18: =SUM(Q17,S17,U17) -> 0 | AC18: 0 | AD18: 0 | AE18: 0
D19: V2 | G19: 0 | K19: 5200630295 | L19: Leca Isoblokk 30 cm Lavblokk 9 cm | M19: 51972972 | N19: 0 | P19: stk | Q19: =ROUNDUP(((M34*15)+((M35+M38)*22)),0) -> 0 | R19: kg | S19: =ROUNDUP(((M47*15)+((M48+M51)*22)),0) -> 0 | T19: kg | U19: =ROUNDUP(((M60*15)+((M61+M64)*22)),0) -> 0 | V19: kg | AC19: 0 | AD19: 0 | AE19: 0
D20: V3 | G20: 0 | L20: Leca Isoblokk U-blokk 30 cm | M20: 60040381 | N20: 0 | P20: stk | Y20: M5 | Z20: B20 | AC20: =SUM(AC8:AC19) -> 0 | AD20: =SUM(AD8:AD19) -> 0 | AE20: =SUM(AE8:AE19) -> 0
D21: V4 | G21: 0 | L21: Leca Isobjelke komplett, BHL = 30x20x180 cm | M21: 60047858 | N21: 0 | P21: stk | Y21: =SUM(Q18,S18,U18) -> 0 | Z21: =SUM(Q19,S19,U19) -> 0
D22: V5 | G22: 0 | L22: Laftestrimmel 90 mm for Leca Isoblokk | M22: 23387491 | N22: =ROUNDUP(Y18/18,0) -> 0 | P22: rull | AC22: Fiberpuss | AD22: Arm.nett | AE22: Hjørnelist
D23: V6 | G23: 0 | L23: Leca Sikksakkarmering 22,5 cm | M23: 41691792 | N23: =ROUNDUP(Z18/30.5,0) -> 0 | P23: pakke | Y23: Vegg 1 | Z23: Vegg 2 | AA23: Vegg 3 | AC23: =ROUNDUP(((M41+M54+M67)-G13)*14,0) -> 0 | AD23: =ROUNDUP(((M41+M54+M67)-G13)*1.15,0) -> 0 | AE23: =ROUNDUP(AC20+AD20+AE20+(G10*G9)+(G34*G33)+(G57*G56),0) -> 0
D24: V7 | G24: 0 | L24: Leca Fugearmering 18 mm storpakke | M24: 47095300 | N24: =INT(Z15) -> 0 | P24: pakke | Y24: =E18*F18*G18 -> 0 | Z24: =E41*F41*G41 -> 0 | AA24: =E64*F64*G64 -> 0
D25: V8 | G25: 0 | L25: Leca Fugearmering 18 mm småpakke | M25: 46343273 | N25: =(Z15-INT(Z15))*10 -> 0 | P25: pakke | Y25: 0 | Z25: 0 | AA25: 0 | AC25: Startlist | AD25: Silikon.m | AE25: Silikon.p
D26: V9 | G26: 0 | L26: Leca U-blokkarmering småpakke | M26: 10583961 | N26: =ROUNDUP(AA18/20,0) -> 0 | P26: pakke | Y26: 0 | Z26: 0 | AA26: 0 | AC26: =G8 -> 0 | AD26: =ROUNDUP(((M41+M54+M67)-G13)*0.3,0) -> 0 | AE26: =ROUNDUP(((M41+M54+M67)-G13)*2.9,0) -> 0
D27: V10 | G27: 0 | L27: Weber Murmørtel M5 plastsekk | M27: 55244204 | N27: =ROUNDUP(Y21/25,0) -> 0 | P27: sekk | Y27: 0 | Z27: 0 | AA27: 0
D28: V11 | G28: 0 | L28: Weber B20 plastsekk | M28: 55244174 | N28: =ROUNDUP(Z21/25,0) -> 0 | P28: sekk | Y28: 0 | Z28: 0 | AA28: 0 | AC28: Høyde | AD28: Antall skift | AE28: Lavblokk
D29: V12 | G29: 0 | L29: Weber Grå Slemming 20 kg | M29: 50410636 | N29: =ROUNDUP((G13*6)/20,0) -> 0 | P29: sekk | Y29: 0 | Z29: 0 | AA29: 0 | AC29: 0 | AD29: 0 | AE29: Nei
L30: Vegg 1 | Y30: 0 | Z30: 0 | AA30: 0 | AC30: 0.63 | AD30: 3 | AE30: Nei
C31: Vegg 2 | D31: Veggtype | G31: Yttervegg | L31: Vegglengde | M31: =G8 -> 0 | N31: m | Y31: 0 | Z31: 0 | AA31: 0 | AC31: 0.73 | AD31: 3.5 | AE31: Ja
D32: Vegglengde | G32: 0 | H32: m | L32: Vegghøyde | M32: =G9 -> 0 | N32: m | Y32: 0 | Z32: 0 | AA32: 0 | AC32: 0.84 | AD32: 4 | AE32: Nei
D33: Vegghøyde | G33: 0 | H33: m | L33: Antall skift | M33: =IF(G7="grunnmur",VLOOKUP(G9,AC29:AD55,2,FALSE),VLOOKUP(G9,AC56:AD91,2,FALSE)) -> 0 | N33: skift | Y33: 0 | Z33: 0 | AA33: 0 | AC33: 0.94 | AD33: 4.5 | AE33: Ja
D34: Antall hjørner | G34: 0 | H34: stk | L34: Antall løpemeter såleblokk | M34: =IF(G11="Ja",G8,0) -> 0 | N34: m | Y34: 0 | Z34: 0 | AA34: 0 | AC34: 1.05 | AD34: 5 | AE34: Nei
D35: Såleblokk | G35: Nei | L35: Antall løpemeter U-blokk murkrone | M35: =IF(G12="Ja",G8,0) -> 0 | N35: m | Y35: 0 | Z35: 0 | AA35: 0 | AC35: 1.15 | AD35: 5.5 | AE35: Ja
D36: U-blokk | G36: Nei | L36: Antall stk hjørne | M36: =G10 -> 0 | N36: stk | Y36: =SUM(Y24:Y35) -> 0 | Z36: =SUM(Z24:Z35) -> 0 | AA36: =SUM(AA24:AA35) -> 0 | AC36: 1.26 | AD36: 6 | AE36: Nei
D37: Antall skift: | G37: =M46 -> 0 | H37: skift | L37: Antall lysåpninger inntil 1,5 m | M37: =SUMIF(H18:H29,"Isobjelke komplett 180 cm",G18:G29) -> 0 | N37: stk | AC37: 1.36 | AD37: 6.5 | AE37: Ja
D38: Netto veggareal: | G38: =M54 -> 0 | H38: m2 | L38: Antall løpemeter U-blokk over åpninger | M38: =AA51 -> 0 | N38: m | Y38: Vegg 1 | Z38: U-blokkbjelke | AA38: Lengde | AC38: 1.47 | AD38: 7 | AE38: Nei
L39: Totalt åpningsareal | M39: =Y36 -> 0 | N39: m2 | Y39: V1 | Z39: =IF(H18="U-Blokk overdekning","Ja","Nei") -> Nei | AA39: =IF(Z39="Ja",(E18+0.5)*G18,0) -> 0 | AC39: 1.57 | AD39: 7.5 | AE39: Ja
E40: Bredde | F40: Høyde | G40: Antall | L40: Brutto veggareal | M40: =M32*M31 -> 0 | N40: m2 | Y40: V2 | Z40: Nei | AA40: 0 | AC40: 1.68 | AD40: 8 | AE40: Nei
D41: V1 | G41: 0 | H41: =IF(AND(ISNUMBER(E41),E41>0,F41>0,G41>0),IF(E41<=1.5,$Y$84,IF(AND(E41>1.5,E41<=2.5),$Y$85,"Krever tiltak (mengdeberegnes ikke)")),"") ->  | L41: Netto veggareal | M41: =M40-M39 -> 0 | N41: m2 | Y41: V3 | Z41: Nei | AA41: 0 | AC41: 1.78 | AD41: 8.5 | AE41: Ja
D42: V2 | G42: 0 | Y42: V4 | Z42: Nei | AA42: 0 | AC42: 1.89 | AD42: 9 | AE42: Nei
D43: V3 | G43: 0 | L43: Vegg 2 | Y43: V5 | Z43: Nei | AA43: 0 | AC43: 1.99 | AD43: 9.5 | AE43: Ja
D44: V4 | G44: 0 | L44: Vegglengde | M44: =G32 -> 0 | N44: m | Y44: V6 | Z44: Nei | AA44: 0 | AC44: 2.1 | AD44: 10 | AE44: Nei
D45: V5 | G45: 0 | L45: Vegghøyde | M45: =G33 -> 0 | N45: m | Y45: V7 | Z45: Nei | AA45: 0 | AC45: 2.2 | AD45: 10.5 | AE45: Ja
D46: V6 | G46: 0 | L46: Antall skift | M46: =IF(G31="grunnmur",VLOOKUP(G33,AC29:AD55,2,FALSE),VLOOKUP(G33,AC56:AD91,2,FALSE)) -> 0 | N46: skift | Y46: V8 | Z46: Nei | AA46: 0 | AC46: 2.31 | AD46: 11 | AE46: Nei
D47: V7 | G47: 0 | L47: Antall løpemeter såleblokk | M47: =IF(G35="Ja",G32,0) -> 0 | N47: m | Y47: V9 | Z47: Nei | AA47: 0 | AC47: 2.41 | AD47: 11.5 | AE47: Ja
D48: V8 | G48: 0 | L48: Antall løpemeter U-blokk | M48: =IF(G36="Ja",G32,0) -> 0 | N48: m | Y48: V10 | Z48: Nei | AA48: 0 | AC48: 2.52 | AD48: 12 | AE48: Nei
D49: V9 | G49: 0 | L49: Antall stk hjørne | M49: =G34 -> 0 | N49: stk | Y49: V11 | Z49: Nei | AA49: 0 | AC49: 2.62 | AD49: 12.5 | AE49: Ja
D50: V10 | G50: 0 | L50: Antall lysåpninger inntil 1,5 m | M50: =SUMIF(H41:H52,"Isobjelke komplett 180 cm",G41:G52) -> 0 | N50: stk | Y50: V12 | Z50: Nei | AA50: 0 | AC50: 2.73 | AD50: 13 | AE50: Nei
D51: V11 | G51: 0 | L51: Antall løpemeter U-blokk over åpninger | M51: =AA66 -> 0 | N51: m | AA51: =SUM(AA39:AA50) -> 0 | AC51: 2.83 | AD51: 13.5 | AE51: Ja
D52: V12 | G52: 0 | L52: Totalt åpningsareal | M52: =Z36 -> 0 | N52: m2 | AC52: 2.94 | AD52: 14 | AE52: Nei
L53: Brutto veggareal | M53: =M45*M44 -> 0 | N53: m2 | Y53: Vegg 2 | Z53: U-blokkbjelke | AA53: Lengde | AC53: 3.04 | AD53: 14.5 | AE53: Ja
C54: Vegg 3 | D54: Veggtype | G54: Yttervegg | L54: Netto veggareal | M54: =M53-M52 -> 0 | N54: m2 | Y54: V1 | Z54: =IF(H41="U-Blokk overdekning","Ja","Nei") -> Nei | AA54: =IF(Z54="Ja",(E41+0.5)*G41,0) -> 0 | AC54: 3.15 | AD54: 15 | AE54: Nei
D55: Vegglengde | G55: 0 | H55: m | Y55: V2 | Z55: Nei | AA55: 0 | AC55: 3.25 | AD55: 15.5 | AE55: Ja
D56: Vegghøyde | G56: 0 | H56: m | L56: Vegg 3 | Y56: V3 | Z56: Nei | AA56: 0 | AC56: 0 | AD56: 0 | AE56: Nei
D57: Antall hjørner | G57: 0 | H57: stk | L57: Vegglengde | M57: =G55 -> 0 | N57: m | Y57: V4 | Z57: Nei | AA57: 0 | AC57: 0.2 | AD57: 1 | AE57: Nei
D58: Såleblokk | G58: Nei | L58: Vegghøyde | M58: =G56 -> 0 | N58: m | Y58: V5 | Z58: Nei | AA58: 0 | AC58: 0.3 | AD58: 1.5 | AE58: Ja
D59: U-blokk | G59: Nei | L59: Antall skift | M59: =IF(G54="grunnmur",VLOOKUP(G56,AC29:AD55,2,FALSE),VLOOKUP(G56,AC56:AD91,2,FALSE)) -> 0 | N59: skift | Y59: V6 | Z59: Nei | AA59: 0 | AC59: 0.4 | AD59: 2 | AE59: Nei
D60: Antall skift: | G60: =M59 -> 0 | H60: skift | L60: Antall løpemeter såleblokk | M60: =IF(G58="Ja",G55,0) -> 0 | N60: m | Y60: V7 | Z60: Nei | AA60: 0 | AC60: 0.5 | AD60: 2.5 | AE60: Ja
D61: Netto veggareal: | G61: =M67 -> 0 | H61: m2 | L61: Antall løpemeter U-blokk | M61: =IF(G59="Ja",G55,0) -> 0 | N61: m | Y61: V8 | Z61: Nei | AA61: 0 | AC61: 0.6 | AD61: 3 | AE61: Nei
L62: Antall stk hjørne | M62: =G57 -> 0 | N62: stk | Y62: V9 | Z62: Nei | AA62: 0 | AC62: 0.7 | AD62: 3.5 | AE62: Ja
E63: Bredde | F63: Høyde | G63: Antall | L63: Antall lysåpninger inntil 1,5 m | M63: =SUMIF(H64:H75,"Isobjelke komplett 180 cm",G64:G75) -> 0 | N63: stk | Y63: V10 | Z63: Nei | AA63: 0 | AC63: 0.8 | AD63: 4 | AE63: Nei
D64: V1 | G64: 0 | H64: =IF(AND(ISNUMBER(E64),E64>0,F64>0,G64>0),IF(E64<=1.5,$Y$84,IF(AND(E64>1.5,E64<=2.5),$Y$85,"Krever tiltak (mengdeberegnes ikke)")),"") ->  | L64: Antall løpemeter U-blokk over åpninger | M64: =AA81 -> 0 | N64: m | Y64: V11 | Z64: Nei | AA64: 0 | AC64: 0.9 | AD64: 4.5 | AE64: Ja
D65: V2 | G65: 0 | L65: Totalt åpningsareal | M65: =AA36 -> 0 | N65: m2 | Y65: V12 | Z65: Nei | AA65: 0 | AC65: 1 | AD65: 5 | AE65: Nei
D66: V3 | G66: 0 | L66: Brutto veggareal | M66: =M58*M57 -> 0 | N66: m2 | AA66: =SUM(AA54:AA65) -> 0 | AC66: 1.1 | AD66: 5.5 | AE66: Ja
D67: V4 | G67: 0 | L67: Netto veggareal | M67: =M66-M65 -> 0 | N67: m2 | AC67: 1.2 | AD67: 6 | AE67: Nei
D68: V5 | G68: 0 | Y68: Vegg 3 | Z68: U-blokkbjelke | AA68: Lengde | AC68: 1.3 | AD68: 6.5 | AE68: Ja
D69: V6 | G69: 0 | Y69: V1 | Z69: =IF(H64="U-Blokk overdekning","Ja","Nei") -> Nei | AA69: =IF(Z69="Ja",(E64+0.5)*G64,0) -> 0 | AC69: 1.4 | AD69: 7 | AE69: Nei
D70: V7 | G70: 0 | Y70: V2 | Z70: Nei | AA70: 0 | AC70: 1.5 | AD70: 7.5 | AE70: Ja
D71: V8 | G71: 0 | Y71: V3 | Z71: Nei | AA71: 0 | AC71: 1.6 | AD71: 8 | AE71: Nei
D72: V9 | G72: 0 | Y72: V4 | Z72: Nei | AA72: 0 | AC72: 1.7 | AD72: 8.5 | AE72: Ja
D73: V10 | G73: 0 | Y73: V5 | Z73: Nei | AA73: 0 | AC73: 1.8 | AD73: 9 | AE73: Nei
D74: V11 | G74: 0 | Y74: V6 | Z74: Nei | AA74: 0 | AC74: 1.9 | AD74: 9.5 | AE74: Ja
D75: V12 | G75: 0 | Y75: V7 | Z75: Nei | AA75: 0 | AC75: 2 | AD75: 10 | AE75: Nei
Y76: V8 | Z76: Nei | AA76: 0 | AC76: 2.1 | AD76: 10.5 | AE76: Ja
Y77: V9 | Z77: Nei | AA77: 0 | AC77: 2.2 | AD77: 11 | AE77: Nei
D78: Merk: Det anbefales å bruke mørtelkasser ved legging av leca. Ta kontakt med kundeservice for mer informasjon. | Y78: V10 | Z78: Nei | AA78: 0 | AC78: 2.3 | AD78: 11.5 | AE78: Ja
Y79: V11 | Z79: Nei | AA79: 0 | AC79: 2.4 | AD79: 12 | AE79: Nei
Y80: V12 | Z80: Nei | AA80: 0 | AC80: 2.5 | AD80: 12.5 | AE80: Ja
AA81: =SUM(AA69:AA80) -> 0 | AC81: 2.6 | AD81: 13 | AE81: Nei
AC82: 2.7 | AD82: 13.5 | AE82: Ja
Y83: Liste "bjelke1" | AC83: 2.8 | AD83: 14 | AE83: Nei
Y84: Isobjelke komplett 180 cm | AC84: 2.9 | AD84: 14.5 | AE84: Ja
Y85: U-Blokk overdekning | AC85: 3 | AD85: 15 | AE85: Nei
Y86: Annet (mengdeberegnes ikke) | AC86: 3.1 | AD86: 15.5 | AE86: Ja
Y87: Liste "bjelke2" | AC87: 3.2 | AD87: 16 | AE87: Nei
Y88: Isobjelke komplett 300 cm | AC88: 3.3 | AD88: 16.5 | AE88: Ja
Y89: U-Blokk overdekning | AC89: 3.4 | AD89: 17 | AE89: Nei
Y90: Annet (mengdeberegnes ikke) | AC90: 3.5 | AD90: 17.5 | AE90: Ja
AC91: 3.6 | AD91: 18 | AE91: Nei

Sheet ISO 25 (hidden)
D5: ISOBLOKK 25
D6: Inndata | O6: Vegg 1 | Q6: Vegg 2 | S6: Vegg 3
D7: Vegglengde | F7: (inntasting) | G7: 0 | H7: m | J7: 5200626735 | O7: =IF(G11="Ja",ROUNDUP(L37*2,0),0) -> 0 | P7: pc | Q7: =IF(G35="Ja",ROUNDUP(L50*2,0),0) -> 0 | R7: pc | S7: =IF(G58="Ja",ROUNDUP(L63*2,0),0) -> 0 | T7: pc | W7: Tilpas - V1 | X7: Tilpas - V2 | Y7: Tilpas - V3 | AA7: Hjørnelist v1 | AB7: Hjørnelist v2 | AC7: Hjørnelist v3
D8: Vegghøyde | F8: (flervalg) | G8: 0 | H8: m | J8: 5200694449 | O8: =ROUNDUP((L44*7.7)-O9-(O10/2)-(O11/2),0) -> 0 | P8: pc | Q8: =ROUNDUP((L57*7.7)-Q9-(Q10/2)-(Q11/2),0) -> 0 | R8: pc | S8: =ROUNDUP((L70*7.7)-S9-(S10/2)-(S11/2),0) -> 0 | T8: pc | W8: =VLOOKUP(G8,W23:Y59,3,FALSE) -> Nei | X8: =VLOOKUP(G32,W23:Y59,3,FALSE) -> Nei | Y8: =VLOOKUP(G55,W24:Y59,3,FALSE) -> Nei | AA8: =(E18+(F18*2))*G18 -> 0 | AB8: =(E41+(F41*2))*G41 -> 0 | AC8: =(E64+(F64*2))*G64 -> 0
D9: Antall hjørner | F9: (inntasting) | G9: 0 | H9: stk | J9: 5200694709 | O9: =ROUNDUP((L39*L36)+(L40*L35*3)+(L41*2.4),0)-IF(G12="Ja",L39,0) -> 0 | P9: pc | Q9: =ROUNDUP((L52*L49)+(L53*L48*3)+(L54*2.4),0)-IF(G36="Ja",L52,0) -> 0 | R9: pc | S9: =ROUNDUP((L65*L62)+(L66*L61*3)+(L67*2.4),0)-IF(G59="Ja",L65,0) -> 0 | T9: pc | AA9: 0 | AB9: 0 | AC9: 0
D10: Antall åpne ender | F10: (inntasting) | G10: 0 | H10: stk | J10: 5200694711 | O10: =IF(W8="Ja",L34*2,0) -> 0 | P10: pc | Q10: =IF(X8="Ja",L47*2,0) -> 0 | R10: pc | S10: =IF(Y8="Ja",L60*2,0) -> 0 | T10: pc | W10: U-blokk | X10: Såleblokk | AA10: 0 | AB10: 0 | AC10: 0
D11: Såleblokk | F11: (flervalg) | G11: Ja | J11: 5200687074 | O11: =IF(G12="Ja",ROUNDUP(L38*4,0),0) -> 0 | P11: pc | Q11: =IF(G36="Ja",ROUNDUP(L51*4,0),0) -> 0 | R11: pc | S11: =IF(G59="Ja",ROUNDUP(L64*4,0),0) -> 0 | T11: pc | W11: Ja | X11: Ja | AA11: 0 | AB11: 0 | AC11: 0
D12: U-blokk | F12: (flervalg) | G12: Ja | J12: 5200626806 | L12: Forside | N12: Lecablokker | O12: =ROUNDUP(L44*4.2,0) -> 0 | P12: m | Q12: =ROUNDUP(L57*4.2,0) -> 0 | R12: m | S12: =ROUNDUP(L70*5.2,0) -> 0 | T12: m | W12: Nei | X12: Nei | AA12: 0 | AB12: 0 | AC12: 0
D13: Puss (slemming) under bakken | F13: (inntasting) | G13: 0 | H13: m2 | J13: 5200642507 | O13: =ROUNDUP(L44*4.2,0) -> 0 | P13: m | Q13: =ROUNDUP(L57*4.2,0) -> 0 | R13: m | S13: =ROUNDUP(L70*4.2,0) -> 0 | T13: m | AA13: 0 | AB13: 0 | AC13: 0
D14: Antall skift: | G14: =L36 -> 0 | H14: skift | J14: 5200633054 | W14: Fugearmering | X14: Pakker | AA14: 0 | AB14: 0 | AC14: 0
D15: Netto veggareal: | G15: =L44 -> 0 | H15: m2 | J15: 5200626795 | O15: =ROUNDUP(((L37+L38)*1.1),0) -> 0 | P15: m | Q15: =ROUNDUP(((L50+L51)*1.1),0) -> 0 | R15: m | S15: =ROUNDUP(((L63+L64)*1.1),0) -> 0 | T15: m | W15: =SUM(O13,Q13,S13) -> 0 | X15: =ROUNDUP(W15/400,1) -> 0 | AA15: 0 | AB15: 0 | AC15: 0
J16: 5200631518 | K16: Materialliste: | O16: =ROUNDUP(L44*14,0) -> 0 | P16: kg | Q16: =ROUNDUP(L57*14,0) -> 0 | R16: kg | S16: =ROUNDUP(L70*14,0) -> 0 | T16: kg | AA16: 0 | AB16: 0 | AC16: 0
E17: Bredde | F17: Høyde | G17: Antall | J17: 5200630295 | K17: Produkt | L17: Nobb | M17: Antall | N17: enhet | O17: =ROUNDUP((L37*15)+(L38*25),0) -> 0 | P17: kg | Q17: =ROUNDUP((L50*15)+(L51*25),0) -> 0 | R17: kg | S17: =ROUNDUP((L63*15)+(L64*25),0) -> 0 | T17: kg | W17: Laftestrimmel | X17: U-blokkarm | AA17: 0 | AB17: 0 | AC17: 0
D18: V1 | G18: 0 | K18: Leca Såleblokk 33 cm | L18: 10523777 | M18: =SUM(O7,Q7,S7) -> 0 | N18: stk | W18: =SUM(O12,Q12,S12) -> 0 | X18: =SUM(O15,Q15,S15) -> 0 | AA18: 0 | AB18: 0 | AC18: 0
D19: V2 | G19: 0 | K19: Leca Isoblokk 25 cm standardblokk LSX | L19: 50523673 | M19: =SUM(O8,Q8,S8) -> 0 | N19: stk | AA19: 0 | AB19: 0 | AC19: 0
D20: V3 | G20: 0 | K20: Leca Isoblokk 25 cm hjørneblokk LSX | L20: 50523616 | M20: =SUM(O9,Q9,S9) -> 0 | N20: stk | W20: M5 | X20: B20 | AA20: =SUM(AA8:AA19) -> 0 | AB20: =SUM(AB8:AB19) -> 0 | AC20: =SUM(AC8:AC19) -> 0
D21: V4 | G21: 0 | K21: Leca Isoblokk 25 cm tilpasningsblokk LSX | L21: 50523684 | M21: =SUM(O10,Q10,S10) -> 0 | N21: stk | W21: =SUM(O16,Q16,S16) -> 0 | X21: =SUM(O17,Q17,S17) -> 0
D22: V5 | G22: 0 | K22: Leca Iso U-blokk 25 cm LSX | L22: 10523645 | M22: =SUM(O11,Q11,S11) -> 0 | N22: stk | AA22: Fiberpuss | AB22: Arm.nett | AC22: Hjørnelist
D23: V6 | G23: 0 | K23: Laftestrimmel 90 mm for Leca Isoblokk | L23: 23387491 | M23: =ROUNDUP(W18/18,0) -> 0 | N23: rull | W23: Høyde | X23: Antall skift | Y23: Lavblokk | AA23: =ROUNDUP(((L44+L57+L70)-G13)*14,0) -> 0 | AB23: =ROUNDUP(((L44+L57+L70)-G13)*1.15,0) -> 0 | AC23: =ROUNDUP(AA20+AB20+AC20+(G9*G8)+(G33*G32)+(G56*G55),0) -> 0
D24: V7 | G24: 0 | K24: Leca Fugearmering 18 mm storpakke | L24: 47095300 | M24: =INT(X15) -> 0 | N24: pakke | W24: 0 | X24: 0 | Y24: Nei
D25: V8 | G25: 0 | K25: Leca Fugearmering 18 mm småpakke | L25: 46343273 | M25: =(X15-INT(X15))*10 -> 0 | N25: pakke | W25: 0.26 | X25: 1 | Y25: Nei | AA25: Startlist | AB25: Silikon.m | AC25: Silikon.p
D26: V9 | G26: 0 | K26: Leca U-blokkarmering småpakke | L26: 10583961 | M26: =ROUNDUP(X18/20,0) -> 0 | N26: pakke | W26: 0.39 | X26: 1.5 | Y26: Ja | AA26: =G7 -> 0 | AB26: =ROUNDUP(((L44+L57+L70)-G13)*0.3,0) -> 0 | AC26: =ROUNDUP(((L44+L57+L70)-G13)*2.9,0) -> 0
D27: V10 | G27: 0 | K27: Weber Murmørtel M5 plastsekk | L27: 55244204 | M27: =ROUNDUP(W21/25,0) -> 0 | N27: sekk | W27: 0.52 | X27: 2 | Y27: Nei
D28: V11 | G28: 0 | K28: Weber B20 plastsekk | L28: 55244174 | M28: =ROUNDUP(X21/25,0) -> 0 | N28: sekk | W28: 0.65 | X28: 2.5 | Y28: Ja | AA28: Slemming | AB28: KC 50/50
D29: V12 | G29: 0 | K29: Weber Grå Slemming 20 kg | L29: 50410636 | M29: =ROUNDUP(AA29/20,0) -> 0 | N29: sekk | W29: 0.78 | X29: 3 | Y29: Nei | AA29: =ROUNDUP(G13*6,0) -> 0 | AB29: =ROUNDUP((G15+G38+G61)*17,0) -> 0
W30: 0.91 | X30: 3.5 | Y30: Ja
C31: Vegg 2 | D31: Vegglengde | G31: 0 | H31: m | W31: 1.04 | X31: 4 | Y31: Nei
D32: Vegghøyde | G32: 0 | H32: m | W32: 1.17 | X32: 4.5 | Y32: Ja | AA32: Vegg 1 | AB32: Vegg 2 | AC32: Vegg 3
D33: Antall hjørner | G33: 0 | H33: stk | K33: Vegg 1 | W33: 1.3 | X33: 5 | Y33: Nei | AA33: =F18*2*G18 -> 0 | AB33: =F41*2*G41 -> 0 | AC33: =F64*2*G64 -> 0
D34: Antall åpne ender | G34: 0 | H34: stk | K34: Vegglengde | L34: =G7 -> 0 | M34: m | W34: 1.43 | X34: 5.5 | Y34: Ja | AA34: 0 | AB34: 0 | AC34: 0
D35: Såleblokk | G35: Nei | K35: Vegghøyde | L35: =G8 -> 0 | M35: m | W35: 1.56 | X35: 6 | Y35: Nei | AA35: 0 | AB35: 0 | AC35: 0
D36: U-blokk | G36: Ja | K36: Antall skift | L36: =VLOOKUP(G8,W24:X59,2,FALSE) -> 0 | M36: skift | W36: 1.69 | X36: 6.5 | Y36: Ja | AA36: 0 | AB36: 0 | AC36: 0
D37: Antall skift: | G37: =L49 -> 0 | H37: skift | K37: Antall løpemeter såleblokk | L37: =IF(G11="Ja",G7,0) -> 0 | M37: m | W37: 1.82 | X37: 7 | Y37: Nei | AA37: 0 | AB37: 0 | AC37: 0
D38: Netto veggareal: | G38: =L57 -> 0 | H38: m2 | K38: Antall løpemeter U-blokk murkrone | L38: =IF(G12="Ja",G7,0) -> 0 | M38: m | W38: 1.95 | X38: 7.5 | Y38: Ja | AA38: 0 | AB38: 0 | AC38: 0
K39: Antall stk hjørne | L39: =G9 -> 0 | M39: stk | W39: 2.08 | X39: 8 | Y39: Nei | AA39: 0 | AB39: 0 | AC39: 0
E40: Bredde | F40: Høyde | G40: Antall | K40: Antall stk åpne ender | L40: =G10 -> 0 | M40: stk | W40: 2.21 | X40: 8.5 | Y40: Ja | AA40: 0 | AB40: 0 | AC40: 0
D41: V1 | G41: 0 | K41: Antall løpemeter vertikale smyg | L41: =AA45 -> 0 | M41: m | W41: 2.34 | X41: 9 | Y41: Nei | AA41: 0 | AB41: 0 | AC41: 0
D42: V2 | G42: 0 | K42: Totalt åpningsareal | L42: =AA59 -> 0 | M42: m2 | W42: 2.47 | X42: 9.5 | Y42: Ja | AA42: 0 | AB42: 0 | AC42: 0
D43: V3 | G43: 0 | K43: Brutto veggareal | L43: =L35*L34 -> 0 | M43: m2 | W43: 2.6 | X43: 10 | Y43: Nei | AA43: 0 | AB43: 0 | AC43: 0
D44: V4 | G44: 0 | K44: Netto veggareal | L44: =L43-L42 -> 0 | M44: m2 | W44: 2.73 | X44: 10.5 | Y44: Ja | AA44: 0 | AB44: 0 | AC44: 0
D45: V5 | G45: 0 | W45: 2.86 | X45: 11 | Y45: Nei | AA45: =SUM(AA33:AA44) -> 0 | AB45: =SUM(AB33:AB44) -> 0 | AC45: =SUM(AC33:AC44) -> 0
D46: V6 | G46: 0 | K46: Vegg 2 | W46: 2.99 | X46: 11.5 | Y46: Ja
D47: V7 | G47: 0 | K47: Vegglengde | L47: =G31 -> 0 | M47: m | W47: 3.12 | X47: 12 | Y47: Nei | AA47: =E18*F18*G18 -> 0 | AB47: =E41*F41*G41 -> 0 | AC47: =E64*F64*G64 -> 0
D48: V8 | G48: 0 | K48: Vegghøyde | L48: =G32 -> 0 | M48: m | W48: 3.25 | X48: 12.5 | Y48: Ja | AA48: 0 | AB48: 0 | AC48: 0
D49: V9 | G49: 0 | K49: Antall skift | L49: =VLOOKUP(G32,W24:X59,2,FALSE) -> 0 | M49: skift | W49: 3.38 | X49: 13 | Y49: Nei | AA49: 0 | AB49: 0 | AC49: 0
D50: V10 | G50: 0 | K50: Antall løpemeter såleblokk | L50: =IF(G35="Ja",G31,0) -> 0 | M50: m | W50: 3.51 | X50: 13.5 | Y50: Ja | AA50: 0 | AB50: 0 | AC50: 0
D51: V11 | G51: 0 | K51: Antall løpemeter U-blokk | L51: =IF(G36="Ja",G31,0) -> 0 | M51: m | W51: 3.64 | X51: 14 | Y51: Nei | AA51: 0 | AB51: 0 | AC51: 0
D52: V12 | G52: 0 | K52: Antall stk hjørne | L52: =G33 -> 0 | M52: stk | W52: 3.77 | X52: 14.5 | Y52: Ja | AA52: 0 | AB52: 0 | AC52: 0
K53: Antall stk åpne ender | L53: =G34 -> 0 | M53: stk | W53: 3.9 | X53: 15 | Y53: Nei | AA53: 0 | AB53: 0 | AC53: 0
C54: Vegg 3 | D54: Vegglengde | G54: 0 | H54: m | K54: Antall løpemeter vertikale smyg | L54: =AB45 -> 0 | M54: m | W54: 4.03 | X54: 15.5 | Y54: Ja | AA54: 0 | AB54: 0 | AC54: 0
D55: Vegghøyde | G55: 0 | H55: m | K55: Totalt åpningsareal | L55: =AB59 -> 0 | M55: m2 | W55: 4.16 | X55: 16 | Y55: Nei | AA55: 0 | AB55: 0 | AC55: 0
D56: Antall hjørner | G56: 0 | H56: stk | K56: Brutto veggareal | L56: =L48*L47 -> 0 | M56: m2 | W56: 4.29 | X56: 16.5 | Y56: Ja | AA56: 0 | AB56: 0 | AC56: 0
D57: Antall åpne ender | G57: 0 | H57: stk | K57: Netto veggareal | L57: =L56-L55 -> 0 | M57: m2 | W57: 4.42 | X57: 17 | Y57: Nei | AA57: 0 | AB57: 0 | AC57: 0
D58: Såleblokk | G58: Nei | W58: 4.55 | X58: 17.5 | Y58: Ja | AA58: 0 | AB58: 0 | AC58: 0
D59: U-blokk | G59: Ja | K59: Vegg 3 | W59: 4.68 | X59: 18 | Y59: Nei | AA59: =SUM(AA47:AA58) -> 0 | AB59: =SUM(AB47:AB58) -> 0 | AC59: =SUM(AC47:AC58) -> 0
D60: Antall skift: | G60: =L62 -> 0 | H60: skift | K60: Vegglengde | L60: =G54 -> 0 | M60: m
D61: Netto veggareal: | G61: =L70 -> 0 | H61: m2 | K61: Vegghøyde | L61: =G55 -> 0 | M61: m
K62: Antall skift | L62: =VLOOKUP(G55,W24:X59,2,FALSE) -> 0 | M62: skift
E63: Bredde | F63: Høyde | G63: Antall | K63: Antall løpemeter såleblokk | L63: =IF(G58="Ja",G54,0) -> 0 | M63: m
D64: V1 | G64: 0 | K64: Antall løpemeter U-blokk | L64: =IF(G59="Ja",G54,0) -> 0 | M64: m
D65: V2 | G65: 0 | K65: Antall stk hjørne | L65: =G56 -> 0 | M65: stk
D66: V3 | G66: 0 | K66: Antall stk åpne ender | L66: =G57 -> 0 | M66: stk
D67: V4 | G67: 0 | K67: Antall løpemeter vertikale smyg | L67: =AC45 -> 0 | M67: m
D68: V5 | G68: 0 | K68: Totalt åpningsareal | L68: =AC59 -> 0 | M68: m2
D69: V6 | G69: 0 | K69: Brutto veggareal | L69: =L61*L60 -> 0 | M69: m2
D70: V7 | G70: 0 | K70: Netto veggareal | L70: =L69-L68 -> 0 | M70: m2
D71: V8 | G71: 0
D72: V9 | G72: 0
D73: V10 | G73: 0
D74: V11 | G74: 0
D75: V12 | G75: 0
D78: Merk: Det anbefales å bruke mørtelkasser ved legging av leca. Ta kontakt med kundeservice for mer informasjon.

Sheet Basic (hidden)
C6: Basicblokk
D7: Inndata | O7: Vegg 1 | Q7: Vegg 2 | S7: Vegg 3 | AA7: Fiberpuss | AB7: Arm.nett | AC7: Hjørnelist
D8: Bredde | F8: (flervalg) | G8: 25 cm | J8: 5200626735 | O8: =IF(G12="Ja",ROUNDUP(L38*2,0),0) -> 0 | P8: pc | Q8: =IF(G37="Ja",ROUNDUP(L53*2,0),0) -> 0 | R8: pc | S8: =IF(G61="Ja",ROUNDUP(L68*2,0),0) -> 0 | T8: pc | W8: U-blokk | X8: Såleblokk | Y8: 25 cm | AA8: =ROUNDUP(((L46+L61+L76)-G15)*14,0) -> 0 | AB8: =ROUNDUP(((L46+L61+L76)-G15)*1.15,0) -> 0 | AC8: =ROUNDUP(AA30+AB30+AC30+(G11*G10)+(G36*G35)+(G60*G59),0) -> 0
D9: Vegglengde | F9: (inntasting) | G9: 0 | H9: m | J9: 5200680003 | L9: Forside | N9: Lecablokker | O9: =IF(L34="25",ROUNDUP((L46*8)-O10-(O11/2),0),0) -> 0 | P9: pc | Q9: =IF(L49="25",ROUNDUP((L61*8)-Q10-(Q11/2),0),0) -> 0 | R9: pc | S9: =IF(L64="25",ROUNDUP((L76*8)-S10-(S11/2),0),0) -> 0 | T9: pc | W9: Ja | X9: Ja | Y9: 20 cm
D10: Vegghøyde | F10: (flervalg) | G10: 0 | H10: m | J10: 5200680010 | O10: =IF(L34="25",ROUNDUP(((L41*L36)+L43)*4,0)-IF(G13="Ja",L41,0),0) -> 0 | P10: pc | Q10: =IF(L49="25",ROUNDUP(((L56*L51)+L58)*4,0)-IF(G38="Ja",L56,0),0) -> 0 | R10: pc | S10: =IF(L64="25",ROUNDUP(((L71*L66)+L73)*4,0)-IF(G62="Ja",L71,0),0) -> 0 | T10: pc | W10: Nei | X10: Nei | Y10: 15 cm | AA10: Startlist | AB10: Silikon.m | AC10: Silikon.p
D11: Antall hjørner | F11: (inntasting) | G11: 0 | H11: stk | J11: 5200680007 | O11: =IF(L34="25",ROUNDUP((L39+L40)*4,0),0) -> 0 | P11: pc | Q11: =IF(L49="25",ROUNDUP((L54+L55)*4,0),0) -> 0 | R11: pc | S11: =IF(L64="25",ROUNDUP((L69+L70)*4,0),0) -> 0 | T11: pc | AA11: =G9 -> 0 | AB11: =ROUNDUP(((L46+L61+L76)-G15)*0.3,0) -> 0 | AC11: =ROUNDUP(((L46+L61+L76)-G15)*2.9,0) -> 0
D12: Såleblokk | F12: (flervalg) | G12: Nei | J12: 5200680005 | O12: =IF(L34="20",ROUNDUP((L46*8)-O13-(O14/2),0),0) -> 0 | P12: pc | Q12: =IF(L49="20",ROUNDUP((L61*8)-Q13-(Q14/2),0),0) -> 0 | R12: pc | S12: =IF(L64="20",ROUNDUP((L76*8)-S10-(S11/2),0),0) -> 0 | T12: pc | W12: Fugearmering | X12: Pakker | Y12: U-blokkarm
D13: U-blokk | F13: (flervalg) | G13: Nei | J13: 5200680011 | O13: =IF(L34="20",ROUNDUP(((L41*L36)+L43)*4,0)-IF(G13="Ja",L41,0),0) -> 0 | P13: pc | Q13: =IF(L49="20",ROUNDUP(((L56*L51)+L58)*4,0)-IF(G38="Ja",L56,0),0) -> 0 | R13: pc | S13: =IF(L64="20",ROUNDUP(((L71*L66)+L73)*4,0)-IF(G62="Ja",L71,0),0) -> 0 | T13: pc | W13: =SUM(O18,Q18,S18) -> 0 | X13: =ROUNDUP(W13/400,1) -> 0 | Y13: =SUM(O20,Q20,S20) -> 0 | AA13: Slemming | AB13: KC 50/50
D14: Hjørneblokker i vertikale smyg | F14: (flervalg) | G14: Ja | J14: 5200680008 | K14: Materialliste: | O14: =IF(L34="20",ROUNDUP((L39+L40)*4,0),0) -> 0 | P14: pc | Q14: =IF(L49="20",ROUNDUP((L54+L55)*4,0),0) -> 0 | R14: pc | S14: =IF(L64="20",ROUNDUP((L69+L70)*4,0),0) -> 0 | T14: pc | AA14: =ROUNDUP(G15*6,0) -> 0 | AB14: =ROUNDUP((G17+G41+G65)*17,0) -> 0
D15: Puss (slemming) under bakken | F15: (inntasting) | G15: 0 | H15: m2 | J15: 5200680006 | K15: Produkt | L15: Nobb | M15: Antall | N15: enhet | O15: =IF(L34="15",ROUNDUP((L46*8)-O16-(O17/2),0),0) -> 0 | P15: pc | Q15: =IF(L49="15",ROUNDUP((L61*8)-Q16-(Q17/2),0),0) -> 0 | R15: pc | S15: =IF(L64="15",ROUNDUP((L76*8)-S16-(S17/2),0),0) -> 0 | T15: pc | W15: B20 | X15: M5
D16: Antall skift: | G16: =L37 -> 0 | H16: skift | J16: 5200680012 | K16: Leca Såleblokk 33 cm | L16: 10523777 | M16: =SUM(O8,Q8,S8) -> 0 | N16: stk | O16: =IF(L34="15",ROUNDUP(((L41*L36)+L43)*4,0)-IF(G13="Ja",L41,0),0) -> 0 | P16: pc | Q16: =IF(L49="15",ROUNDUP(((L56*L51)+L58)*4,0)-IF(G38="Ja",L56,0),0) -> 0 | R16: pc | S16: =IF(L64="15",ROUNDUP(((L71*L66)+L73)*4,0)-IF(G62="Ja",L71,0),0) -> 0 | T16: pc | W16: =SUM(O22,Q22,S22) -> 0 | X16: =SUM(O21,Q21,S21) -> 0 | AA16: Hjørnelist
D17: Netto veggareal: | G17: =L46 -> 0 | H17: m2 | J17: 5200680009 | K17: Leca Basicblokk 25 cm LSX | L17: 49082717 | M17: 0 | N17: stk | O17: =IF(L34="15",ROUNDUP((L39+L40)*4,0),0) -> 0 | P17: pc | Q17: =IF(L49="15",ROUNDUP((L54+L55)*4,0),0) -> 0 | R17: pc | S17: =IF(L64="15",ROUNDUP((L69+L70)*4,0),0) -> 0 | T17: pc | AA17: Vegg 1 | AB17: Vegg 2 | AC17: Vegg 3
J18: 5200642507 | K18: Leca Basic Hjørneblokk 25 cm LSX | L18: 49082774 | M18: 0 | N18: stk | O18: =ROUNDUP(L46*4.2,0) -> 0 | P18: m | Q18: =ROUNDUP(L61*4.2,0) -> 0 | R18: m | S18: =ROUNDUP(L76*4.2,0) -> 0 | T18: m | W18: Vegg 1 | X18: Vegg 2 | Y18: Vegg 3 | Z18: B20 | AA18: =(E20+(F20*2))*G20 -> 0 | AB18: =(E44+(F44*2))*G44 -> 0 | AC18: =(E68+(F68*2))*G68 -> 0
E19: Bredde | F19: Høyde | G19: Antall | J19: 5200633054 | K19: Leca Basic U-blokk 25 cm LSX | L19: 49082740 | M19: 0 | N19: stk | W19: =IF(L34="25",ROUNDUP((L38*15)+((L39+L40)*42),0),0) -> 0 | X19: =IF(L49="25",ROUNDUP((L53*15)+((L54+L55)*42),0),0) -> 0 | Y19: =IF(L64="25",ROUNDUP((L68*15)+((L69+L70)*42),0),0) -> 0 | Z19: 25 | AA19: 0 | AB19: 0 | AC19: 0
D20: V1 | G20: 0 | J20: 5200626795 | K20: Leca Basicblokk 20 cm LSX | L20: 49082721 | M20: 0 | N20: stk | O20: =ROUNDUP(((L38+L39+L40)*1.1),0) -> 0 | P20: m | Q20: =ROUNDUP(((L53+L54+L55)*1.1),0) -> 0 | R20: m | S20: =ROUNDUP(((L68+L69+L70)*1.1),0) -> 0 | T20: m | W20: =IF(L34="20",ROUNDUP((L38*15)+((L39+L40)*21),0),0) -> 0 | X20: =IF(L49="20",ROUNDUP((L53*15)+((L54+L55)*21),0),0) -> 0 | Y20: =IF(L64="20",ROUNDUP((L68*15)+((L69+L70)*21),0),0) -> 0 | Z20: 20 | AA20: 0 | AB20: 0 | AC20: 0
D21: V2 | G21: 0 | J21: 5200631518 | K21: Leca Basic Hjørneblokk 20 cm LSX | L21: 49082785 | M21: 0 | N21: stk | O21: =ROUNDUP(L46*13,0) -> 0 | P21: kg | Q21: =ROUNDUP(L61*13,0) -> 0 | R21: kg | S21: =ROUNDUP(L76*13,0) -> 0 | T21: kg | W21: =IF(L34="15",ROUNDUP((L38*15)+((L39+L40)*17),0),0) -> 0 | X21: =IF(L49="15",ROUNDUP((L53*15)+((L54+L55)*17),0),0) -> 0 | Y21: =IF(L64="15",ROUNDUP((L68*15)+((L69+L70)*17),0),0) -> 0 | Z21: 15 | AA21: 0 | AB21: 0 | AC21: 0
D22: V3 | G22: 0 | J22: 5200630295 | K22: Leca Basic U-blokk 20 cm LSX | L22: 49082755 | M22: 0 | N22: stk | O22: =SUM(W19:W21) -> 0 | P22: kg | Q22: =SUM(X19:X21) -> 0 | R22: kg | S22: =SUM(Y19:Y21) -> 0 | T22: kg | AA22: 0 | AB22: 0 | AC22: 0
D23: V4 | G23: 0 | K23: Leca Basicblokk 15 cm LSX | L23: 49082736 | M23: 0 | N23: stk | AA23: 0 | AB23: 0 | AC23: 0
D24: V5 | G24: 0 | K24: Leca Basic Hjørneblokk 15 cm LSX | L24: 49082793 | M24: 0 | N24: stk | W24: Høyde | X24: Antall skift | AA24: 0 | AB24: 0 | AC24: 0
D25: V6 | G25: 0 | K25: Leca Basic U-blokk 15 cm LSX | L25: 49082766 | M25: 0 | N25: stk | W25: 0 | X25: 0 | AA25: 0 | AB25: 0 | AC25: 0
D26: V7 | G26: 0 | K26: Leca Fugearmering 18 mm storpakke | L26: 47095300 | M26: =INT(X13) -> 0 | N26: pakke | W26: 0.25 | X26: 1 | AA26: 0 | AB26: 0 | AC26: 0
D27: V8 | G27: 0 | K27: Leca Fugearmering 18 mm småpakke | L27: 46343273 | M27: =(X13-INT(X13))*10 -> 0 | N27: pakke | W27: 0.5 | X27: 2 | AA27: 0 | AB27: 0 | AC27: 0
D28: V9 | G28: 0 | K28: Leca U-blokkarmering småpakke | L28: 10583961 | M28: =ROUNDUP(Y13/20,0) -> 0 | N28: pakke | W28: 0.75 | X28: 3 | AA28: 0 | AB28: 0 | AC28: 0
D29: V10 | G29: 0 | K29: Weber Murmørtel M5 plastsekk | L29: 55244204 | M29: =ROUNDUP(X16/25,0) -> 0 | N29: sekk | W29: 1 | X29: 4 | AA29: 0 | AB29: 0 | AC29: 0
D30: V11 | G30: 0 | K30: Weber B20 plastsekk | L30: 55244174 | M30: =ROUNDUP(W16/25,0) -> 0 | N30: sekk | W30: 1.25 | X30: 5 | AA30: =SUM(AA18:AA29) -> 0 | AB30: =SUM(AB18:AB29) -> 0 | AC30: =SUM(AC18:AC29) -> 0
D31: V12 | G31: 0 | K31: Weber Grå Slemming 20 kg | L31: 50410636 | M31: =ROUNDUP(AA14/20,0) -> 0 | N31: bag | W31: 1.5 | X31: 6
W32: 1.75 | X32: 7 | AA32: Vertikale smyg
C33: Vegg 2 | D33: Bredde | G33: 20 cm | K33: Vegg 1 | W33: 2 | X33: 8 | AA33: Vegg 1 | AB33: Vegg 2 | AC33: Vegg 3
D34: Vegglengde | G34: 0 | H34: m | K34: Basicblokk | L34: =LEFT(G8,2) -> 25 | M34: cm | W34: 2.25 | X34: 9 | AA34: =F20*2*G20 -> 0 | AB34: =F44*2*G44 -> 0 | AC34: =F68*2*G68 -> 0
D35: Vegghøyde | G35: 0 | H35: m | K35: Vegglengde | L35: =G9 -> 0 | M35: m | W35: 2.5 | X35: 10 | AA35: 0 | AB35: 0 | AC35: 0
D36: Antall hjørner | G36: 0 | H36: stk | K36: Vegghøyde | L36: =G10 -> 0 | M36: m | W36: 2.75 | X36: 11 | AA36: 0 | AB36: 0 | AC36: 0
D37: Såleblokk | G37: Nei | K37: Antall skift | L37: =VLOOKUP(G10,W25:X60,2,FALSE) -> 0 | M37: skift | W37: 3 | X37: 12 | AA37: 0 | AB37: 0 | AC37: 0
D38: U-blokk | G38: Ja | K38: Antall løpemeter såleblokk | L38: =IF(G12="Ja",G9,0) -> 0 | M38: m | W38: 3.25 | X38: 13 | AA38: 0 | AB38: 0 | AC38: 0
D39: Hjørneblokker i vertikale smyg | G39: Ja | K39: Antall løpemeter U-blokk murkrone | L39: =IF(G13="Ja",G9,0) -> 0 | M39: m | W39: 3.5 | X39: 14 | AA39: 0 | AB39: 0 | AC39: 0
D40: Antall skift: | G40: =L52 -> 0 | H40: skift | K40: Antall løpemeter U-blokk overdekning | L40: =AA78 -> 0 | M40: m | W40: 3.75 | X40: 15 | AA40: 0 | AB40: 0 | AC40: 0
D41: Netto veggareal: | G41: =L61 -> 0 | H41: m2 | K41: Antall stk hjørne | L41: =G11 -> 0 | M41: stk | W41: 4 | X41: 16 | AA41: 0 | AB41: 0 | AC41: 0
K42: Hjørneblokk i vertikale smyg | L42: =G14 -> Ja | W42: 4.25 | X42: 17 | AA42: 0 | AB42: 0 | AC42: 0
E43: Bredde | F43: Høyde | G43: Antall | K43: Antall løpemeter vertikale smyg: | L43: =IF(L42="Ja",AA46,0) -> 0 | M43: m | W43: 4.5 | X43: 18 | AA43: 0 | AB43: 0 | AC43: 0
D44: V1 | G44: 0 | K44: Totalt åpningsareal | L44: =AA62 -> 0 | M44: m2 | W44: 4.75 | X44: 19 | AA44: 0 | AB44: 0 | AC44: 0
D45: V2 | G45: 0 | K45: Brutto veggareal | L45: =L36*L35 -> 0 | M45: m2 | W45: 5 | X45: 20 | AA45: 0 | AB45: 0 | AC45: 0
D46: V3 | G46: 0 | K46: Netto veggareal | L46: =L45-L44 -> 0 | M46: m2 | W46: 5.25 | X46: 21 | AA46: =SUM(AA34:AA45) -> 0 | AB46: =SUM(AB34:AB45) -> 0 | AC46: =SUM(AC34:AC45) -> 0
D47: V4 | G47: 0 | W47: 5.5 | X47: 22
D48: V5 | G48: 0 | K48: Vegg 2 | W48: 5.75 | X48: 23 | AA48: Totalt åpningsareal
D49: V6 | G49: 0 | K49: Basicblokk | L49: =LEFT(G33,2) -> 20 | M49: cm | W49: 6 | X49: 24 | AA49: Vegg 1 | AB49: Vegg 2 | AC49: Vegg 3
D50: V7 | G50: 0 | K50: Vegglengde | L50: =G34 -> 0 | M50: m | W50: 6.25 | X50: 25 | AA50: =E20*F20*G20 -> 0 | AB50: =E44*F44*G44 -> 0 | AC50: =E68*F68*G68 -> 0
D51: V8 | G51: 0 | K51: Vegghøyde | L51: =G35 -> 0 | M51: m | W51: 6.5 | X51: 26 | AA51: 0 | AB51: 0 | AC51: 0
D52: V9 | G52: 0 | K52: Antall skift | L52: =VLOOKUP(G35,W25:X60,2,FALSE) -> 0 | M52: skift | W52: 6.75 | X52: 27 | AA52: 0 | AB52: 0 | AC52: 0
D53: V10 | G53: 0 | K53: Antall løpemeter såleblokk | L53: =IF(G37="Ja",G34,0) -> 0 | M53: m | W53: 7 | X53: 28 | AA53: 0 | AB53: 0 | AC53: 0
D54: V11 | G54: 0 | K54: Antall løpemeter U-blokk murkrone | L54: =IF(G38="Ja",G34,0) -> 0 | M54: m | W54: 7.25 | X54: 29 | AA54: 0 | AB54: 0 | AC54: 0
D55: V12 | G55: 0 | K55: Antall løpemeter U-blokk overdekning | L55: =AB78 -> 0 | M55: m | W55: 7.5 | X55: 30 | AA55: 0 | AB55: 0 | AC55: 0
K56: Antall stk hjørne | L56: =G36 -> 0 | M56: stk | W56: 7.75 | X56: 31 | AA56: 0 | AB56: 0 | AC56: 0
C57: Vegg 3 | D57: Bredde | G57: 15 cm | K57: Hjørneblokk i vertikale smyg | L57: =G39 -> Ja | W57: 8 | X57: 32 | AA57: 0 | AB57: 0 | AC57: 0
D58: Vegglengde | G58: 0 | H58: m | K58: Antall løpemeter vertikale smyg: | L58: =IF(L57="Ja",AB46,0) -> 0 | M58: m | W58: 8.25 | X58: 33 | AA58: 0 | AB58: 0 | AC58: 0
D59: Vegghøyde | G59: 0 | H59: m | K59: Totalt åpningsareal | L59: =AB62 -> 0 | M59: m2 | W59: 8.5 | X59: 34 | AA59: 0 | AB59: 0 | AC59: 0
D60: Antall hjørner | G60: 0 | H60: stk | K60: Brutto veggareal | L60: =L51*L50 -> 0 | M60: m2 | W60: 8.75 | X60: 35 | AA60: 0 | AB60: 0 | AC60: 0
D61: Såleblokk | G61: Nei | K61: Netto veggareal | L61: =L60-L59 -> 0 | M61: m2 | AA61: 0 | AB61: 0 | AC61: 0
D62: U-blokk | G62: Ja | AA62: =SUM(AA50:AA61) -> 0 | AB62: =SUM(AB50:AB61) -> 0 | AC62: =SUM(AC50:AC61) -> 0
D63: Hjørneblokker i vertikale smyg | G63: Ja | K63: Vegg 3
D64: Antall skift: | G64: =L67 -> 0 | H64: skift | K64: Basicblokk | L64: =LEFT(G57,2) -> 15 | M64: cm | AA64: U-blokk bjelke
D65: Netto veggareal: | G65: =L76 -> 0 | H65: m2 | K65: Vegglengde | L65: =G58 -> 0 | M65: m | AA65: Vegg 1 | AB65: Vegg 2 | AC65: Vegg 3
K66: Vegghøyde | L66: =G59 -> 0 | M66: m | AA66: =(E20+0.5)*G20 -> 0 | AB66: =(E44+0.5)*G44 -> 0 | AC66: =(E68+0.5)*G68 -> 0
E67: Bredde | F67: Høyde | G67: Antall | K67: Antall skift | L67: =VLOOKUP(G59,W25:X60,2,FALSE) -> 0 | M67: skift | AA67: 0 | AB67: 0 | AC67: 0
D68: V1 | G68: 0 | K68: Antall løpemeter såleblokk | L68: =IF(G61="Ja",G58,0) -> 0 | M68: m | AA68: 0 | AB68: 0 | AC68: 0
D69: V2 | G69: 0 | K69: Antall løpemeter U-blokk murkrone | L69: =IF(G62="Ja",G58,0) -> 0 | M69: m | AA69: 0 | AB69: 0 | AC69: 0
D70: V3 | G70: 0 | K70: Antall løpemeter U-blokk overdekning | L70: =AC78 -> 0 | M70: m | AA70: 0 | AB70: 0 | AC70: 0
D71: V4 | G71: 0 | K71: Antall stk hjørne | L71: =G60 -> 0 | M71: stk | AA71: 0 | AB71: 0 | AC71: 0
D72: V5 | G72: 0 | K72: Hjørneblokk i vertikale smyg | L72: =G63 -> Ja | AA72: 0 | AB72: 0 | AC72: 0
D73: V6 | G73: 0 | K73: Antall løpemeter vertikale smyg: | L73: =IF(L72="Ja",AC46,0) -> 0 | M73: m | AA73: 0 | AB73: 0 | AC73: 0
D74: V7 | G74: 0 | K74: Totalt åpningsareal | L74: =AC62 -> 0 | M74: m2 | AA74: 0 | AB74: 0 | AC74: 0
D75: V8 | G75: 0 | K75: Brutto veggareal | L75: =L66*L65 -> 0 | M75: m2 | AA75: 0 | AB75: 0 | AC75: 0
D76: V9 | G76: 0 | K76: Netto veggareal | L76: =L75-L74 -> 0 | M76: m2 | AA76: 0 | AB76: 0 | AC76: 0
D77: V10 | G77: 0 | AA77: 0 | AB77: 0 | AC77: 0
D78: V11 | G78: 0 | AA78: =SUM(AA66:AA77) -> 0 | AB78: =SUM(AB66:AB77) -> 0 | AC78: =SUM(AC66:AC77) -> 0
D79: V12 | G79: 0
D82: Merk: Det anbefales å bruke mørtelkasser ved legging av leca. Ta kontakt med kundeservice for mer informasjon.

Sheet Div (hidden)
D5: Universalblokk
P6: Lydblokk | R6: Universal 1 | T6: Universal 2 | AA6: Fiberpuss | AB6: Arm.nett | AC6: Hjørnelist
D7: Inndata | P7: - | Q7: - | R7: =IF(G12="Ja",ROUNDUP(K39*2,0),0) -> 0 | S7: pc | T7: =IF(G41="Ja",ROUNDUP(K52*2,0),0) -> 0 | U7: pc | W7: U-blokk | X7: Såleblokk | AA7: =ROUNDUP(((K32+K45+K58)-G14)*14,0) -> 0 | AB7: =ROUNDUP(((K32+K45+K58)-#REF!)*1.15,0) ->  | AC7: =ROUNDUP(AB29+AC29+(G11*G10)+(G40*G39),0) -> 0
D8: Bredde | F8: (flervalg) | G8: 20 cm | P8: 0 | Q8: pc | R8: - | S8: - | T8: - | U8: - | W8: Ja | X8: Ja | Y8: 20 cm
D9: Vegglengde | F9: (inntasting) | G9: 0 | H9: m | P9: - | Q9: - | R9: =IF(K35="25",ROUNDUP((K45*7.7)-(R10/2),0),0) -> 0 | S9: pc | T9: =IF(K48="25",ROUNDUP((K58*7.7)-(T10/2),0),0) -> 0 | U9: pc | W9: Nei | X9: Nei | Y9: 15 cm | AA9: Startlist | AB9: Silikon.m | AC9: Silikon.p
D10: Vegghøyde | F10: (flervalg) | G10: 0 | H10: m | K10: Forside | M10: Lecablokker | P10: - | Q10: - | R10: =IF(K35="25",ROUNDUP((K40+K41)*4,0),0) -> 0 | S10: pc | T10: =IF(K48="25",ROUNDUP((K53+K54)*4,0),0) -> 0 | U10: pc | AA10: =#REF! ->  | AB10: =ROUNDUP(((K32+K45+K58)-#REF!)*0.3,0) ->  | AC10: =ROUNDUP(((K32+K45+K58)-#REF!)*2.9,0) -> 
D11: Antall hjørner | F11: (inntasting) | G11: 0 | H11: stk | P11: - | Q11: - | R11: =IF(K35="20",ROUNDUP((K45*7.7)-(R12/2),0),0) -> 0 | S11: pc | T11: =IF(K48="20",ROUNDUP((K58*7.7)-(T12/2),0),0) -> 0 | U11: pc | W11: Fugearmering | X11: Pakker | Y11: U-blokkarm
D12: Såleblokk | F12: (flervalg) | G12: Ja | P12: - | Q12: - | R12: =IF(K35="20",ROUNDUP((K40+K41)*4,0),0) -> 0 | S12: pc | T12: =IF(K48="20",ROUNDUP((K53+K54)*4,0),0) -> 0 | U12: pc | W12: =SUM(P15,R15,T15) -> 0 | X12: =ROUNDUP(W12/400,1) -> 0 | Y12: =SUM(R17,T17) -> 0 | AA12: Slemming | AB12: KC 50/50
D13: U-blokk | F13: (flervalg) | G13: Ja | P13: - | Q13: - | R13: =IF(K35="15",ROUNDUP((K45*7.7)-(R14/2),0),0) -> 0 | S13: pc | T13: =IF(K48="15",ROUNDUP((K58*7.7)-(T14/2),0),0) -> 0 | U13: pc | AA13: =ROUNDUP(G14*6,0) -> 0 | AB13: =ROUNDUP((#REF!+G16+G44)*17,0) -> 
D14: Puss (slemming) under bakken | F14: (inntasting) | G14: 0 | H14: m2 | P14: - | Q14: - | R14: =IF(K35="15",ROUNDUP((K40+K41)*4,0),0) -> 0 | S14: pc | T14: =IF(K48="15",ROUNDUP((K53+K54)*4,0),0) -> 0 | U14: pc | W14: B20 | X14: M5 | Y14: 25 cm
D15: Antall skift: | G15: =K38 -> 0 | H15: skift | P15: 0 | Q15: m | R15: =ROUNDUP(K45*4.2,0) -> 0 | S15: m | T15: =ROUNDUP(K58*4.2,0) -> 0 | U15: m | W15: =SUM(R19,T19) -> 0 | X15: =SUM(P18,R18,T18) -> 0 | Y15: 17,5 cm | AA15: Hjørnelist
D16: Netto veggareal: | G16: =K45 -> 0 | H16: m2 | J16: Materialliste: | AB16: Vegg 2 | AC16: Vegg 3
J17: Produkt | K17: Nobb | L17: Antall | M17: Enhet | P17: - | Q17: - | R17: =ROUNDUP(((K39+K40+K41)*1.1),0) -> 0 | S17: m | T17: =ROUNDUP(((K52+K53+K54)*1.1),0) -> 0 | U17: m | W17: B20 | X17: Universal 1 | Y17: Universal 2 | AB17: =(E19+(F19*2))*G19 -> 0 | AC17: =(E47+(F47*2))*G47 -> 0
E18: Bredde | F18: Høyde | G18: Antall | J18: Leca Såleblokk 33 cm | K18: 10523777 | L18: =SUM(P7,R7,T7) -> 0 | M18: stk | P18: 0 | Q18: kg | R18: =ROUNDUP(K45*13,0) -> 0 | S18: kg | T18: =ROUNDUP(K58*13,0) -> 0 | U18: kg | W18: 25 | X18: =IF(K35="25",ROUNDUP((K39*15)+((K40+K41)*42),0),0) -> 0 | Y18: =IF(K48="25",ROUNDUP((K52*15)+((K53+K54)*42),0),0) -> 0 | AB18: 0 | AC18: 0
D19: V1 | G19: 0 | J19: Leca Universalblokk 20 cm | K19: 10523520 | L19: =SUM(P11,R11,T11) -> 0 | M19: stk | P19: - | Q19: - | R19: =SUM(X18:X20) -> 0 | S19: kg | T19: =SUM(Y18:Y20) -> 0 | U19: kg | W19: 20 | X19: =IF(K35="20",ROUNDUP((K39*15)+((K40+K41)*21),0),0) -> 0 | Y19: =IF(K48="20",ROUNDUP((K52*15)+((K53+K54)*21),0),0) -> 0 | AB19: 0 | AC19: 0
D20: V2 | G20: 0 | J20: Leca Basic U-blokk 20 cm LSX | K20: 49082755 | L20: =SUM(P12,R12,T12) -> 0 | M20: stk | W20: 15 | X20: =IF(K35="15",ROUNDUP((K39*15)+((K40+K41)*17),0),0) -> 0 | Y20: =IF(K48="15",ROUNDUP((K52*15)+((K53+K54)*17),0),0) -> 0 | AB20: 0 | AC20: 0
D21: V3 | G21: 0 | J21: Leca Universalblokk 15 cm | K21: 47367456 | L21: =SUM(P13,R13,T13) -> 0 | M21: stk | AB21: 0 | AC21: 0
D22: V4 | G22: 0 | J22: Leca Basic U-blokk 15 cm LSX | K22: 49082766 | L22: =SUM(P14,R14,T14) -> 0 | M22: stk | AB22: 0 | AC22: 0
D23: V5 | G23: 0 | J23: Leca Fugearmering 18 mm storpakke | K23: 47095300 | L23: =INT(X12) -> 0 | M23: pakke | W23: Høyde | X23: Antall skift | AB23: 0 | AC23: 0
D24: V6 | G24: 0 | J24: Leca Fugearmering 18 mm småpakke | K24: 46343273 | L24: =(X12-INT(X12))*10 -> 0 | M24: pakke | W24: 0 | X24: 0 | AB24: 0 | AC24: 0
D25: V7 | G25: 0 | J25: Leca U-blokkarmering småpakke | K25: 10583961 | L25: =ROUNDUP(Y12/20,0) -> 0 | M25: pakke | W25: 0.26 | X25: 1 | AB25: 0 | AC25: 0
D26: V8 | G26: 0 | J26: Weber Murmørtel M5 plastsekk | K26: 55244204 | L26: =ROUNDUP(X15/25,0) -> 0 | M26: sekk | W26: 0.52 | X26: 2 | AB26: 0 | AC26: 0
D27: V9 | G27: 0 | J27: Weber B20 plastsekk | K27: 55244174 | L27: =ROUNDUP(W15/25,0) -> 0 | M27: sekk | W27: 0.78 | X27: 3 | AB27: 0 | AC27: 0
D28: V10 | G28: 0 | J28: Weber Grå Slemming 20 kg | K28: 50410636 | L28: =ROUNDUP(AA13/20,0) -> 0 | M28: sekk | W28: 1.04 | X28: 4 | AB28: 0 | AC28: 0
D29: V11 | G29: 0 | W29: 1.3 | X29: 5 | AB29: =SUM(AB17:AB28) -> 0 | AC29: =SUM(AC17:AC28) -> 0
D30: V12 | G30: 0 | W30: 1.56 | X30: 6
W31: 1.82 | X31: 7 | AA31: Vertikale smyg
W32: 2.08 | X32: 8 | AB32: Vegg 2 | AC32: Vegg 3
D33: Merk: Det anbefales å bruke mørtelkasser ved legging av leca. Ta kontakt med kundeservice for mer informasjon. | W33: 2.34 | X33: 9 | AB33: =F19*2*G19 -> 0 | AC33: =F47*2*G47 -> 0
W34: 2.6 | X34: 10 | AB34: 0 | AC34: 0
J35: Universalblokk | K35: =LEFT(G8,2) -> 20 | L35: cm | W35: 2.86 | X35: 11 | AB35: 0 | AC35: 0
J36: Vegglengde | K36: =G9 -> 0 | L36: m | W36: 3.12 | X36: 12 | AB36: 0 | AC36: 0
C37: Universal 2 | D37: Bredde | G37: 20 cm | J37: Vegghøyde | K37: =G10 -> 0 | L37: m | W37: 3.38 | X37: 13 | AB37: 0 | AC37: 0
D38: Vegglengde | G38: 0 | H38: m | J38: Antall skift | K38: =VLOOKUP(G10,W24:X59,2,FALSE) -> 0 | L38: skift | W38: 3.64 | X38: 14 | AB38: 0 | AC38: 0
D39: Vegghøyde | G39: 0 | H39: m | J39: Antall løpemeter såleblokk | K39: =IF(G12="Ja",G9,0) -> 0 | L39: m | W39: 3.9 | X39: 15 | AB39: 0 | AC39: 0
D40: Antall hjørner | G40: 0 | H40: stk | J40: Antall løpemeter U-blokk murkrone | K40: =IF(G13="Ja",G9,0) -> 0 | L40: m | W40: 4.16 | X40: 16 | AB40: 0 | AC40: 0
D41: Såleblokk | G41: Nei | J41: Antall løpemeter U-blokk overdekning | K41: =AB77 -> 0 | L41: m | W41: 4.42 | X41: 17 | AB41: 0 | AC41: 0
D42: U-blokk | G42: Nei | J42: Antall stk hjørne | K42: =G11 -> 0 | L42: stk | W42: 4.68 | X42: 18 | AB42: 0 | AC42: 0
D43: Antall skift: | G43: =K51 -> 0 | H43: skift | J43: Totalt åpningsareal | K43: =AB61 -> 0 | L43: m2 | W43: 4.94 | X43: 19 | AB43: 0 | AC43: 0
D44: Netto veggareal: | G44: =K58 -> 0 | H44: m2 | J44: Brutto veggareal | K44: =K37*K36 -> 0 | L44: m2 | W44: 5.2 | X44: 20 | AB44: 0 | AC44: 0
J45: Netto veggareal | K45: =K44-K43 -> 0 | L45: m2 | W45: 5.46 | X45: 21 | AB45: =SUM(AB33:AB44) -> 0 | AC45: =SUM(AC33:AC44) -> 0
E46: Bredde | F46: Høyde | G46: Antall | W46: 5.72 | X46: 22
D47: V1 | G47: 0 | J47: Universal 2 | W47: 5.98 | X47: 23 | AA47: Totalt åpningsareal
D48: V2 | G48: 0 | J48: Universalblokk | K48: =LEFT(G37,2) -> 20 | L48: cm | W48: 6.24 | X48: 24 | AB48: Vegg 2 | AC48: Vegg 3
D49: V3 | G49: 0 | J49: Vegglengde | K49: =G38 -> 0 | L49: m | W49: 6.5 | X49: 25 | AB49: =E19*F19*G19 -> 0 | AC49: =E47*F47*G47 -> 0
D50: V4 | G50: 0 | J50: Vegghøyde | K50: =G39 -> 0 | L50: m | W50: 6.76 | X50: 26 | AB50: 0 | AC50: 0
D51: V5 | G51: 0 | J51: Antall skift | K51: =VLOOKUP(G39,W24:X59,2,FALSE) -> 0 | L51: skift | W51: 7.02 | X51: 27 | AB51: 0 | AC51: 0
D52: V6 | G52: 0 | J52: Antall løpemeter såleblokk | K52: =IF(G41="Ja",G38,0) -> 0 | L52: m | W52: 7.28 | X52: 28 | AB52: 0 | AC52: 0
D53: V7 | G53: 0 | J53: Antall løpemeter U-blokk murkrone | K53: =IF(G42="Ja",G38,0) -> 0 | L53: m | W53: 7.54 | X53: 29 | AB53: 0 | AC53: 0
D54: V8 | G54: 0 | J54: Antall løpemeter U-blokk overdekning | K54: =AC77 -> 0 | L54: m | W54: 7.8 | X54: 30 | AB54: 0 | AC54: 0
D55: V9 | G55: 0 | J55: Antall stk hjørne | K55: =G40 -> 0 | L55: stk | W55: 8.06 | X55: 31 | AB55: 0 | AC55: 0
D56: V10 | G56: 0 | J56: Totalt åpningsareal | K56: =AC61 -> 0 | L56: m2 | W56: 8.32 | X56: 32 | AB56: 0 | AC56: 0
D57: V11 | G57: 0 | J57: Brutto veggareal | K57: =K50*K49 -> 0 | L57: m2 | W57: 8.58 | X57: 33 | AB57: 0 | AC57: 0
D58: V12 | G58: 0 | J58: Netto veggareal | K58: =K57-K56 -> 0 | L58: m2 | W58: 8.84 | X58: 34 | AB58: 0 | AC58: 0
W59: 9.1 | X59: 35 | AB59: 0 | AC59: 0
AB60: 0 | AC60: 0
AB61: =SUM(AB49:AB60) -> 0 | AC61: =SUM(AC49:AC60) -> 0
AA63: U-blokk bjelke
AB64: Vegg 2 | AC64: Vegg 3
AB65: =(E19+0.5)*G19 -> 0 | AC65: =(E47+0.5)*G47 -> 0
AB66: 0 | AC66: 0
AB67: 0 | AC67: 0
AB68: 0 | AC68: 0
AB69: 0 | AC69: 0
AB70: 0 | AC70: 0
AB71: 0 | AC71: 0
AB72: 0 | AC72: 0
AB73: 0 | AC73: 0
AB74: 0 | AC74: 0
AB75: 0 | AC75: 0
AB76: 0 | AC76: 0
AB77: =SUM(AB65:AB76) -> 0 | AC77: =SUM(AC65:AC76) -> 0

Sheet Fasadeblokk (hidden)
E4: Forside | G4: Lecablokker
D5: Fasadeblokk
F6: Inndata
D7: Netto veggareal (uten vinduer/dører) | E7: (inntasting) | F7: 0 | G7: m2
D8: Antall meter hjørne | E8: (inntasting) | F8: 0 | G8: m
D9: Fasadebjelke (12,5 x 25 x 300 cm) | E9: (inntasting) | F9: 0 | G9: stk
D10: Omkrets på huset | E10: (inntasting) | F10: 0 | G10: m
D11: Velg bakveggtype | E11: (flervalg) | F11: Betong | L11: 2 | M11: 3 | N11: 4 | O11: 5 | P11: 6 | Q11: 7 | R11: 8 | S11: 9 | T11: 10 | V11: 12 | W11: 13 | X11: 14 | Y11: 15 | Z11: 16 | AA11: 17 | AB11: 18 | AC11: 19 | AD11: 20
K12: Liste | L12: NOBBnr | M12: Produkt 1 | N12: Enhet | O12: Pakning | P12: Forbruk/m² | Q12: Kalk. Antall | R12: Antall enhet | S12: Pris 2016 | T12: Totalpris | V12: NOBBnr | W12: Produkt 2 | X12: Enhet | Y12: Pakning | Z12: Forbruk/m² | AA12: Kalk. Antall | AB12: Antall enhet | AC12: Pris 2016 | AD12: Totalpris
D13: Materialliste: | K13: Silikatmaling | L13: 23852551 | M13: Weber.ton 303 Silikatmaling - 15 kg | N13: spann | O13: à 15 kg | P13: 0.6 | Q13: =P13*$F$7 -> 0 | R13: =ROUNDUP(Q13/15,0) -> 0 | T13: =S13*R13 -> 0 | V13: 23852502 | W13: Weber.ton 301 Silikatgrunning - 10 kg | X13: kanne | Y13: à 10 kg | Z13: 0.1 | AA13: =Z13*$F$7 -> 0 | AB13: =ROUNDUP(AA13/10,0) -> 0 | AD13: =AC13*AB13 -> 0
D14: Produkt | E14: NOBB | F14: Antall | G14: enhet | K14: Silco paint | L14: 5200859003 | M14: Silco paint std farge 20 kg | N14: spann | O14: à 20 kg | P14: 0.6 | Q14: =P14*$F$7 -> 0 | R14: =ROUNDUP(Q14/20,0) -> 0 | T14: =S14*R14 -> 0
D15: Leca Fasadeblokk 12,5 cm | E15: 60051406 | F15: =J23 -> 0 | G15: stk | K15: Silicate render | L15: 5200858965 | M15: Silicate render std farge 20 kg | N15: spann | O15: à 20 kg | P15: 2.9 | Q15: =P15*$F$7 -> 0 | R15: =ROUNDUP(Q15/20,0) -> 0 | T15: =S15*R15 -> 0 | V15: 23852551 | W15: Weber.ton 303 Silikatmaling - 15 kg | X15: spann | Y15: à 15 kg | Z15: 0.3 | AA15: =Z15*$F$7 -> 0 | AB15: =ROUNDUP(AA15/15,0) -> 0 | AD15: =AC15*AB15 -> 0
D16: Leca Fasadeblokk hjørne 12,5 cm | E16: 10899730 | F16: =J24 -> 0 | G16: stk | K16: Silco render | L16: 5200858999 | M16: Silco render std farge 20 kg | N16: spann | O16: à 20 kg | P16: 2.9 | Q16: =P16*$F$7 -> 0 | R16: =ROUNDUP(Q16/20,0) -> 0 | T16: =S16*R16 -> 0 | V16: 5200859003 | W16: Silco paint std farge 20 kg | X16: spann | Y16: à 20 kg | Z16: 0.3 | AA16: =Z16*$F$7 -> 0 | AB16: =ROUNDUP(AA16/20,0) -> 0 | AD16: =AC16*AB16 -> 0
D17: Leca Fasadebjelke - BHL = 12,5 x 25 x 300 cm | E17: 60051415 | F17: =J25 -> 0 | G17: stk
D18: Forankring småpakke til Leca Fasadeblokk | E18: 27744366 | F18: =J26 -> 0 | G18: pakke | L18: Hjørnelist | O18: Forbruk/m² | P18: Kalk. Antall
D19: Leca Fugearmering 18 mm storpakke | E19: 47095300 | F19: =INT(J28) -> 0 | G19: pakke | L19: =(#REF!+(#REF!*2))*#REF! ->  | N19: Betong | O19: 45 | P19: =ROUNDUP($F$7/O19,0) -> 0
D20: Leca Fugearmering 18 mm småpakke | E20: 46343273 | F20: =(J28-INT(J28))*10 -> 0 | G20: pakke | L20: =(#REF!+(#REF!*2))*#REF! ->  | N20: Tre/Leca | O20: 30 | P20: =ROUNDUP($F$7/O20,0) -> 0
D21: Weber Murmørtel M5 plastsekk | E21: 55244204 | F21: =ROUNDUP(J29/25,0) -> 0 | G21: sekk | L21: =(#REF!+(#REF!*2))*#REF! -> 
J22: Kalk | L22: =(#REF!+(#REF!*2))*#REF! -> 
J23: =(ROUNDUP(F7*7.7,0))-(J25*6)-J24 -> 0 | L23: =(#REF!+(#REF!*2))*#REF! -> 
C24: Merk: Det anbefales å bruke mørtelkasser ved legging av leca. Ta kontakt med kundeservice for mer informasjon. | J24: =ROUNDUP(F8*4,0) -> 0 | L24: =(#REF!+(#REF!*2))*#REF! -> 
J25: =ROUNDUP(F9,0) -> 0 | L25: =SUM(L19:L24) -> 
J26: =VLOOKUP(F11,N19:P20,3,FALSE) -> 0
J27: =ROUNDUP(F7*2.1,0) -> 0 | K27: Fugearm
J28: =ROUNDUP(J27/400,1) -> 0 | K28: Pakker
J29: =ROUNDUP(Fasadeblokk!F7*6,0) -> 0
J31: =F7*14 -> 0
J32: =F7*1.15 -> 0
J33: =F8+L25 -> 
J34: =F10 -> 0
J35: =VLOOKUP(E12,Fasadeblokk!K13:AA16,17,FALSE) -> 
J36: =VLOOKUP(E12,K13:Q16,7,FALSE) -> 

Sheet Lettvegg (hidden)
E6: Forside | G6: Lecablokker
D9: Blokktype | E9: Lettvegg 118 | H9: (flervalg) | O9: Lettvegg 118
D10: Vegglengde | F10: 0 | G10: m | H10: (inntasting) | O10: Lettvegg 88
D11: Vegghøyde | F11: 0 | G11: m | H11: (inntasting)
D12: Antall hjørner/åpen ender | F12: 0 | G12: stk | H12: (inntasting)
D13: Åpningsareal | F13: 0 | G13: m² | H13: (inntasting)
D15: Bruttoareal | F15: =F10*F11 -> 0 | G15: m²
D16: Nettoareal | F16: =F15-F13 -> 0 | G16: m²
D17: Nettoareal (2 sider) | F17: =F16*2 -> 0 | G17: m²
D20: Materialliste | E20: Produkt | F20: Nobb | G20: Antall | H20: enhet
D21: Leca | E21: =IF(E9="Lettvegg 118","Lettveggsblokk 118","Lettveggsblokk 88") -> Lettveggsblokk 118 | F21: =IF(E9="Lettvegg 118","46316805","46316786") -> 46316805 | G21: =ROUNDUP(F16*6.7,0)-G22 -> 0 | H21: stk
E22: =IF(E9="Lettvegg 118","Hjørneblokk 118","Hjørneblokk 88") -> Hjørneblokk 118 | F22: =IF(E9="Lettvegg 118","46316813","46316794") -> 46316813 | G22: =ROUNDUP((F12*F11*3.3),0) -> 0 | H22: stk
E23: Toppforankering | F23: 46343292 | G23: =ROUNDUP(F10/10,0) -> 0 | H23: eske
E24: Skinne | F24: 46343303 | G24: =ROUNDUP(F10/2.5,0) -> 0 | H24: stk
D25: Alt 1 | E25: Stonefix | F25: 47513813 | G25: =ROUNDUP(F16*0.15,0) -> 0 | H25: patron
E26: Skumpistol | F26: 47592046 | G26: =ROUNDUP(F16/300,0) -> 0 | H26: stk
E27: Twintip | F27: 47592035 | G27: =ROUNDUP(F16/500,0) -> 0 | H27: pose
E28: Weber Clean Fix | F28: 47513824 | G28: 1 | H28: patron
D29: Alt 2 | E29: Blokklim | F29: 55939921 | G29: =ROUNDUP(F16/25,0) -> 0 | H29: sekk
E30: =IF(E9="Lettvegg 118","Limkasse 118","Limkasse 88") -> Limkasse 118 | F30: =IF(E9="Lettvegg 118","46138146","46138135") -> 46138146 | G30: 1 | H30: stk
D31: OFB | E31: Sparkel RS (2 sider) | F31: 47751775 | G31: =ROUNDUP((F17*2)/12,0) -> 0 | H31: spann
C34: Merk: Det anbefales å bruke mørtelkasser ved legging av leca. Ta kontakt med kundeservice for mer informasjon.

Sheet Oppsummering (hidden)
B2: Gå til:
B3: Forside
B4: Lecablokker
B6: Leca Såleblokk 39 cm | C6: 41740262 | D6: =#REF! ->  | E6: pc | H6: Iso 35 | I6: Iso 30 | J6: Iso 25 | K6: Basic | L6: Diverse | M6: Ringmur | N6: Fas.blokk | O6: Antall | Q6: Enhet
B7: Leca Isoblokk 35 cm | C7: 51972915 | D7: =#REF! ->  | E7: pc | G7: Såleblokk 33 | H7: / | I7: ='ISO 30'!N16 -> 0 | J7: ='ISO 25'!M18 -> 0 | K7: =Basic!M16 -> 0 | L7: =Div!L18 -> 0 | M7: =[4]Ringmur!D7 -> 0 | N7: / | O7: =SUM(H7:N7) -> 0 | Q7: =O7 -> 0
B8: Leca Isoblokk 35 cm Multicut | C8: 51972926 | D8: =#REF! ->  | E8: pc | G8: Isoblokk 25 | H8: / | I8: / | J8: ='ISO 25'!M19 -> 0 | K8: / | L8: / | M8: =[4]Ringmur!D8 -> 0 | N8: / | O8: 0 | Q8: =O8 -> 0
B9: Leca Isoblokk 35 cm Lavblokk 9 cm | C9: 51972934 | D9: =#REF! ->  | E9: pc | G9: Hjørneblokk 25 | H9: / | I9: / | J9: ='ISO 25'!M20 -> 0 | K9: / | L9: / | M9: =[4]Ringmur!D10 -> 0 | N9: / | O9: 0 | Q9: =O9 -> 0
B10: Leca Iso U-blokk 35 cm | C10: 52662540 | D10: =#REF! ->  | E10: pc | G10: Tilpasningsblokk 25 | H10: / | I10: / | J10: ='ISO 25'!M21 -> 0 | K10: / | L10: / | M10: =[4]Ringmur!D9 -> 0 | N10: / | O10: 0 | Q10: =O10 -> 0
B11: Leca Isobjelke komplett, BHL = 35x20x180 cm | C11: 48700097 | D11: =#REF!+'ISO 30'!N21 ->  | E11: pc | G11: Laftestrimmel 90 | H11: / | I11: ='ISO 30'!Y18 -> 0 | J11: ='ISO 25'!W18 -> 0 | K11: / | L11: / | M11: =[4]Ringmur!G14 -> 0 | N11: / | O11: 0 | Q11: =ROUNDUP(O11/18,0) -> 0
B12: Leca Isobjelke komplett, BHL = 35x40x300 cm | C12: 48700101 | D12: =#REF! ->  | E12: pc | G12: Sikksakkarmering | H12: =#REF! ->  | I12: ='ISO 30'!Z18 -> 0 | J12: / | K12: / | L12: / | M12: / | N12: / | Q12: =ROUNDUP(O12/30.5,0) -> 
B13: Leca Såleblokk 33 cm | C13: 10523777 | D13: =Q7 -> 0 | E13: pc | G13: Fugearmering stor | H13: =#REF! ->  | I13: ='ISO 30'!Y15 -> 0 | J13: ='ISO 25'!W15 -> 0 | K13: =Basic!W13 -> 0 | L13: =Div!W12 -> 0 | M13: =[4]Ringmur!I9 -> 0 | N13: =Fasadeblokk!J27 -> 0 | O13: =SUM(H13:N14) ->  | P13: Pakker | Q13: =INT(P14) -> 
B14: Leca Isoblokk 30 cm | C14: 51972953 | D14: ='ISO 30'!N17 -> 0 | E14: pc | G14: Fugearmering små | P14: =ROUNDUP(O13/400,1) ->  | Q14: =(P14-INT(P14))*10 -> 
B15: Leca Isoblokk 30 cm Multicut | C15: 51972964 | D15: ='ISO 30'!N18 -> 0 | E15: pc | G15: U-blokkarmering | H15: =#REF! ->  | I15: ='ISO 30'!AA18 -> 0 | J15: ='ISO 25'!X18 -> 0 | K15: =Basic!Y13 -> 0 | L15: =Div!Y12 -> 0 | M15: =[4]Ringmur!G17 -> 0 | N15: / | O15: =SUM(H15:N15) ->  | Q15: =ROUNDUP(O15/20,0) -> 
B16: Leca Isoblokk 30 cm Lavblokk 9 cm | C16: 51972972 | D16: ='ISO 30'!N19 -> 0 | E16: pc | G16: M5 | H16: =#REF! ->  | I16: ='ISO 30'!Y21 -> 0 | J16: ='ISO 25'!W21 -> 0 | K16: =Basic!X16 -> 0 | L16: =Div!X15 -> 0 | M16: =[4]Ringmur!G18 -> 0 | N16: =Fasadeblokk!J29 -> 0 | Q16: =ROUNDUP(O16/25,0) -> 
B17: Leca Isoblokk U-blokk 30 cm | C17: 52662555 | D17: ='ISO 30'!N20 -> 0 | E17: pc | G17: B20 | H17: =#REF! ->  | I17: ='ISO 30'!Z21 -> 0 | J17: ='ISO 25'!X21 -> 0 | K17: =Basic!W16 -> 0 | L17: =Div!W15 -> 0 | M17: =[4]Ringmur!G19 -> 0 | N17: / | Q17: =ROUNDUP(O17/25,0) -> 
B18: Leca Isoblokk 25 cm standardblokk LSX | C18: 50523673 | D18: =Q8 -> 0 | E18: pc | G18: KC 50/50 | O18: 0 | Q18: =ROUNDUP(O18/25,0) -> 0
B19: Leca Isoblokk 25 cm hjørneblokk LSX | C19: 50523616 | D19: =Q9 -> 0 | E19: pc | G19: Grå slemming | O19: 0 | Q19: =ROUNDUP(O19/20,0) -> 0
B20: Leca Isoblokk 25 cm tilpasningsblokk LSX | C20: 50523684 | D20: =Q10 -> 0 | E20: pc | G20: Fiberpuss | O20: 0 | Q20: =ROUNDUP(O20/25,0) -> 0
B21: Leca Iso U-blokk 25 cm LSX | C21: 10523645 | D21: ='ISO 25'!M22 -> 0 | E21: pc | G21: Armeringsnett | O21: 0 | Q21: =ROUNDUP(O21/50,0) -> 0
B22: Leca Ringmursblokk 25 cm LSX | C22: 51045256 | D22: =[4]Ringmur!D11 -> 0 | E22: pc | G22: Hjørnelist | O22: 0 | Q22: =ROUNDUP(O22/2.5,0) -> 0
B23: Leca Ringmursblokk 25 cm LSX utvendig hjørne | C23: 51045135 | D23: =[4]Ringmur!D12 -> 0 | E23: pc | G23: Startlist | O23: 0 | Q23: =ROUNDUP(O23/2.5,0) -> 0
B24: Leca Ringmursblokk 25 cm LSX innvendig hjørne | C24: 51045275 | D24: =[4]Ringmur!D13 -> 0 | E24: pc | G24: Silikonharpiksmaling | O24: 0 | Q24: =ROUNDUP(O24/15,0) -> 0
B25: Leca Universalblokk 25 cm | C25: 10523538 | D25: =Div!#REF! ->  | E25: pc | G25: Silikonharpikspuss | O25: 0 | Q25: =ROUNDUP(O25/20,0) -> 0
B26: Leca Basic U-blokk 25 cm LSX | C26: 49082740 | D26: =Div!#REF! ->  | E26: pc
B27: Leca Universalblokk 20 cm | C27: 10523520 | D27: =Div!L19 -> 0 | E27: pc
B28: Leca Basic U-blokk 20 cm LSX | C28: 49082755 | D28: =Div!L20 -> 0 | E28: pc
B29: Leca Universalblokk 15 cm | C29: 47367456 | D29: =Div!L21 -> 0 | E29: pc
B30: Leca Basic U-blokk 15 cm LSX | C30: 49082766 | D30: =Div!L22 -> 0 | E30: pc
B31: =Div!#REF! ->  | C31: 10523793 | D31: =Div!#REF! ->  | E31: pc
B32: Leca Fasadeblokk 12,5 cm | C32: 10899722 | D32: =Fasadeblokk!F15 -> 0 | E32: pc
B33: Leca Fasadeblokk hjørne 12,5 cm | C33: 10899730 | D33: =Fasadeblokk!F16 -> 0 | E33: pc
B34: Leca Fasadebjelke - BHL = 12,5 x 25 x 300 cm | C34: 26442194 | D34: =Fasadeblokk!F17 -> 0 | E34: pc
B35: Forankring småpakke til Leca Fasadeblokk | C35: 27744366 | D35: =Fasadeblokk!F18 -> 0 | E35: pac
B36: Leca Basicblokk 25 cm LSX | C36: 49082717 | D36: =Basic!M17 -> 0 | E36: pc
B37: Leca Basic Hjørneblokk 25 cm LSX | C37: 49082774 | D37: =Basic!M18 -> 0 | E37: pc
B38: Leca Basic U-blokk 25 cm LSX | C38: 49082740 | D38: =Basic!M19 -> 0 | E38: pc
B39: Leca Basicblokk 20 cm LSX | C39: 49082721 | D39: =Basic!M20 -> 0 | E39: pc
B40: Leca Basic Hjørneblokk 20 cm LSX | C40: 49082785 | D40: =Basic!M21 -> 0 | E40: pc
B41: Leca Basic U-blokk 20 cm LSX | C41: 49082755 | D41: =Basic!M22 -> 0 | E41: pc
B42: Leca Basicblokk 15 cm LSX | C42: 49082736 | D42: =Basic!M23 -> 0 | E42: pc
B43: Leca Basic Hjørneblokk 15 cm LSX | C43: 49082793 | D43: =Basic!M24 -> 0 | E43: pc
B44: Leca Basic U-blokk 15 cm LSX | C44: 49082766 | D44: =Basic!M25 -> 0 | E44: pc
B46: Laftestrimmel 140 mm for Leca Isoblokk 35 cm | C46: 42941360 | D46: =#REF! ->  | E46: ro
B47: Laftestrimmel 90 mm for Leca Isoblokk | C47: 23387491 | D47: =Q11 -> 0 | E47: ro
B48: Leca Sikksakk-armering 22,5 cm | C48: 41691792 | E48: pac
B49: Leca Fugearmering 18 mm storpakke | C49: 47095300 | E49: pac
B50: Leca Fugearmering 18 mm småpakke | C50: 46343273 | E50: pac
B51: Leca U-blokkarmering småpakke | C51: 10583961 | E51: pac
B52: Weber Murmørtel M5 | C52: 46030002 | E52: bag
B53: Weber B20 | C53: 40109217 | E53: bag

Sheet VentiGuard - Intern (hidden)
A2: Veggareal uten vinduer/dører | C2: W | D2: H | E2: A
B3: A1 | E3: =C3*D3 -> 0 | L3: Omkrets på huset | M3: W1 | S3: Factor | T3: 0
B4: A2 | E4: =C4*D4 -> 0 | M4: W2
B5: A3 | E5: 0 | M5: W3 | R5: W1 | S5: 0 | T5: =S5*$T$3 -> 0
B6: A4 | E6: 0 | M6: W4 | R6: W2 | T6: =S6*$T$3 -> 0
B7: A5 | E7: 0 | M7: W5 | R7: W3 | T7: 0
B8: A6 | E8: 0 | M8: W6 | R8: W4 | T8: 0
B9: A7 | E9: 0 | M9: W7 | R9: W5 | T9: 0
B10: A8 | E10: 0 | M10: W8 | R10: W6 | T10: 0
B11: A9 | E11: 0 | N11: =SUM(N3:N10) -> 0 | R11: W7 | T11: 0
B12: A10 | E12: 0 | R12: W8 | T12: 0
B13: A11 | E13: 0 | L13: Antall meter hjørne | M13: Hjø 1 | R13: W9 | T13: 0
B14: A12 | E14: 0 | M14: Hjø 2 | R14: W10 | T14: 0
B15: A13 | E15: 0 | M15: Hjø 3 | R15: W11 | T15: 0
B16: A14 | E16: 0 | F16: Areal (vind + dør) | M16: Hjø 4 | R16: W12 | T16: 0
B17: A15 | E17: 0 | M17: Hjø 5 | R17: W13 | T17: 0
E18: =SUM(E3:E17) -> 0 | F18: =I41 -> 0 | G18: =E18-F18 -> 0 | M18: Hjø 6 | R18: W14 | T18: 0
M19: Hjø 7 | T19: =SUM(T5:T18) -> 0
M20: Hjø 8
M21: Hjø 9
A22: Antall meter Vinduer/dører (B + 2xH) | C22: Antall | D22: W | E22: H | F22: Total W | G22: Total H | I22: A | M22: Hjø 10
B23: V1 | F23: =D23*C23 -> 0 | G23: =C23*E23*2 -> 0 | I23: =D23*E23*C23 -> 0 | M23: Hjø 11
B24: V2 | F24: =D24*C24 -> 0 | G24: =C24*E24*2 -> 0 | I24: =D24*E24*C24 -> 0 | M24: Hjø 12
B25: V3 | F25: 0 | G25: 0 | I25: 0 | M25: Hjø 13
B26: V4 | F26: 0 | G26: 0 | I26: 0 | M26: Hjø 14
B27: V5 | F27: 0 | G27: 0 | I27: 0 | M27: Hjø 15
B28: V6 | F28: 0 | G28: 0 | I28: 0 | M28: Hjø 16
B29: V7 | F29: 0 | G29: 0 | I29: 0 | M29: Hjø 17
B30: V8 | F30: 0 | G30: 0 | I30: 0 | M30: Hjø 18
B31: V9 | F31: 0 | G31: 0 | I31: 0 | M31: Hjø 19
B32: V10 | F32: 0 | G32: 0 | I32: 0 | M32: Hjø 20
B33: V11 | F33: 0 | G33: 0 | I33: 0 | N33: =SUM(N13:N32) -> 0
B34: V12 | F34: 0 | G34: 0 | I34: 0
B35: V13 | F35: 0 | G35: 0 | I35: 0
B36: V14 | F36: 0 | G36: 0 | I36: 0 | L36: Antall mot annen type fasade | M36: K1
B37: V15 | F37: 0 | G37: 0 | I37: 0 | M37: K2
B38: V16 | F38: 0 | G38: 0 | I38: 0 | M38: K3
B39: V17 | F39: 0 | G39: 0 | I39: 0 | M39: K4
B40: V18 | F40: 0 | G40: 0 | I40: 0 | M40: K5
F41: =SUM(F23:F40) -> 0 | G41: =SUM(G23:G40) -> 0 | I41: =SUM(I23:I40) -> 0 | M41: K6
M42: K7
F43: B + 2xH | M43: K8
F44: =SUM(F41:G41) -> 0 | N44: =SUM(N36:N43) -> 0

Sheet VentiGuard (hidden)
F4: Forside
D7: VentiGuard / VentiGuard Extreme
H9: Inndata | L9: NOBBnr | M9: Produkt 1 | N9: Pakning | O9: Kalk. Antall | P9: Antall enhet
D10: Veggareal uten vinduer/dører | G10: (inntasting) | H10: 0 | I10: m2 | K10: Spiker båndet | L10: 48153136 | M10: Spiker Båndet A2 40x2,1 mm | N10: à 1300 stk | O10: =ROUNDUP(H10*24,0) -> 0 | P10: =ROUNDUP(O10/1300,0) -> 0
D11: Antall meter vinduer/dører (B + 2xH) | G11: (inntasting) | H11: 0 | I11: m | K11: Rustfri skrue | L11: 43131253 | M11: Rustfri skrue 35 mm | N11: à 250 stk | O11: =ROUNDUP(H10*15,0) -> 0 | P11: =ROUNDUP(O11/250,0) -> 0
D12: Omkrets på huset | G12: (inntasting) | H12: 0 | I12: m
D13: Antall meter hjørne | G13: (inntasting) | H13: ='VentiGuard - Intern'!N33 -> 0 | I13: m
D14: Antall meter mot annen type fasade | G14: (inntasting) | H14: ='VentiGuard - Intern'!N44 -> 0 | I14: m
L15: 2 | M15: 3 | N15: 4 | O15: 5 | P15: 6 | Q15: 7 | R15: 8 | V15: 12 | W15: 13 | X15: 14 | Y15: 15 | Z15: 16 | AA15: 17 | AB15: 18
D16: Innfesting | F16: (flervalg) | G16: Spiker båndet | K16: Liste | L16: NOBBnr | M16: Produkt 1 | N16: Enhet | O16: Pakning | P16: Forbruk/m² | Q16: Kalk. Antall | R16: Antall enhet | V16: NOBBnr | W16: Produkt 2 | X16: Enhet | Y16: Pakning | Z16: Forbruk/m² | AA16: Kalk. Antall | AB16: Antall enhet
K17: Silikatmaling | L17: 23852551 | M17: weber.ton 303 Silikatmaling - 15 kg | N17: spann | O17: à 15 kg | P17: 0.6 | Q17: =($H$10+$H$11*0.1)*P17 -> 0 | R17: =ROUNDUP(Q17/15,0) -> 0 | V17: 23852502 | W17: weber.ton 301 Silikatgrunning - 10 kg | X17: kanne | Y17: à 10 kg | Z17: 0.1 | AA17: =($H$10+$H$11*0.1)*Z17 -> 0 | AB17: =ROUNDUP(AA17/10,0) -> 0
D18: Kun VG Extreme: velg sluttbehandling | F18: (flervalg) | G18: Silco render | K18: Silco paint | L18: 30171474 | M18: Silco paint std farge 15 kg | N18: spann | O18: à 15 kg | P18: 0.6 | Q18: =($H$10+$H$11*0.1)*P18 -> 0 | R18: =ROUNDUP(Q18/15,0) -> 0
K19: Silicate render | L19: 28167625 | M19: Silicate render std farge 20 kg | N19: spann | O19: à 20 kg | P19: 2.6 | Q19: =($H$10+$H$11*0.1)*P19 -> 0 | R19: =ROUNDUP(Q19/20,0) -> 0 | V19: 23852551 | W19: weber.ton 303 Silikatmaling - 15 kg | X19: spann | Y19: à 15 kg | Z19: 0.3 | AA19: =($H$10+$H$11*0.1)*Z19 -> 0 | AB19: =ROUNDUP(AA19/15,0) -> 0
D20: Gå videre ved å velge under: | K20: Silco render | L20: 30171516 | M20: Silco render std farge 20 kg | N20: spann | O20: à 20 kg | P20: 2.6 | Q20: =($H$10+$H$11*0.1)*P20 -> 0 | R20: =ROUNDUP(Q20/20,0) -> 0 | V20: 30171474 | W20: Silco paint std farge 15 kg | X20: spann | Y20: à 15 kg | Z20: 0.3 | AA20: =($H$10+$H$11*0.1)*Z20 -> 0 | AB20: =ROUNDUP(AA20/15,0) -> 0
K21: TopDry Render 1,5 mm | L21: 53601312 | M21: weber TopDry Render 1,5 mm - 20 kg | N21: spann | O21: à 20 kg | P21: 2.6 | Q21: =($H$10+$H$11*0.1)*P21 -> 0 | R21: =ROUNDUP(Q21/20,0) -> 0 | V21: 30171474 | W21: Silco paint std farge 15 kg | X21: spann | Y21: à 15 kg | Z21: 0.3 | AA21: =($H$10+$H$11*0.1)*Z21 -> 0 | AB21: =ROUNDUP(AA21/15,0) -> 0
D22: Materialliste VentiGuard | F22: Materialliste VentiGuard E
I26: Sist oppdatert 01.10.2018

Sheet Sheet1 (hidden)

Sheet Sheet2 (hidden)

Sheet Sheet3 (hidden)

Sheet Materialliste VentiGuard (hidden)
E7: Forside | H7: VentiGuard
C9: Weber VentiGuard - Materialliste
C11: Nobb-nr | D11: Produkt | E11: Kalk. antall | G11: Ant. Enhet | I11: Pakning | K11: Pris
C12: 48118662 | D12: Weber.pas FlexiGuard - 20 kg | E12: =(VentiGuard!H10+VentiGuard!H11*0.1)*6 -> 0 | G12: =ROUNDUP((E12/20),0) -> 0 | H12: Spann | I12: à 20 kg | K12: =G12*415 -> 0
C13: 48150620 | D13: Weber.therm 117 Armeringsnett | E13: =(VentiGuard!H10+VentiGuard!H11*0.1)*1.15 -> 0 | G13: =ROUNDUP((E13/55),0) -> 0 | H13: Rull | I13: à 55 m² | K13: =G13*730 -> 0
C14: 30171516 | D14: Silco Render std farge 20 kg | E14: =(VentiGuard!H10+VentiGuard!H11*0.1)*2.6 -> 0 | G14: =ROUNDUP((E14/20),0) -> 0 | H14: Spann | I14: à 20 kg | K14: =G14*1019 -> 0
C15: 57869961 | D15: Aquapanel Outdoor | E15: =ROUNDUP(VentiGuard!H10+VentiGuard!H11*0.1,0) -> 0 | G15: =ROUNDUP(E15/1.08,0) -> 0 | H15: Stk | I15: à 1,08 m² | K15: =G15*259.2 -> 0
C16: =VLOOKUP(VentiGuard!G16,VentiGuard!K10:L11,2,FALSE) -> 48153136 | D16: =VLOOKUP(VentiGuard!G16,VentiGuard!K10:M11,3,FALSE) -> Spiker Båndet A2 40x2,1 mm | E16: =VLOOKUP(VentiGuard!G16,VentiGuard!K10:O11,5,FALSE) -> 0 | G16: =VLOOKUP(VentiGuard!G16,VentiGuard!K10:P11,6,FALSE) -> 0 | H16: Eske | I16: =VLOOKUP(VentiGuard!G16,VentiGuard!K10:N11,4,FALSE) -> à 1300 stk | K16: =VLOOKUP(C16,VentiGuard!L10:Q11,6,FALSE)*G16 -> 0
C17: 55367393 | D17: Weber 404 Startlist 4 mm | E17: =VentiGuard!H12 -> 0 | G17: =ROUNDUP((E17/2.5),0) -> 0 | H17: Stk | I17: à 2,5 m | K17: =G17*127 -> 0
C18: 48358565 | D18: Weber 424 Vindusprofil 4 mm | E18: =VentiGuard!H11 -> 0 | G18: =ROUNDUP((E18/2.6),0) -> 0 | H18: Stk | I18: à 2,6 m | K18: =G18*104 -> 0
C19: 44672441 | D19: Weber.therm Fugebånd 3-10 mm | E19: =VentiGuard!H14+VentiGuard!H11 -> 0 | G19: =ROUNDUP((E19/10),0) -> 0 | H19: Rull | I19: à 10 m | K19: =G19*152 -> 0
C20: 57187253 | D20: Weber.therm 391 Hjørnelist | E20: =VentiGuard!H11+VentiGuard!H13 -> 0 | G20: =ROUNDUP((E20/2.5),0) -> 0 | H20: Stk | I20: à 2,5 m | K20: =G20*56 -> 0
C21: Alternativ Sluttpuss: TopDry
C22: 53601312 | D22: weber TopDry Render 1,5 mm - 20 kg | E22: =VentiGuard!Q21 -> 0 | G22: =VentiGuard!R21 -> 0 | H22: Spann | I22: à 20 kg

Sheet Materialliste VentiGuard E (hidden)
E7: Forside | H7: VentiGuard
C9: Weber VentiGuard Extreme - Materialliste
C10: Nobb-nr | D10: Produkt | E10: Kalk. antall | G10: Ant. Enhet | I10: Pakning
C11: 48390436 | D11: Weber.base 261 Fiberpuss - 25 kg | E11: =(VentiGuard!H10+VentiGuard!H11*0.1)*14 -> 0 | G11: =ROUNDUP(E11/25,0) -> 0 | H11: Sekk | I11: à 25 kg | K11: =G11*157 -> 0
C12: 23826282 | D12: Weber.therm 397 Armeringsnett | E12: =(VentiGuard!H10+VentiGuard!H11*0.1)*1.15 -> 0 | G12: =ROUNDUP((E12/50),0) -> 0 | H12: Rull | I12: à 50 m² | K12: =G12*799 -> 0
C13: =IF(VLOOKUP(VentiGuard!G18,VentiGuard!K17:V21,12,FALSE)="","",VLOOKUP(VentiGuard!G18,VentiGuard!K17:V21,12,FALSE)) -> 30171474 | D13: =IF(VLOOKUP(VentiGuard!G18,VentiGuard!K17:W21,13,FALSE)="","",VLOOKUP(VentiGuard!G18,VentiGuard!K17:W21,13,FALSE)) -> Silco paint std farge 15 kg | E13: =VLOOKUP(VentiGuard!G18,VentiGuard!K17:AA23,17,FALSE) -> 0 | G13: =VLOOKUP(VentiGuard!G18,VentiGuard!K17:AB23,18,FALSE) -> 0 | H13: Spann | I13: =VLOOKUP(VentiGuard!G18,VentiGuard!K17:Y23,15,FALSE) -> à 15 kg | K13: =VLOOKUP(VentiGuard!#REF!,VentiGuard!K17:AD23,20,FALSE) -> 
C14: =VLOOKUP(VentiGuard!G18,VentiGuard!K17:L21,2,FALSE) -> 30171516 | D14: =VLOOKUP(VentiGuard!G18,VentiGuard!K17:M21,3,FALSE) -> Silco render std farge 20 kg | E14: =VLOOKUP(VentiGuard!G18,VentiGuard!K17:Q21,7,FALSE) -> 0 | G14: =VLOOKUP(VentiGuard!G18,VentiGuard!K17:R21,8,FALSE) -> 0 | H14: Spann | I14: =VLOOKUP(VentiGuard!G18,VentiGuard!K17:O21,5,FALSE) -> à 20 kg | K14: =VLOOKUP(VentiGuard!#REF!,VentiGuard!K17:T23,10,FALSE) -> 
C15: 57869961 | D15: Aquapanel Outdoor | E15: =ROUNDUP(VentiGuard!H10+VentiGuard!H11*0.1,0) -> 0 | G15: =ROUNDUP(E15/1.08,0) -> 0 | H15: Stk | I15: à 1,08 m² | K15: =G15*259.2 -> 0
C16: =VLOOKUP(VentiGuard!G16,VentiGuard!K10:L11,2,FALSE) -> 48153136 | D16: =VLOOKUP(VentiGuard!G16,VentiGuard!K10:M11,3,FALSE) -> Spiker Båndet A2 40x2,1 mm | E16: =VLOOKUP(VentiGuard!G16,VentiGuard!K10:O11,5,FALSE) -> 0 | G16: =VLOOKUP(VentiGuard!G16,VentiGuard!K10:P11,6,FALSE) -> 0 | H16: Eske | I16: =VLOOKUP(VentiGuard!G16,VentiGuard!K10:N11,4,FALSE) -> à 1300 stk | K16: =VLOOKUP(C16,VentiGuard!L10:Q11,6,FALSE)*G16 -> 0
C17: 40169500 | D17: Utvendig skjøtetape 0,1x50 m | E17: =VentiGuard!H10*2.1 -> 0 | G17: =ROUNDUP(E17/50,0) -> 0 | H17: Rull | I17: à 50 m | K17: =G17*261 -> 0
C18: 42160886 | D18: Sparkelmasse Grå 20kg Aquapanel Outdoor | E18: =VentiGuard!H10*0.7 -> 0 | G18: =ROUNDUP((E18/20),0) -> 0 | H18: Sekk | I18: à 20 kg | K18: =G18*462 -> 0
C19: 55367385 | D19: Weber 401 Startlist 8 mm | E19: =VentiGuard!H12 -> 0 | G19: =ROUNDUP((E19/2.5),0) -> 0 | H19: Stk | I19: à 2,5 m | K19: =G19*128 -> 0
C20: 48358573 | D20: Weber 428 Vindusprofil 8 mm | E20: =VentiGuard!H11 -> 0 | G20: =ROUNDUP((E20/2.6),0) -> 0 | H20: Stk | I20: à 2,6 m | K20: =G20*104 -> 0
C21: 44672441 | D21: Weber.therm Fugebånd 3-10 mm | E21: =VentiGuard!H14+VentiGuard!H11 -> 0 | G21: =ROUNDUP((E21/10),0) -> 0 | H21: Rull | I21: à 10 m | K21: =G21*152 -> 0
C22: 57187253 | D22: Weber.therm 391 Hjørnelist | E22: =VentiGuard!H11+VentiGuard!H13 -> 0 | G22: =ROUNDUP((E22/2.5),0) -> 0 | H22: Stk | I22: à 2,5 m | K22: =G22*56 -> 0

Sheet Lecablokker (hidden)
J4: Forside
D7: Lecablokk Kalkulasjoner
C9: ISO 30 | H9: Fasadeblokk
C13: ISO 25 | H13: Lettveggsblokk
C17: Basicblokk | H17: Universalblokk

Sheet Leca Venti Ettløps Pipe (hidden)
F4: Forside
F11: Pipehøyde (nr.1) | G11: 0 | H11: m | I11: (flervalg) | J11: ?
F12: Antall meter pipe over tak | G12: 0 | H12: m | I12: (inntasting)
F13: Antall sider overflatebehandling innendørs | G13: 0 | I13: (inntasting)
F14: Antall innerrør med røykinnføring | G14: 0 | H14: stk | I14: (inntasting) | J14: ?
F16: Skal pipen ha toppbeslag & pipehatt? | G16: Ja | I16: (flervalg) | J16: ?
F17: Skal pipen ha heltekkende beslag? | G17: Nei | I17: (flervalg) | J17: ?
F18: Forlenger for Heltekkende pipebeslag? | G18: Nei | I18: (flervalg) | J18: ?
F19: Skal du dekke taket med takstein | G19: Takstein | I19: (flervalg) | J19: ?
F20: eller papp (flatt takbelegg)?
F22: Antall pipe | G22: 0 | H22: stk | I22: (inntasting)
F26: Pipehøyde (nr. 2) | G26: 0 | H26: m | I26: (flervalg) | J26: ?
F27: Antall meter pipe over tak | G27: 0 | H27: m | I27: (inntasting)
F28: Antall sider overflatebehandling innendørs | G28: 0 | I28: (inntasting)
F29: Antall innerrør med røykinnføring* | G29: 0 | H29: stk | I29: (inntasting) | J29: ?
F31: Skal pipen ha toppbeslag & pipehatt? | G31: Ja | I31: (flervalg) | J31: ?
F32: Skal pipen ha heltekkende beslag? | G32: Nei | I32: (flervalg) | J32: ?
F33: Forlenger for Heltekkende pipebeslag? | G33: Nei | I33: (flervalg) | J33: ?
F34: Skal du dekke taket med takstein | G34: Takstein | I34: (flervalg) | J34: ?
F35: eller papp (flatt takbelegg)?
F37: Antall pipe | G37: 0 | H37: stk | I37: (inntasting)
D39: Klikk her for: | F39: Materialliste Ettløps

Sheet Leca Venti Toløps Pipe (hidden)
H4: Forside
E10: Pipehøyde (nr.1) | F10: 0 | G10: m | H10: (flervalg) | I10: ?
E11: Antall meter pipe over tak | F11: 0 | G11: m | H11: (inntasting)
E12: Antall sider overflatebehandling innendørs | F12: 0 | H12: (inntasting)
E14: Skal pipen ha toppbeslag & pipehatt? | F14: Ja | H14: (flervalg) | I14: ?
E15: Antall innerrør med røykinnføring | F15: 0 | G15: stk | H15: (inntasting) | I15: ?
E16: Antall meter pipeløp fyllet med | F16: 0 | G16: m | H16: (inntasting) | I16: ?
E17: løs Leca ved flere etasjer
E19: Antall pipe | F19: 0 | G19: stk | H19: (inntasting)
E23: Pipehøyde (nr.2) | F23: 0 | G23: m | H23: (flervalg) | I23: ?
E24: Antall meter pipe over tak | F24: 0 | G24: m | H24: (inntasting)
E25: Antall sider overflatebehandling innendørs | F25: 0 | H25: (inntasting)
E27: Skal pipen ha toppbeslag & pipehatt? | F27: Ja | H27: (flervalg) | I27: ?
E28: Antall innerrør med røykinnføring | F28: 0 | G28: stk | H28: (inntasting) | I28: ?
E29: Antall meter pipeløp fyllet med | F29: 0 | G29: m | H29: (inntasting) | I29: ?
E30: løs Leca ved flere etasjer
E32: Antall pipe | F32: 0 | G32: stk | H32: (inntasting)
D34: Klikk her for: | E34: Materialliste Toløps

Sheet Materialliste Toløps (hidden)
O9: Byggkalkulasjon - materialliste | U9: Forside | X9: Leca Venti Toløps Pipe
A12: Nobb-nr | B12: Produkt | E12: Kalk. antall | H12: Ant. enhet | J12: Enhet | K12: Pris | N12: Enhet pris 2017 | O12: Sortert etter produktnavn for begge piper:
A13: Leca Venti toløps pipe, H= | C13: ='Leca Venti Toløps Pipe'!F10 -> 0 | D13: m | E13: for | F13: ='Leca Venti Toløps Pipe'!F19 -> 0 | G13: stk
A14: 47978586 | B14: Pipeelement 20x48x82 cm toløps pipe | E14: =(VLOOKUP('Leca Venti Toløps Pipe'!F10,Data!O7:S53,5,FALSE))*'Leca Venti Toløps Pipe'!F19 -> 0 | H14: =E14 -> 0 | I14: à 1 stk | J14: stk | K14: =H14*N14 -> 0 | N14: 154 | O14: Nobb-nr | P14: Produkt | S14: Kalk. antall | V14: Ant. enhet | Y14: Enhet
A15: 47978624 | B15: Sotluke til toløps Leca Venti Pipe | E15: =2*'Leca Venti Toløps Pipe'!F19 -> 0 | H15: 0 | I15: à 1 stk | J15: stk | K15: =H15*N15 -> 0 | N15: 598 | O15: 47978586 | P15: Pipeelement 20x48x82 cm | S15: =E14+E31 -> 0 | V15: =S15 -> 0 | W15: à 1 stk | Y15: stk
A16: 47704186 | B16: Innerrør 50 cm Ø18 cm til Leca Venti Pipe | E16: =((VLOOKUP('Leca Venti Toløps Pipe'!F10,Data!O7:T53,6,FALSE))*'Leca Venti Toløps Pipe'!F19)-E20 -> 0 | H16: 0 | I16: à 1 stk | J16: stk | K16: 0 | N16: 282 | O16: 47978624 | P16: Sotluke til toløps Leca Venti Pipe | S16: 0 | V16: 0 | W16: à 1 stk | Y16: stk
A17: 47704194 | B17: Innerrør 25 cm Ø18 cm til Leca Venti Pipe | E17: =(VLOOKUP('Leca Venti Toløps Pipe'!F10,Data!O7:U53,7,FALSE))*'Leca Venti Toløps Pipe'!F19 -> 0 | H17: 0 | I17: à 1 stk | J17: stk | K17: 0 | N17: 191 | O17: 47704186 | P17: Innerrør 50 cm Ø18 cm til Leca Venti Pipe | S17: 0 | V17: 0 | W17: à 1 stk | Y17: stk
A18: 47704205 | B18: Innerrør uisolert 25 cm Ø18 cm | E18: =2*'Leca Venti Toløps Pipe'!F19 -> 0 | H18: 0 | I18: à 1 stk | J18: stk | K18: 0 | N18: 69 | O18: 47704194 | P18: Innerrør 25 cm Ø18 cm til Leca Venti Pipe | S18: 0 | V18: 0 | W18: à 1 stk | Y18: stk
A19: 47704213 | B19: Innerrør uisolert m/sotluke 50 cm Ø18cm | E19: =2*'Leca Venti Toløps Pipe'!F19 -> 0 | H19: 0 | I19: à 1 stk | J19: stk | K19: 0 | N19: 362 | O19: 47704205 | P19: Innerrør uisolert 25 cm Ø18 cm | S19: 0 | V19: 0 | W19: à 1 stk | Y19: stk
A20: 47704224 | B20: Innerrør m/røykinnføring 50 cm Ø18 cm | E20: ='Leca Venti Toløps Pipe'!F15*'Leca Venti Toløps Pipe'!F19 -> 0 | H20: 0 | I20: à 1 stk | J20: stk | K20: 0 | N20: 734 | O20: 47704213 | P20: Innerrør uisolert m/sotluke 50 cm Ø18cm | S20: 0 | V20: 0 | W20: à 1 stk | Y20: stk
A21: 10586147 | B21: Leca Ildfast masse - 0,3 liter | E21: =(VLOOKUP('Leca Venti Toløps Pipe'!F10,Data!O7:V53,8,FALSE))*'Leca Venti Toløps Pipe'!F19 -> 0 | H21: 0 | I21: à 1 stk | J21: patron | K21: 0 | N21: 87 | O21: 47704224 | P21: Innerrør m/røykinnføring 50 cm Ø18 cm | S21: 0 | V21: 0 | W21: à 1 stk | Y21: stk
A22: 41600172 | B22: Toppbeslag for toløps Leca Venti Pipe | E22: =(VLOOKUP('Leca Venti Toløps Pipe'!F14,Data!Q57:R58,2,FALSE))*'Leca Venti Toløps Pipe'!F19 -> 0 | H22: 0 | I22: à 1 stk | J22: stk | K22: 0 | N22: 1493 | O22: 10586147 | P22: Leca Ildfast masse - 0,3 liter | S22: 0 | V22: 0 | W22: à 1 stk | Y22: patron
A23: 41856901 | B23: Pipehatt Leca Venti Pipe | E23: =(VLOOKUP('Leca Venti Toløps Pipe'!F14,Data!Q57:S58,3,FALSE))*'Leca Venti Toløps Pipe'!F19 -> 0 | H23: 0 | I23: à 1 stk | J23: stk | K23: 0 | N23: 864 | O23: 41600172 | P23: Toppbeslag for toløps Leca Venti Pipe | S23: 0 | V23: 0 | W23: à 1 stk | Y23: stk
A24: 50410636 | B24: Weber Grå Slemming - 20 kg | E24: =(ROUNDUP('Leca Venti Toløps Pipe'!F11*2.6*6,0))*'Leca Venti Toløps Pipe'!F19 -> 0 | H24: =ROUNDUP(E24/20,0) -> 0 | I24: à 20 kg | J24: sekk | K24: 0 | N24: 137 | O24: 41856901 | P24: Pipehatt Leca Venti Pipe | S24: 0 | V24: 0 | W24: à 1 stk | Y24: stk
A25: 5200854263 | B25: Weber.base KC 50/50 - 25 kg | E25: =(ROUNDUP((('Leca Venti Toløps Pipe'!F10-'Leca Venti Toløps Pipe'!F11)/21)*'Leca Venti Toløps Pipe'!F12*100*2.33,0))*'Leca Venti Toløps Pipe'!F19 -> 0 | H25: =CEILING(E25,25)/25 -> 0 | I25: à 25 kg | J25: sekk | K25: 0 | N25: 71 | O25: 50410636 | P25: Weber Grå Slemming - 20 kg | S25: 0 | V25: =H24+H41 -> 0 | W25: à 20 kg | Y25: sekk
A26: 5200854261 | B26: Weber Murmørtel M5 - 25 kg | E26: =(ROUNDUP(('Leca Venti Toløps Pipe'!F10/21)*100*3,0))*'Leca Venti Toløps Pipe'!F19 -> 0 | H26: =CEILING(E26,25)/25 -> 0 | I26: à 25 kg | J26: sekk | K26: 0 | N26: 52.3 | O26: 55244238 | P26: Weber.base KC 35/65 - 25 kg | S26: 0 | V26: =H25+H42 -> 0 | W26: à 25 kg | Y26: sekk
A27: 44703358 | B27: Løs Leca® Iso 10-20 - 50 liter | E27: =(ROUNDUP('Leca Venti Toløps Pipe'!F16*0.11*1000,0))*'Leca Venti Toløps Pipe'!F19 -> 0 | H27: =CEILING(E27,50)/50 -> 0 | I27: à 50 ltr | J27: sekk | K27: 0 | N27: 102 | O27: 55244204 | P27: Weber Murmørtel M5 - 25 kg | S27: 0 | V27: =H26+H43 -> 0 | W27: à 25 kg | Y27: sekk
A28: 5200854255 | B28: Weber B20 - 25 kg | E28: =IF(E27=0,"0",75*F13) -> 0 | H28: =IF(E27=0,"0",E28/25) -> 0 | I28: à 25 kg | J28: sekk | K28: 0 | N28: 51.7 | O28: 44703358 | P28: Løs Leca® Iso 10-20 - 50 liter | S28: 0 | V28: =H27+H44 -> 0 | W28: à 50 ltr | Y28: sekk
O29: 55244174 | P29: Weber B20 - 25 kg | S29: 0 | V29: =H28+H45 -> 0 | W29: à 25 kg | Y29: sekk
A34: 47704194 | B34: Innerrør 25 cm Ø18 cm til Leca Venti Pipe | E34: =(VLOOKUP('Leca Venti Toløps Pipe'!F28,Data!O7:U53,7,FALSE))*'Leca Venti Toløps Pipe'!F32 -> 0 | H34: =E34 -> 0 | I34: à 1 stk | J34: stk | K34: =H34*N34 -> 0 | N34: 191
A35: 47704205 | B35: Innerrør uisolert 25 cm Ø18 cm | E35: =2*'Leca Venti Toløps Pipe'!F32 -> 0 | H35: 0 | I35: à 1 stk | J35: stk | K35: 0 | N35: 69
A36: 47704213 | B36: Innerrør uisolert m/sotluke 50 cm Ø18cm | E36: =2*'Leca Venti Toløps Pipe'!F32 -> 0 | H36: 0 | I36: à 1 stk | J36: stk | K36: 0 | N36: 362
A37: 47704224 | B37: Innerrør m/røykinnføring 50 cm Ø18 cm | E37: ='Leca Venti Toløps Pipe'!F28*'Leca Venti Toløps Pipe'!F32 -> 0 | H37: 0 | I37: à 1 stk | J37: stk | K37: 0 | N37: 734
A38: 10586147 | B38: Leca Ildfast masse - 0,3 liter | E38: =(VLOOKUP('Leca Venti Toløps Pipe'!F23,Data!O7:V53,8,FALSE))*'Leca Venti Toløps Pipe'!F32 -> 0 | H38: 0 | I38: à 1 stk | J38: patron | K38: 0 | N38: 87
A39: 41600172 | B39: Toppbeslag for toløps Leca Venti Pipe | E39: =(VLOOKUP('Leca Venti Toløps Pipe'!F27,Data!Q57:R58,2,FALSE))*'Leca Venti Toløps Pipe'!F32 -> 0 | H39: 0 | I39: à 1 stk | J39: stk | K39: 0 | N39: 1493
A40: 41856901 | B40: Pipehatt Leca Venti Pipe | E40: =(VLOOKUP('Leca Venti Toløps Pipe'!F27,Data!Q57:S58,3,FALSE))*'Leca Venti Toløps Pipe'!F32 -> 0 | H40: 0 | I40: à 1 stk | J40: stk | K40: 0 | N40: 864
A41: 50410636 | B41: Weber Grå Slemming - 20 kg | E41: =(ROUNDUP('Leca Venti Toløps Pipe'!F24*2.6*6,0))*'Leca Venti Toløps Pipe'!F32 -> 0 | H41: =ROUNDUP(E41/20,0) -> 0 | I41: à 20 kg | J41: sekk | K41: 0 | N41: 137
A42: 5200854263 | B42: Weber.base KC 50/50 - 25 kg | E42: =(ROUNDUP((('Leca Venti Toløps Pipe'!F23-'Leca Venti Toløps Pipe'!F24)/21)*'Leca Venti Toløps Pipe'!F25*100*2.33,0))*'Leca Venti Toløps Pipe'!F32 -> 0 | H42: =CEILING(E42,25)/25 -> 0 | I42: à 25 kg | J42: sekk | K42: 0 | N42: 71
A43: 5200854261 | B43: Weber Murmørtel M5 - 25 kg | E43: =(ROUNDUP(('Leca Venti Toløps Pipe'!F23/21)*100*3,0))*'Leca Venti Toløps Pipe'!F32 -> 0 | H43: =CEILING(E43,25)/25 -> 0 | I43: à 25 kg | J43: sekk | K43: 0 | N43: 52.3
A44: 44703358 | B44: Løs Leca® Iso 10-20 - 50 liter | E44: =(ROUNDUP('Leca Venti Toløps Pipe'!F29*0.11*1000,0))*'Leca Venti Toløps Pipe'!F32 -> 0 | H44: =CEILING(E44,50)/50 -> 0 | I44: à 50 ltr | J44: sekk | K44: 0 | N44: 102
A45: 5200854255 | B45: Weber B20 - 25 kg | E45: =IF(E44=0,"0",75*F30) -> 0 | H45: =IF(E44=0,"0",E45/25) -> 0 | I45: à 25 kg | J45: sekk | K45: 0 | N45: 51.7
J46: Totalt eks mva | K46: =SUM(K14:K28,K31:K45) -> 0
J47: MVA | K47: =K46*0.25 -> 0
J48: Totalt | K48: =SUM(K46:K47) -> 0
K49: NB: Veiledende priser

Sheet Leca Maxi Pipe (hidden)
H4: Forside
E11: Pipehøyde | F11: 0 | G11: m | H11: (flervalg) | I11: ?
E12: Antall meter pipe over tak | F12: 0 | G12: m | H12: (inntasting)
E13: Antall sider overflatebehandling innendørs | F13: 0 | H13: (inntasting)
E14: Antall røykinnføring 200 25/25 | F14: 0 | G14: stk | H14: (inntasting) | I14: ?
E16: Skal pipen ha Toppbeslag & Pipehatt? | F16: Ja | H16: (flervalg) | I16: ?
E17: Skal pipen ha Ekspansjonsblikk 25/25 cm? | F17: Nei | H17: (flervalg) | I17: ?
E19: Antall pipe | F19: 0 | G19: stk | H19: (inntasting)
D21: Klikk her for: | E21: Materialliste Maxi

Sheet Materialliste Ettløps (hidden)
U5: Forside | X5: Leca Venti Ettløps Pipe
P7: Byggkalkulasjon - materialliste
A10: Nobb-nr | B10: Produkt | E10: Kalk. antall | H10: Ant. enhet | J10: Enhet | K10: Pris | M10: Enhet pris 2017 | P10: Sortert etter produktnavn for begge piper:
A11: Leca Venti ettløps pipe, H= | C11: ='Leca Venti Ettløps Pipe'!G11 -> 0 | D11: m | E11: for | F11: ='Leca Venti Ettløps Pipe'!G22 -> 0 | G11: stk
A12: 46124154 | B12: Pipeelement 20x48x48 cm | E12: =(VLOOKUP('Leca Venti Ettløps Pipe'!G11,Data!A7:F53,6,FALSE))*F11 -> 0 | H12: =E12 -> 0 | I12: à 1 stk | J12: stk | K12: =H12*M12 -> 0 | M12: 71 | P12: Nobb-nr | Q12: Produkt | T12: Kalk. antall | W12: Ant. enhet | Y12: Enhet
A13: 46124146 | B13: Sotlukeelement 23x48x48 cm | E13: =1*'Leca Venti Ettløps Pipe'!G22 -> 0 | H13: 0 | I13: à 1 stk | J13: stk | K13: 0 | M13: 631 | P13: 46124154 | Q13: Pipeelement 20x48x48 cm | T13: =E12+E31 -> 0 | W13: =T13 -> 0 | X13: à 1 stk | Y13: stk
A14: 46124135 | B14: Sokkelelement 30x48x48 cm | E14: =1*'Leca Venti Ettløps Pipe'!G22 -> 0 | H14: =E14 -> 0 | I14: à 1 stk | J14: stk | K14: 0 | M14: 508 | P14: 46124146 | Q14: Sotlukeelement 23x48x48 cm | T14: 0 | W14: =T14 -> 0 | X14: à 1 stk | Y14: stk
A15: 47704186 | B15: Innerrør 50 cm Ø18 cm | E15: =(VLOOKUP('Leca Venti Ettløps Pipe'!G11,Data!A7:G53,7,FALSE)*'Leca Venti Ettløps Pipe'!G22)-E19 -> 0 | H15: 0 | I15: à 1 stk | J15: stk | K15: 0 | M15: 282 | P15: 46124135 | Q15: Sokkelelement 30x48x48 cm | T15: 0 | W15: 0 | X15: à 1 stk | Y15: stk
A16: 47704194 | B16: Innerrør 25 cm Ø18 cm | E16: =(VLOOKUP('Leca Venti Ettløps Pipe'!G11,Data!A7:H53,8,FALSE))*'Leca Venti Ettløps Pipe'!G22 -> 0 | H16: 0 | I16: à 1 stk | J16: stk | K16: 0 | M16: 191 | P16: 47704186 | Q16: Innerrør 50 cm Ø18 cm | T16: 0 | W16: 0 | X16: à 1 stk | Y16: stk
A17: 47704205 | B17: Innerrør uisolert 25 cm Ø18 cm | E17: =1*'Leca Venti Ettløps Pipe'!G22 -> 0 | H17: 0 | I17: à 1 stk | J17: stk | K17: 0 | M17: 69 | P17: 47704194 | Q17: Innerrør 25 cm Ø18 cm | T17: 0 | W17: 0 | X17: à 1 stk | Y17: stk
A18: 47704213 | B18: Innerrør uisolert m/sotluke 50 cm Ø18cm | E18: =1*'Leca Venti Ettløps Pipe'!G22 -> 0 | H18: 0 | I18: à 1 stk | J18: stk | K18: 0 | M18: 362 | P18: 47704205 | Q18: Innerrør uisolert 25 cm Ø18 cm | T18: 0 | W18: 0 | X18: à 1 stk | Y18: stk
A19: 47704224 | B19: Innerrør m/røykinnføring 50 cm Ø18 cm | E19: ='Leca Venti Ettløps Pipe'!G14*'Leca Venti Ettløps Pipe'!G22 -> 0 | H19: 0 | I19: à 1 stk | J19: stk | K19: 0 | M19: 734 | P19: 47704213 | Q19: Innerrør uisolert m/sotluke 50 cm Ø18cm | T19: 0 | W19: 0 | X19: à 1 stk | Y19: stk
A20: 10586147 | B20: Leca Ildfast masse - 0,3 liter | E20: =(VLOOKUP('Leca Venti Ettløps Pipe'!G11,Data!A7:I53,9,FALSE))*'Leca Venti Ettløps Pipe'!G22 -> 0 | H20: 0 | I20: à 1 stk | J20: patron | K20: 0 | M20: 87 | P20: 47704224 | Q20: Innerrør m/røykinnføring 50 cm Ø18 cm | T20: 0 | W20: 0 | X20: à 1 stk | Y20: stk
A21: 41856897 | B21: Toppbeslag for ettløps Leca Venti Pipe | E21: =VLOOKUP('Leca Venti Ettløps Pipe'!G16,Data!B57:C58,2,FALSE)*'Leca Venti Ettløps Pipe'!G22 -> 0 | H21: 0 | I21: à 1 stk | J21: stk | K21: 0 | M21: 797 | P21: 10586147 | Q21: Leca Ildfast masse - 0,3 liter | T21: 0 | W21: 0 | X21: à 1 stk | Y21: patron
A22: 41856901 | B22: Pipehatt Leca Venti Pipe | E22: =VLOOKUP('Leca Venti Ettløps Pipe'!G16,Data!B57:D58,3,FALSE)*'Leca Venti Ettløps Pipe'!G22 -> 0 | H22: 0 | I22: à 1 stk | J22: stk | K22: 0 | M22: 864 | P22: 41856897 | Q22: Toppbeslag for ettløps Leca Venti Pipe | T22: 0 | W22: 0 | X22: à 1 stk | Y22: stk
A23: 21658034 | B23: Pipebeslag heltekkende for ettløp Leca Venti Pipe | E23: =VLOOKUP('Leca Venti Ettløps Pipe'!G17,Data!I57:J58,2,FALSE)*'Leca Venti Ettløps Pipe'!G22 -> 0 | H23: =E23 -> 0 | I23: à 1 stk | J23: stk | K23: 0 | M23: 2055 | P23: 41856901 | Q23: Pipehatt Leca Venti Pipe | T23: 0 | W23: 0 | X23: à 1 stk | Y23: stk
A24: 21150891 | B24: Forlenger for heltekkende pipebeslag | E24: =(VLOOKUP('Leca Venti Ettløps Pipe'!G18,Data!I57:L58,4,FALSE))*F11 -> 0 | H24: =E24 -> 0 | I24: à 1 stk | J24: stk | K24: 0 | M24: 850 | P24: 21658034 | Q24: Pipebeslag heltekkende for ettløp Leca Venti Pipe | T24: 0 | W24: 0 | X24: à 1 stk | Y24: stk
A25: =VLOOKUP('Leca Venti Ettløps Pipe'!G19,Data!B61:G62,6,FALSE) -> 10586113 | B25: =VLOOKUP('Leca Venti Ettløps Pipe'!G19,Data!B61:C62,2,FALSE) -> Pipebeslag m/formbart fotstykke | E25: =1*F11 -> 0 | H25: =E25 -> 0 | I25: à 1 stk | J25: stk | K25: =(VLOOKUP('Leca Venti Ettløps Pipe'!G19,Data!B61:H62,7,FALSE))*H25 -> 0 | M25: data ark | P25: 21150891 | Q25: Forlenger for heltekkende pipebeslag | T25: 0 | W25: 0 | X25: à 1 stk | Y25: stk
A26: 50410636 | B26: Weber Grå Slemming - 20 kg | E26: =IF(E23=0,(ROUNDUP('Leca Venti Ettløps Pipe'!G12*1.92*6,0))*'Leca Venti Ettløps Pipe'!G22,"0") -> 0 | H26: =ROUNDUP(E26/20,0) -> 0 | I26: à 20 kg | J26: sekk | K26: =H26*M26 -> 0 | M26: 137 | P26: =A25 -> 10586113 | Q26: =B25 -> Pipebeslag m/formbart fotstykke | T26: =E25 -> 0 | W26: 0 | X26: à 1 stk | Y26: stk
A27: 5200854263 | B27: Weber.base KC 50/50 - 25 kg | E27: =(ROUNDUP((('Leca Venti Ettløps Pipe'!G11-'Leca Venti Ettløps Pipe'!G12)/21)*100*1.715*'Leca Venti Ettløps Pipe'!G13,0))*'Leca Venti Ettløps Pipe'!G22 -> 0 | H27: =CEILING(E27,25)/25 -> 0 | I27: à 25 kg | J27: sekk | K27: =H27*M27 -> 0 | M27: 71 | P27: =A44 -> 10586113 | Q27: =B44 -> Pipebeslag m/formbart fotstykke | T27: =E44 -> 0 | W27: 0 | X27: à 1 stk | Y27: stk
A28: 5200854261 | B28: Weber Murmørtel M5 - 25 kg | E28: =(ROUNDUP(('Leca Venti Ettløps Pipe'!G11/21)*100*2.1,0))*'Leca Venti Ettløps Pipe'!G22 -> 0 | H28: =CEILING(E28,25)/25 -> 0 | I28: à 25 kg | J28: sekk | K28: =H28*M28 -> 0 | M28: 52.3 | P28: 50410636 | Q28: Weber Grå Slemming - 20 kg | T28: =E26+E45 -> 0 | W28: =H26+H45 -> 0 | X28: à 20 kg | Y28: sekk
P29: 55244223 | Q29: Weber.base KC 50/50 - 25 kg | T29: =E27+E46 -> 0 | W29: =H27+H46 -> 0 | X29: à 25 kg | Y29: sekk
A30: Leca Venti ettløps pipe, H= | C30: ='Leca Venti Ettløps Pipe'!G26 -> 0 | D30: m | E30: for | F30: ='Leca Venti Ettløps Pipe'!G37 -> 0 | G30: stk | P30: 55244204 | Q30: Weber Murmørtel M5 - 25 kg | T30: =E28+E47 -> 0 | W30: =H28+H47 -> 0 | X30: à 25 kg | Y30: sekk
A31: 46124154 | B31: Pipeelement 20x48x48 cm | E31: =(VLOOKUP('Leca Venti Ettløps Pipe'!G26,Data!A7:F53,6,FALSE))*F30 -> 0 | H31: =E31 -> 0 | I31: à 1 stk | J31: stk | K31: =H31*M31 -> 0 | M31: 71
A32: 46124146 | B32: Sotlukeelement 23x48x48 cm | E32: =1*'Leca Venti Ettløps Pipe'!G37 -> 0 | H32: =E32 -> 0 | I32: à 1 stk | J32: stk | K32: 0 | M32: 631
A33: 46124135 | B33: Sokkelelement 30x48x48 cm | E33: =1*'Leca Venti Ettløps Pipe'!G37 -> 0 | H33: =E33 -> 0 | I33: à 1 stk | J33: stk | K33: 0 | M33: 508
A34: 47704186 | B34: Innerrør 50 cm Ø18 cm | E34: =(VLOOKUP('Leca Venti Ettløps Pipe'!G26,Data!A7:G53,7,FALSE)*'Leca Venti Ettløps Pipe'!G37)-E38 -> 0 | H34: =E34 -> 0 | I34: à 1 stk | J34: stk | K34: 0 | M34: 282
A35: 47704194 | B35: Innerrør 25 cm Ø18 cm | E35: =(VLOOKUP('Leca Venti Ettløps Pipe'!G26,Data!A7:H53,8,FALSE))*'Leca Venti Ettløps Pipe'!G37 -> 0 | H35: 0 | I35: à 1 stk | J35: stk | K35: 0 | M35: 191
A36: 47704205 | B36: Innerrør uisolert 25 cm Ø18 cm | E36: =1*'Leca Venti Ettløps Pipe'!G37 -> 0 | H36: 0 | I36: à 1 stk | J36: stk | K36: 0 | M36: 69
A37: 47704213 | B37: Innerrør uisolert m/sotluke 50 cm Ø18cm | E37: =1*'Leca Venti Ettløps Pipe'!G37 -> 0 | H37: 0 | I37: à 1 stk | J37: stk | K37: 0 | M37: 362
A38: 47704224 | B38: Innerrør m/røykinnføring 50 cm Ø18 cm | E38: ='Leca Venti Ettløps Pipe'!G29*'Leca Venti Ettløps Pipe'!G37 -> 0 | H38: 0 | I38: à 1 stk | J38: stk | K38: 0 | M38: 734
A39: 10586147 | B39: Leca Ildfast masse - 0,3 liter | E39: =(VLOOKUP('Leca Venti Ettløps Pipe'!G26,Data!A7:I53,9,FALSE))*'Leca Venti Ettløps Pipe'!G37 -> 0 | H39: 0 | I39: à 1 stk | J39: patron | K39: 0 | M39: 87
A40: 41856897 | B40: Toppbeslag for ettløps Leca Venti Pipe | E40: =VLOOKUP('Leca Venti Ettløps Pipe'!G31,Data!B57:C58,2,FALSE)*'Leca Venti Ettløps Pipe'!G37 -> 0 | H40: 0 | I40: à 1 stk | J40: stk | K40: 0 | M40: 797
A41: 41856901 | B41: Pipehatt Leca Venti Pipe | E41: =VLOOKUP('Leca Venti Ettløps Pipe'!G31,Data!B57:D58,3,FALSE)*'Leca Venti Ettløps Pipe'!G37 -> 0 | H41: 0 | I41: à 1 stk | J41: stk | K41: 0 | M41: 864
A42: 21658034 | B42: Pipebeslag heltekkende for ettløp Leca Venti Pipe | E42: =VLOOKUP('Leca Venti Ettløps Pipe'!G32,Data!I57:J58,2,FALSE)*'Leca Venti Ettløps Pipe'!G37 -> 0 | H42: =E42 -> 0 | I42: à 1 stk | J42: stk | K42: 0 | M42: 2055
A43: 21150891 | B43: Forlenger for heltekkende pipebeslag | E43: =(VLOOKUP('Leca Venti Ettløps Pipe'!G33,Data!I57:L58,4,FALSE))*F30 -> 0 | H43: =E43 -> 0 | I43: à 1 stk | J43: stk | K43: 0 | M43: 850
A44: =VLOOKUP('Leca Venti Ettløps Pipe'!G34,Data!B61:G62,6,FALSE) -> 10586113 | B44: =VLOOKUP('Leca Venti Ettløps Pipe'!G34,Data!B61:C62,2,FALSE) -> Pipebeslag m/formbart fotstykke | E44: =1*F30 -> 0 | H44: =E44 -> 0 | I44: à 1 stk | J44: stk | K44: =(VLOOKUP('Leca Venti Ettløps Pipe'!G34,Data!B61:H62,7,FALSE))*H44 -> 0 | M44: data ark
A45: 50410636 | B45: Weber Grå Slemming - 20 kg | E45: =IF(E42=0,(ROUNDUP('Leca Venti Ettløps Pipe'!G27*1.92*6,0))*'Leca Venti Ettløps Pipe'!G37,"0") -> 0 | H45: =ROUNDUP(E45/20,0) -> 0 | I45: à 20 kg | J45: sekk | K45: =H45*M45 -> 0 | M45: 137
A46: 5200854263 | B46: Weber.base KC 50/50 - 25 kg | E46: =(ROUNDUP((('Leca Venti Ettløps Pipe'!G26-'Leca Venti Ettløps Pipe'!G27)/21)*100*1.715*'Leca Venti Ettløps Pipe'!G28,0))*'Leca Venti Ettløps Pipe'!G37 -> 0 | H46: =CEILING(E46,25)/25 -> 0 | I46: à 25 kg | J46: sekk | K46: =H46*M46 -> 0 | M46: 71
A47: 5200854261 | B47: Weber Murmørtel M5 - 25 kg | E47: =(ROUNDUP(('Leca Venti Ettløps Pipe'!G26/21)*100*2.1,0))*'Leca Venti Ettløps Pipe'!G37 -> 0 | H47: =CEILING(E47,25)/25 -> 0 | I47: à 25 kg | J47: sekk | K47: =H47*M47 -> 0 | M47: 52.3
I48: Totalt eks mva | K48: =SUM(K31:K47,K12:K28) -> 0
I49: MVA | K49: =K48*0.25 -> 0
I50: Totalt | K50: =SUM(K48:K49) -> 0
K51: NB: Veiledende priser

Sheet Materialliste Maxi (hidden)
G7: Forside | L7: Leca Maxi Pipe
C9: Byggkalkulasjoner - materialliste
C11: Nobb-nr | D11: Produkt | G11: Kalk. antall | J11: Ant. enhet | L11: Enhet
C12: Leca Maxi pipe, H= | E12: ='Leca Maxi Pipe'!F11 -> 0 | F12: m | G12: for | H12: ='Leca Maxi Pipe'!F19 -> 0 | I12: stk
C13: 23643786 | D13: Pipeelement 20x50x50 cm | G13: =VLOOKUP('Leca Maxi Pipe'!F11,'Data (2)'!A7:B62,2,FALSE)*H12 -> 0 | J13: =G13 -> 0 | K13: à 1 stk | L13: stk
C14: 47704232 | D14: Innerrør 50x25x25 cm, isolert | G14: =(VLOOKUP('Leca Maxi Pipe'!F11,'Data (2)'!A7:C62,3,FALSE)-G17)*H12 -> 0 | J14: 0 | K14: à 1 stk | L14: stk
C15: 23816101 | D15: Sotlukedør 9" Leca | G15: =1*H12 -> 0 | J15: 0 | K15: à 1 stk | L15: stk
C16: 23816390 | D16: Ekspansjonsblikk 25/25 cm | G16: =VLOOKUP('Leca Maxi Pipe'!F17,'Data (2)'!Q12:R13,2,FALSE)*H12 -> 0 | J16: 0 | K16: à 1 stk | L16: stk
C17: 25030206 | D17: Røykinnføring 200 25/25 | G17: ='Leca Maxi Pipe'!F14 -> 0 | J17: 0 | K17: à 1 stk | L17: stk
C18: 23817075 | D18: Toppbeslag/pipehatt i stål (sort) | G18: =VLOOKUP('Leca Maxi Pipe'!F16,'Data (2)'!N12:O13,2,FALSE)*H12 -> 0 | J18: 0 | K18: à 1 stk | L18: stk
C19: 10586147 | D19: Leca Ildfast masse - 0,3 liter | G19: =VLOOKUP('Leca Maxi Pipe'!F11,'Data (2)'!A7:F62,6,FALSE)*H12 -> 0 | J19: 0 | K19: à 1 stk | L19: patron
C20: 50410636 | D20: Weber Grå Slemming - 20 kg | G20: =(ROUNDUP('Leca Maxi Pipe'!F12*2*6,0))*H12 -> 0 | J20: =ROUNDUP(G20/20,0) -> 0 | K20: à 20 kg | L20: sekk
C21: 55244223 | D21: Weber.base KC 50/50 - 25 kg | G21: =(ROUNDUP((E12-'Leca Maxi Pipe'!F12)*0.5*17*'Leca Maxi Pipe'!F13,0))*H12 -> 0 | J21: =CEILING(G21,25)/25 -> 0 | K21: à 25 kg | L21: sekk
C22: 55244204 | D22: Weber Murmørtel M5 - 25 kg | G22: =(ROUNDUP(E12*10,0))*H12 -> 0 | J22: =CEILING(G22,25)/25 -> 0 | K22: à 25 kg | L22: sekk

Sheet Data (hidden)
F1: Ettløps | U1: Toløps
A2: Nobb nr | B2: 46124135 | C2: 47704205 | D2: 46124146 | E2: 47704213 | F2: 46124154 | G2: 47704186 | H2: 47704194 | I2: 10586147 | J2: 41856897/41856901 | O2: Nobb nr | P2: 47704205 | Q2: 47978624 | R2: 47704213 | S2: 47978586 | T2: 47704186 | U2: 47704194 | V2: 10586147 | W2: 41600172/41856901
B3: Sokkel | C3: Innerrør | D3: Sotluke | E3: Innerrør | F3: Ytter | G3: forinsrør | H3: foringsrør | I3: Ildfast | J3: Toppbeslag/ | P3: Innerrør | Q3: Sotluke | R3: Innerrør | S3: Ytter | T3: forinsrør | U3: foringsrør | V3: Ildfast | W3: Toppbeslag/
B4: element | C4: 25 cm | D4: element | E4: m/sl | F4: element | G4: høyde 50 | H4: høyde 25 | I4: masse | J4: Pipehatt | P4: 25 cm | Q4: toløps venti | R4: m/sl | S4: element | T4: høyde 50 | U4: høyde 25 | V4: masse | W4: Pipehatt
A5: Pris | B5: 462 | C5: 63 | D5: 575 | E5: 328 | F5: 64 | G5: 262 | H5: 176 | I5: 79 | J5: 1529 | K5: Pris | L5: Ca. vekt | M5: Ca. ant | O5: Pris | P5: 63 | Q5: 550 | R5: 328 | S5: 141 | T5: 262 | U5: 176 | V5: 79 | W5: 2964 | X5: Pris | Y5: Ca. vekt | Z5: Ca. ant
A6: tot høyde | B6: stk | C6: stk | D6: stk | E6: stk | F6: stk | G6: stk | H6: stk | I6: stk | J6: stk | K6: Pipe | L6: kg | M6: paller | O6: tot høyde | P6: stk | Q6: stk | R6: stk | S6: stk | T6: stk | U6: stk | V6: stk | W6: stk | X6: Pipe | Y6: kg | Z6: paller
A7: 0 | B7: 0 | C7: 0 | D7: 0 | E7: 0 | F7: 0 | G7: 0 | H7: 0 | I7: 0 | J7: 0 | K7: 0 | L7: 0 | M7: 0 | O7: 0 | P7: 0 | Q7: 0 | R7: 0 | S7: 0 | T7: 0 | U7: 0 | V7: 0 | W7: 0 | X7: 0 | Y7: 0 | Z7: 0
A8: 4.12 | B8: 1 | C8: 1 | D8: 1 | E8: 1 | F8: 17 | G8: 7 | H8: 1 | I8: 2 | J8: 1 | K8: =SUM(B5*B8+C5*C8+D5*D8+E5*E8+F5*F8+G5*G8+H5*H8+I5*I8+J5*J8) -> 6213 | L8: 600 | M8: 2 | O8: 4 | P8: 2 | Q8: 2 | R8: 2 | S8: 19 | T8: 14 | U8: 0 | V8: 4 | W8: 1 | X8: =SUM(P5*P8+Q5*Q8+R5*R8+S5*S8+T5*T8+U5*U8+V5*V8+W5*W8) -> 11509 | Y8: 1000 | Z8: 4
A9: 4.33 | B9: 1 | C9: 1 | D9: 1 | E9: 1 | F9: 18 | G9: 7 | H9: 1 | I9: 2 | J9: 1 | K9: =SUM(B5*B9+C5*C9+D5*D9+E5*E9+F5*F9+G5*G9+H5*H9+I5*I9+J5*J9) -> 6277 | L9: 645 | M9: 2 | O9: 4.21 | P9: 2 | Q9: 2 | R9: 2 | S9: 20 | T9: 14 | U9: 2 | V9: 4 | W9: 1 | X9: =SUM(P5*P9+Q5*Q9+R5*R9+S5*S9+T5*T9+U5*U9+V5*V9+W5*W9) -> 12002 | Y9: 1052 | Z9: 4
A10: 4.54 | B10: 1 | C10: 1 | D10: 1 | E10: 1 | F10: 19 | G10: 8 | H10: 0 | I10: 2 | J10: 1 | K10: =SUM(B5*B10+C5*C10+D5*D10+E5*E10+F5*F10+G5*G10+H5*H10+I5*I10+J5*J10) -> 6427 | L10: 705 | M10: 2 | O10: 4.42 | P10: 2 | Q10: 2 | R10: 2 | S10: 21 | T10: 16 | U10: 0 | V10: 4 | W10: 1 | X10: =SUM(P5*P10+Q5*Q10+R5*R10+S5*S10+T5*T10+U5*U10+V5*V10+W5*W10) -> 12315 | Y10: 1105 | Z10: 4
A11: 4.75 | B11: 1 | C11: 1 | D11: 1 | E11: 1 | F11: 20 | G11: 8 | H11: 1 | I11: 2 | J11: 1 | K11: =SUM(B5*B11+C5*C11+D5*D11+E5*E11+F5*F11+G5*G11+H5*H11+I5*I11+J5*J11) -> 6667 | L11: 750 | M11: 2 | O11: 4.63 | P11: 2 | Q11: 2 | R11: 2 | S11: 22 | T11: 16 | U11: 2 | V11: 4 | W11: 1 | X11: =SUM(P5*P11+Q5*Q11+R5*R11+S5*S11+T5*T11+U5*U11+V5*V11+W5*W11) -> 12808 | Y11: 1157 | Z11: 4
A12: 4.96 | B12: 1 | C12: 1 | D12: 1 | E12: 1 | F12: 21 | G12: 9 | H12: 0 | I12: 2 | J12: 1 | K12: =SUM(B5*B12+C5*C12+D5*D12+E5*E12+F5*F12+G5*G12+H5*H12+I5*I12+J5*J12) -> 6817 | L12: 795 | M12: 2 | O12: 4.84 | P12: 2 | Q12: 2 | R12: 2 | S12: 23 | T12: 18 | U12: 0 | V12: 4 | W12: 1 | X12: =SUM(P5*P12+Q5*Q12+R5*R12+S5*S12+T5*T12+U5*U12+V5*V12+W5*W12) -> 13121 | Y12: 1209 | Z12: 4
A13: 5.17 | B13: 1 | C13: 1 | D13: 1 | E13: 1 | F13: 22 | G13: 9 | H13: 1 | I13: 3 | J13: 1 | K13: =SUM(B5*B13+C5*C13+D5*D13+E5*E13+F5*F13+G5*G13+H5*H13+I5*I13+J5*J13) -> 7136 | L13: 855 | M13: 2 | O13: 5.05 | P13: 2 | Q13: 2 | R13: 2 | S13: 24 | T13: 18 | U13: 0 | V13: 6 | W13: 1 | X13: =SUM(P5*P13+Q5*Q13+R5*R13+S5*S13+T5*T13+U5*U13+V5*V13+W5*W13) -> 13420 | Y13: 1261 | Z13: 4
A14: 5.38 | B14: 1 | C14: 1 | D14: 1 | E14: 1 | F14: 23 | G14: 10 | H14: 0 | I14: 3 | J14: 1 | K14: =SUM(B5*B14+C5*C14+D5*D14+E5*E14+F5*F14+G5*G14+H5*H14+I5*I14+J5*J14) -> 7286 | L14: 900 | M14: 2 | O14: 5.26 | P14: 2 | Q14: 2 | R14: 2 | S14: 25 | T14: 18 | U14: 2 | V14: 6 | W14: 1 | X14: =SUM(P5*P14+Q5*Q14+R5*R14+S5*S14+T5*T14+U5*U14+V5*V14+W5*W14) -> 13913 | Y14: 1313 | Z14: 4
A15: 5.59 | B15: 1 | C15: 1 | D15: 1 | E15: 1 | F15: 24 | G15: 10 | H15: 0 | I15: 3 | J15: 1 | K15: =SUM(B5*B15+C5*C15+D5*D15+E5*E15+F5*F15+G5*G15+H5*H15+I5*I15+J5*J15) -> 7350 | L15: 945 | M15: 2 | O15: 5.47 | P15: 2 | Q15: 2 | R15: 2 | S15: 26 | T15: 20 | U15: 0 | V15: 6 | W15: 1 | X15: =SUM(P5*P15+Q5*Q15+R5*R15+S5*S15+T5*T15+U5*U15+V5*V15+W5*W15) -> 14226 | Y15: 1365 | Z15: 4
A16: 5.8 | B16: 1 | C16: 1 | D16: 1 | E16: 1 | F16: 25 | G16: 10 | H16: 1 | I16: 3 | J16: 1 | K16: =SUM(B5*B16+C5*C16+D5*D16+E5*E16+F5*F16+G5*G16+H5*H16+I5*I16+J5*J16) -> 7590 | L16: 1005 | M16: 3 | O16: 5.68 | P16: 2 | Q16: 2 | R16: 2 | S16: 27 | T16: 20 | U16: 2 | V16: 6 | W16: 1 | X16: =SUM(P5*P16+Q5*Q16+R5*R16+S5*S16+T5*T16+U5*U16+V5*V16+W5*W16) -> 14719 | Y16: 1417 | Z16: 5
A17: 6.01 | B17: 1 | C17: 1 | D17: 1 | E17: 1 | F17: 26 | G17: 11 | H17: 0 | I17: 3 | J17: 1 | K17: =SUM(B5*B17+C5*C17+D5*D17+E5*E17+F5*F17+G5*G17+H5*H17+I5*I17+J5*J17) -> 7740 | L17: 1050 | M17: 3 | O17: 5.89 | P17: 2 | Q17: 2 | R17: 2 | S17: 28 | T17: 22 | U17: 0 | V17: 6 | W17: 1 | X17: =SUM(P5*P17+Q5*Q17+R5*R17+S5*S17+T5*T17+U5*U17+V5*V17+W5*W17) -> 15032 | Y17: 1469 | Z17: 5
A18: 6.22 | B18: 1 | C18: 1 | D18: 1 | E18: 1 | F18: 27 | G18: 11 | H18: 1 | I18: 3 | J18: 1 | K18: =SUM(B5*B18+C5*C18+D5*D18+E5*E18+F5*F18+G5*G18+H5*H18+I5*I18+J5*J18) -> 7980 | L18: 1095 | M18: 3 | O18: 6.1 | P18: 2 | Q18: 2 | R18: 2 | S18: 29 | T18: 22 | U18: 2 | V18: 6 | W18: 1 | X18: =SUM(P5*P18+Q5*Q18+R5*R18+S5*S18+T5*T18+U5*U18+V5*V18+W5*W18) -> 15525 | Y18: 1521 | Z18: 5
A19: 6.43 | B19: 1 | C19: 1 | D19: 1 | E19: 1 | F19: 28 | G19: 12 | H19: 0 | I19: 3 | J19: 1 | K19: =SUM(B5*B19+C5*C19+D5*D19+E5*E19+F5*F19+G5*G19+H5*H19+I5*I19+J5*J19) -> 8130 | L19: 1155 | M19: 3 | O19: 6.31 | P19: 2 | Q19: 2 | R19: 2 | S19: 30 | T19: 22 | U19: 2 | V19: 6 | W19: 1 | X19: =SUM(P5*P19+Q5*Q19+R5*R19+S5*S19+T5*T19+U5*U19+V5*V19+W5*W19) -> 15666 | Y19: 1573 | Z19: 5
A20: 6.64 | B20: 1 | C20: 1 | D20: 1 | E20: 1 | F20: 29 | G20: 12 | H20: 1 | I20: 3 | J20: 1 | K20: =SUM(B5*B20+C5*C20+D5*D20+E5*E20+F5*F20+G5*G20+H5*H20+I5*I20+J5*J20) -> 8370 | L20: 1200 | M20: 3 | O20: 6.52 | P20: 2 | Q20: 2 | R20: 2 | S20: 31 | T20: 24 | U20: 0 | V20: 6 | W20: 1 | X20: =SUM(P5*P20+Q5*Q20+R5*R20+S5*S20+T5*T20+U5*U20+V5*V20+W5*W20) -> 15979 | Y20: 1625 | Z20: 5
A21: 6.85 | B21: 1 | C21: 1 | D21: 1 | E21: 1 | F21: 30 | G21: 13 | H21: 0 | I21: 3 | J21: 1 | K21: =SUM(B5*B21+C5*C21+D5*D21+E5*E21+F5*F21+G5*G21+H5*H21+I5*I21+J5*J21) -> 8520 | L21: 1245 | M21: 3 | O21: 6.73 | P21: 2 | Q21: 2 | R21: 2 | S21: 32 | T21: 26 | U21: 2 | V21: 6 | W21: 1 | X21: =SUM(P5*P21+Q5*Q21+R5*R21+S5*S21+T5*T21+U5*U21+V5*V21+W5*W21) -> 16996 | Y21: 1677 | Z21: 6
A22: 7.06 | B22: 1 | C22: 1 | D22: 1 | E22: 1 | F22: 31 | G22: 13 | H22: 0 | I22: 3 | J22: 1 | K22: =SUM(B5*B22+C5*C22+D5*D22+E5*E22+F5*F22+G5*G22+H5*H22+I5*I22+J5*J22) -> 8584 | L22: 1305 | M22: 3 | O22: 6.94 | P22: 2 | Q22: 2 | R22: 2 | S22: 33 | T22: 26 | U22: 0 | V22: 6 | W22: 1 | X22: =SUM(P5*P22+Q5*Q22+R5*R22+S5*S22+T5*T22+U5*U22+V5*V22+W5*W22) -> 16785 | Y22: 1729 | Z22: 6
A23: 7.27 | B23: 1 | C23: 1 | D23: 1 | E23: 1 | F23: 32 | G23: 13 | H23: 1 | I23: 3 | J23: 1 | K23: =SUM(B5*B23+C5*C23+D5*D23+E5*E23+F5*F23+G5*G23+H5*H23+I5*I23+J5*J23) -> 8824 | L23: 1350 | M23: 3 | O23: 7.15 | P23: 2 | Q23: 2 | R23: 2 | S23: 34 | T23: 26 | U23: 2 | V23: 6 | W23: 1 | X23: =SUM(P5*P23+Q5*Q23+R5*R23+S5*S23+T5*T23+U5*U23+V5*V23+W5*W23) -> 17278 | Y23: 1781 | Z23: 6
A24: 7.48 | B24: 1 | C24: 1 | D24: 1 | E24: 1 | F24: 33 | G24: 14 | H24: 0 | I24: 3 | J24: 1 | K24: =SUM(B5*B24+C5*C24+D5*D24+E5*E24+F5*F24+G5*G24+H5*H24+I5*I24+J5*J24) -> 8974 | L24: 1395 | M24: 3 | O24: 7.36 | P24: 2 | Q24: 2 | R24: 2 | S24: 35 | T24: 28 | U24: 0 | V24: 6 | W24: 1 | X24: =SUM(P5*P24+Q5*Q24+R5*R24+S5*S24+T5*T24+U5*U24+V5*V24+W5*W24) -> 17591 | Y24: 1833 | Z24: 6
A25: 7.69 | B25: 1 | C25: 1 | D25: 1 | E25: 1 | F25: 34 | G25: 14 | H25: 1 | I25: 3 | J25: 1 | K25: =SUM(B5*B25+C5*C25+D5*D25+E5*E25+F5*F25+G5*G25+H5*H25+I5*I25+J5*J25) -> 9214 | L25: 1455 | M25: 3 | O25: 7.57 | P25: 2 | Q25: 2 | R25: 2 | S25: 36 | T25: 28 | U25: 2 | V25: 6 | W25: 1 | X25: =SUM(P5*P25+Q5*Q25+R5*R25+S5*S25+T5*T25+U5*U25+V5*V25+W5*W25) -> 18084 | Y25: 1885 | Z25: 7
A26: 7.9 | B26: 1 | C26: 1 | D26: 1 | E26: 1 | F26: 35 | G26: 15 | H26: 0 | I26: 4 | J26: 1 | K26: =SUM(B5*B26+C5*C26+D5*D26+E5*E26+F5*F26+G5*G26+H5*H26+I5*I26+J5*J26) -> 9443 | L26: 1500 | M26: 3 | O26: 7.78 | P26: 2 | Q26: 2 | R26: 2 | S26: 37 | T26: 28 | U26: 2 | V26: 8 | W26: 1 | X26: =SUM(P5*P26+Q5*Q26+R5*R26+S5*S26+T5*T26+U5*U26+V5*V26+W5*W26) -> 18383 | Y26: 1937 | Z26: 7
A27: 8.11 | B27: 1 | C27: 1 | D27: 1 | E27: 1 | F27: 36 | G27: 15 | H27: 1 | I27: 4 | J27: 1 | K27: =SUM(B5*B27+C5*C27+D5*D27+E5*E27+F5*F27+G5*G27+H5*H27+I5*I27+J5*J27) -> 9683 | L27: 1545 | M27: 3 | O27: 7.99 | P27: 2 | Q27: 2 | R27: 2 | S27: 38 | T27: 30 | U27: 0 | V27: 8 | W27: 1 | X27: =SUM(P5*P27+Q5*Q27+R5*R27+S5*S27+T5*T27+U5*U27+V5*V27+W5*W27) -> 18696 | Y27: 1989 | Z27: 7
A28: 8.32 | B28: 1 | C28: 1 | D28: 1 | E28: 1 | F28: 37 | G28: 15 | H28: 1 | I28: 4 | J28: 1 | K28: =SUM(B5*B28+C5*C28+D5*D28+E5*E28+F5*F28+G5*G28+H5*H28+I5*I28+J5*J28) -> 9747 | L28: 1605 | M28: 3 | O28: 8.2 | P28: 2 | Q28: 2 | R28: 2 | S28: 39 | T28: 30 | U28: 2 | V28: 8 | W28: 1 | X28: =SUM(P5*P28+Q5*Q28+R5*R28+S5*S28+T5*T28+U5*U28+V5*V28+W5*W28) -> 19189 | Y28: 2041 | Z28: 7
A29: 8.53 | B29: 1 | C29: 1 | D29: 1 | E29: 1 | F29: 38 | G29: 16 | H29: 0 | I29: 4 | J29: 1 | K29: =SUM(B5*B29+C5*C29+D5*D29+E5*E29+F5*F29+G5*G29+H5*H29+I5*I29+J5*J29) -> 9897 | L29: 1650 | M29: 3 | O29: 8.41 | P29: 2 | Q29: 2 | R29: 2 | S29: 40 | T29: 32 | U29: 0 | V29: 8 | W29: 1 | X29: =SUM(P5*P29+Q5*Q29+R5*R29+S5*S29+T5*T29+U5*U29+V5*V29+W5*W29) -> 19502 | Y29: 2093 | Z29: 8
A30: 8.74 | B30: 1 | C30: 1 | D30: 1 | E30: 1 | F30: 39 | G30: 16 | H30: 1 | I30: 4 | J30: 1 | K30: =SUM(B5*B30+C5*C30+D5*D30+E5*E30+F5*F30+G5*G30+H5*H30+I5*I30+J5*J30) -> 10137 | L30: 1695 | M30: 3 | O30: 8.62 | P30: 2 | Q30: 2 | R30: 2 | S30: 41 | T30: 32 | U30: 2 | V30: 8 | W30: 1 | X30: =SUM(P5*P30+Q5*Q30+R5*R30+S5*S30+T5*T30+U5*U30+V5*V30+W5*W30) -> 19995 | Y30: 2145 | Z30: 8
A31: 8.95 | B31: 1 | C31: 1 | D31: 1 | E31: 1 | F31: 40 | G31: 17 | H31: 0 | I31: 4 | J31: 1 | K31: =SUM(B5*B31+C5*C31+D5*D31+E5*E31+F5*F31+G5*G31+H5*H31+I5*I31+J5*J31) -> 10287 | L31: 1755 | M31: 3 | O31: 8.83 | P31: 2 | Q31: 2 | R31: 2 | S31: 42 | T31: 34 | U31: 0 | V31: 8 | W31: 1 | X31: =SUM(P5*P31+Q5*Q31+R5*R31+S5*S31+T5*T31+U5*U31+V5*V31+W5*W31) -> 20308 | Y31: 2197 | Z31: 8
A32: 9.16 | B32: 1 | C32: 1 | D32: 1 | E32: 1 | F32: 41 | G32: 17 | H32: 1 | I32: 4 | J32: 1 | K32: =SUM(B5*B32+C5*C32+D5*D32+E5*E32+F5*F32+G5*G32+H5*H32+I5*I32+J5*J32) -> 10527 | L32: 1800 | M32: 3 | O32: 9.04 | P32: 2 | Q32: 2 | R32: 2 | S32: 43 | T32: 34 | U32: 0 | V32: 8 | W32: 1 | X32: =SUM(P5*P32+Q5*Q32+R5*R32+S5*S32+T5*T32+U5*U32+V5*V32+W5*W32) -> 20449 | Y32: 2249 | Z32: 8
A33: 9.37 | B33: 1 | C33: 1 | D33: 1 | E33: 1 | F33: 42 | G33: 18 | H33: 0 | I33: 4 | J33: 1 | K33: =SUM(B5*B33+C5*C33+D5*D33+E5*E33+F5*F33+G5*G33+H5*H33+I5*I33+J5*J33) -> 10677 | L33: 1845 | M33: 4 | O33: 9.25 | P33: 2 | Q33: 2 | R33: 2 | S33: 44 | T33: 34 | U33: 2 | V33: 8 | W33: 1 | X33: =SUM(P5*P33+Q5*Q33+R5*R33+S5*S33+T5*T33+U5*U33+V5*V33+W5*W33) -> 20942 | Y33: 2301 | Z33: 9
A34: 9.58 | B34: 1 | C34: 1 | D34: 1 | E34: 1 | F34: 43 | G34: 18 | H34: 0 | I34: 4 | J34: 1 | K34: =SUM(B5*B34+C5*C34+D5*D34+E5*E34+F5*F34+G5*G34+H5*H34+I5*I34+J5*J34) -> 10741 | L34: 1905 | M34: 4 | O34: 9.46 | P34: 2 | Q34: 2 | R34: 2 | S34: 45 | T34: 36 | U34: 0 | V34: 8 | W34: 1 | X34: =SUM(P5*P34+Q5*Q34+R5*R34+S5*S34+T5*T34+U5*U34+V5*V34+W5*W34) -> 21255 | Y34: 2353 | Z34: 9
A35: 9.79 | B35: 1 | C35: 1 | D35: 1 | E35: 1 | F35: 44 | G35: 18 | H35: 1 | I35: 4 | J35: 1 | K35: =SUM(B5*B35+C5*C35+D5*D35+E5*E35+F5*F35+G5*G35+H5*H35+I5*I35+J5*J35) -> 10981 | L35: 1950 | M35: 4 | O35: 9.67 | P35: 2 | Q35: 2 | R35: 2 | S35: 46 | T35: 36 | U35: 2 | V35: 8 | W35: 1 | X35: =SUM(P5*P35+Q5*Q35+R5*R35+S5*S35+T5*T35+U5*U35+V5*V35+W5*W35) -> 21748 | Y35: 2405 | Z35: 9
A36: 10 | B36: 1 | C36: 1 | D36: 1 | E36: 1 | F36: 45 | G36: 19 | H36: 0 | I36: 4 | J36: 1 | K36: =SUM(B5*B36+C5*C36+D5*D36+E5*E36+F5*F36+G5*G36+H5*H36+I5*I36+J5*J36) -> 11131 | L36: 1995 | M36: 4 | O36: 9.88 | P36: 2 | Q36: 2 | R36: 2 | S36: 47 | T36: 38 | U36: 0 | V36: 8 | W36: 1 | X36: =SUM(P5*P36+Q5*Q36+R5*R36+S5*S36+T5*T36+U5*U36+V5*V36+W5*W36) -> 22061 | Y36: 2457 | Z36: 9
A37: 10.21 | B37: 1 | C37: 1 | D37: 1 | E37: 1 | F37: 46 | G37: 19 | H37: 1 | I37: 4 | J37: 1 | K37: =SUM(B5*B37+C5*C37+D5*D37+E5*E37+F5*F37+G5*G37+H5*H37+I5*I37+J5*J37) -> 11371 | L37: 2055 | M37: 4 | O37: 10.09 | P37: 2 | Q37: 2 | R37: 2 | S37: 48 | T37: 38 | U37: 2 | V37: 8 | W37: 1 | X37: =SUM(P5*P37+Q5*Q37+R5*R37+S5*S37+T5*T37+U5*U37+V5*V37+W5*W37) -> 22554 | Y37: 2509 | Z37: 9
A38: 10.42 | B38: 1 | C38: 1 | D38: 1 | E38: 1 | F38: 47 | G38: 20 | H38: 0 | I38: 4 | J38: 1 | K38: =SUM(B5*B38+C5*C38+D5*D38+E5*E38+F5*F38+G5*G38+H5*H38+I5*I38+J5*J38) -> 11521 | L38: 2100 | M38: 4 | O38: 10.3 | P38: 2 | Q38: 2 | R38: 2 | S38: 49 | T38: 38 | U38: 2 | V38: 8 | W38: 1 | X38: =SUM(P5*P38+Q5*Q38+R5*R38+S5*S38+T5*T38+U5*U38+V5*V38+W5*W38) -> 22695 | Y38: 2561 | Z38: 9
A39: 10.63 | B39: 1 | C39: 1 | D39: 1 | E39: 1 | F39: 48 | G39: 20 | H39: 1 | I39: 5 | J39: 1 | K39: =SUM(B5*B39+C5*C39+D5*D39+E5*E39+F5*F39+G5*G39+H5*H39+I5*I39+J5*J39) -> 11840 | L39: 2145 | M39: 4 | O39: 10.51 | P39: 2 | Q39: 2 | R39: 2 | S39: 50 | T39: 40 | U39: 0 | V39: 10 | W39: 1 | X39: =SUM(P5*P39+Q5*Q39+R5*R39+S5*S39+T5*T39+U5*U39+V5*V39+W5*W39) -> 23166 | Y39: 2613 | Z39: 9
A40: 10.84 | B40: 1 | C40: 1 | D40: 1 | E40: 1 | F40: 49 | G40: 20 | H40: 1 | I40: 5 | J40: 1 | K40: =SUM(B5*B40+C5*C40+D5*D40+E5*E40+F5*F40+G5*G40+H5*H40+I5*I40+J5*J40) -> 11904 | L40: 2205 | M40: 4 | O40: 10.72 | P40: 2 | Q40: 2 | R40: 2 | S40: 51 | T40: 40 | U40: 2 | V40: 10 | W40: 1 | X40: =SUM(P5*P40+Q5*Q40+R5*R40+S5*S40+T5*T40+U5*U40+V5*V40+W5*W40) -> 23659 | Y40: 2665 | Z40: 10
A41: 11.05 | B41: 1 | C41: 1 | D41: 1 | E41: 1 | F41: 50 | G41: 21 | H41: 0 | I41: 5 | J41: 1 | K41: =SUM(B5*B41+C5*C41+D5*D41+E5*E41+F5*F41+G5*G41+H5*H41+I5*I41+J5*J41) -> 12054 | L41: 2250 | M41: 4 | O41: 10.93 | P41: 2 | Q41: 2 | R41: 2 | S41: 52 | T41: 42 | U41: 0 | V41: 10 | W41: 1 | X41: =SUM(P5*P41+Q5*Q41+R5*R41+S5*S41+T5*T41+U5*U41+V5*V41+W5*W41) -> 23972 | Y41: 2717 | Z41: 10
A42: 11.26 | B42: 1 | C42: 1 | D42: 1 | E42: 1 | F42: 51 | G42: 21 | H42: 1 | I42: 5 | J42: 1 | K42: =SUM(B5*B42+C5*C42+D5*D42+E5*E42+F5*F42+G5*G42+H5*H42+I5*I42+J5*J42) -> 12294 | L42: 2295 | M42: 4 | O42: 11.14 | P42: 2 | Q42: 2 | R42: 2 | S42: 53 | T42: 42 | U42: 2 | V42: 10 | W42: 1 | X42: =SUM(P5*P42+Q5*Q42+R5*R42+S5*S42+T5*T42+U5*U42+V5*V42+W5*W42) -> 24465 | Y42: 2769 | Z42: 10
A43: 11.47 | B43: 1 | C43: 1 | D43: 1 | E43: 1 | F43: 52 | G43: 22 | H43: 0 | I43: 5 | J43: 1 | K43: =SUM(B5*B43+C5*C43+D5*D43+E5*E43+F5*F43+G5*G43+H5*H43+I5*I43+J5*J43) -> 12444 | L43: 2355 | M43: 5 | O43: 11.35 | P43: 2 | Q43: 2 | R43: 2 | S43: 54 | T43: 44 | U43: 0 | V43: 10 | W43: 1 | X43: =SUM(P5*P43+Q5*Q43+R5*R43+S5*S43+T5*T43+U5*U43+V5*V43+W5*W43) -> 24778 | Y43: 2821 | Z43: 10
A44: 11.68 | B44: 1 | C44: 1 | D44: 1 | E44: 1 | F44: 53 | G44: 22 | H44: 1 | I44: 5 | J44: 1 | K44: =SUM(B5*B44+C5*C44+D5*D44+E5*E44+F5*F44+G5*G44+H5*H44+I5*I44+J5*J44) -> 12684 | L44: 2400 | M44: 5 | O44: 11.54 | P44: 2 | Q44: 2 | R44: 2 | S44: 55 | T44: 44 | U44: 0 | V44: 10 | W44: 1 | X44: =SUM(P5*P44+Q5*Q44+R5*R44+S5*S44+T5*T44+U5*U44+V5*V44+W5*W44) -> 24919 | Y44: 2873 | Z44: 10
A45: 11.89 | B45: 1 | C45: 1 | D45: 1 | E45: 1 | F45: 54 | G45: 23 | H45: 0 | I45: 5 | J45: 1 | K45: =SUM(B5*B45+C5*C45+D5*D45+E5*E45+F5*F45+G5*G45+H5*H45+I5*I45+J5*J45) -> 12834 | L45: 2445 | M45: 5 | O45: 11.75 | P45: 2 | Q45: 2 | R45: 2 | S45: 56 | T45: 44 | U45: 2 | V45: 10 | W45: 1 | X45: =SUM(P5*P45+Q5*Q45+R5*R45+S5*S45+T5*T45+U5*U45+V5*V45+W5*W45) -> 25412 | Y45: 2925 | Z45: 10
A46: 12.1 | B46: 1 | C46: 1 | D46: 1 | E46: 1 | F46: 55 | G46: 23 | H46: 1 | I46: 5 | J46: 1 | K46: =SUM(B5*B46+C5*C46+D5*D46+E5*E46+F5*F46+G5*G46+H5*H46+I5*I46+J5*J46) -> 13074 | L46: 2505 | M46: 5 | O46: 11.96 | P46: 2 | Q46: 2 | R46: 2 | S46: 57 | T46: 46 | U46: 0 | V46: 10 | W46: 1 | X46: =SUM(P5*P46+Q5*Q46+R5*R46+S5*S46+T5*T46+U5*U46+V5*V46+W5*W46) -> 25725 | Y46: 2977 | Z46: 10
A47: 12.31 | B47: 1 | C47: 1 | D47: 1 | E47: 1 | F47: 56 | G47: 23 | H47: 1 | I47: 5 | J47: 1 | K47: =SUM(B5*B47+C5*C47+D5*D47+E5*E47+F5*F47+G5*G47+H5*H47+I5*I47+J5*J47) -> 13138 | L47: 2550 | M47: 5 | O47: 12.17 | P47: 2 | Q47: 2 | R47: 2 | S47: 58 | T47: 46 | U47: 2 | V47: 10 | W47: 1 | X47: =SUM(P5*P47+Q5*Q47+R5*R47+S5*S47+T5*T47+U5*U47+V5*V47+W5*W47) -> 26218 | Y47: 3029 | Z47: 11
A48: 12.52 | B48: 1 | C48: 1 | D48: 1 | E48: 1 | F48: 57 | G48: 24 | H48: 0 | I48: 5 | J48: 1 | K48: =SUM(B5*B48+C5*C48+D5*D48+E5*E48+F5*F48+G5*G48+H5*H48+I5*I48+J5*J48) -> 13288 | L48: 2595 | M48: 5 | O48: 12.38 | P48: 2 | Q48: 2 | R48: 2 | S48: 59 | T48: 48 | U48: 0 | V48: 10 | W48: 1 | X48: =SUM(P5*P48+Q5*Q48+R5*R48+S5*S48+T5*T48+U5*U48+V5*V48+W5*W48) -> 26531 | Y48: 3081 | Z48: 11
A49: 12.73 | B49: 1 | C49: 1 | D49: 1 | E49: 1 | F49: 58 | G49: 24 | H49: 1 | I49: 5 | J49: 1 | K49: =SUM(B5*B49+C5*C49+D5*D49+E5*E49+F5*F49+G5*G49+H5*H49+I5*I49+J5*J49) -> 13528 | L49: 2655 | M49: 5 | O49: 12.59 | P49: 2 | Q49: 2 | R49: 2 | S49: 60 | T49: 48 | U49: 2 | V49: 10 | W49: 1 | X49: =SUM(P5*P49+Q5*Q49+R5*R49+S5*S49+T5*T49+U5*U49+V5*V49+W5*W49) -> 27024 | Y49: 3133 | Z49: 11
A50: 12.94 | B50: 1 | C50: 1 | D50: 1 | E50: 1 | F50: 59 | G50: 25 | H50: 0 | I50: 5 | J50: 1 | K50: =SUM(B5*B50+C5*C50+D5*D50+E5*E50+F5*F50+G5*G50+H5*H50+I5*I50+J5*J50) -> 13678 | L50: 2700 | M50: 5 | O50: 12.8 | P50: 2 | Q50: 2 | R50: 2 | S50: 61 | T50: 48 | U50: 2 | V50: 10 | W50: 1 | X50: =SUM(P5*P50+Q5*Q50+R5*R50+S5*S50+T5*T50+U5*U50+V5*V50+W5*W50) -> 27165 | Y50: 3185 | Z50: 11
A51: 13.15 | B51: 1 | C51: 1 | D51: 1 | E51: 1 | F51: 60 | G51: 25 | H51: 1 | I51: 6 | J51: 1 | K51: =SUM(B5*B51+C5*C51+D5*D51+E5*E51+F5*F51+G5*G51+H5*H51+I5*I51+J5*J51) -> 13997 | L51: 2745 | M51: 5 | O51: 13.01 | P51: 2 | Q51: 2 | R51: 2 | S51: 62 | T51: 50 | U51: 0 | V51: 12 | W51: 1 | X51: =SUM(P5*P51+Q5*Q51+R5*R51+S5*S51+T5*T51+U5*U51+V5*V51+W5*W51) -> 27636 | Y51: 3237 | Z51: 11
A52: 13.36 | B52: 1 | C52: 1 | D52: 1 | E52: 1 | F52: 61 | G52: 26 | H52: 0 | I52: 6 | J52: 1 | K52: =SUM(B5*B52+C5*C52+D5*D52+E5*E52+F5*F52+G5*G52+H5*H52+I5*I52+J5*J52) -> 14147 | L52: 2805 | M52: 5 | O52: 13.22 | P52: 2 | Q52: 2 | R52: 2 | S52: 63 | T52: 50 | U52: 2 | V52: 12 | W52: 1 | X52: =SUM(P5*P52+Q5*Q52+R5*R52+S5*S52+T5*T52+U5*U52+V5*V52+W5*W52) -> 28129 | Y52: 3289 | Z52: 11
A53: 13.57 | B53: 1 | C53: 1 | D53: 1 | E53: 1 | F53: 62 | G53: 26 | H53: 0 | I53: 6 | J53: 1 | K53: =SUM(B5*B53+C5*C53+D5*D53+E5*E53+F5*F53+G5*G53+H5*H53+I5*I53+J5*J53) -> 14211 | L53: 2850 | M53: 5 | O53: 13.43 | P53: 2 | Q53: 2 | R53: 2 | S53: 64 | T53: 52 | U53: 0 | V53: 12 | W53: 1 | X53: =SUM(P5*P53+Q5*Q53+R5*R53+S5*S53+T5*T53+U5*U53+V5*V53+W5*W53) -> 28442 | Y53: 3341 | Z53: 11
C56: toppbeslag | D56: pipehatt | J56: Heltekkende | K56: Pipebeslag | L56: forlenger | R56: toppbeslag | S56: pipehatt
B57: Ja | C57: 1 | D57: 1 | I57: Ja | J57: 1 | K57: 1 | L57: 1 | Q57: Ja | R57: 1 | S57: 2
B58: Nei | C58: 0 | D58: 0 | I58: Nei | J58: 0 | K58: 0 | L58: 0 | Q58: Nei | R58: 0 | S58: 0
B60: 1 | C60: 2 | G60: 6 | H60: 7
B61: Takstein | C61: Pipebeslag m/formbart fotstykke | G61: 10586113 | H61: 1934
B62: Takpapp | C62: Pipebeslag for papptak | G62: 10586105 | H62: 1079

Sheet Data (2) (hidden)
A2: Nobb nr | B2: 23643786 | C2: 47704232 | D2: 23816101 | E2: 23816390 | F2: 10586147 | G2: 23817075
B3: Ytter | C3: Forings | D3: Sotluke | E3: Eksspan | F3: Ildfast | G3: Toppbeslag/
B4: element | C4: rør 50 cm | E4: sjonsblikk | F4: masse | G4: pipehatt
A5: Pris | B5: 218 | C5: 620 | D5: 919 | E5: 824 | F5: 79 | G5: 2545 | H5: Pris | I5: Ca. vekt | J5: Ca. ant
A6: tot høyde | B6: stk | C6: stk | D6: stk | E6: stk | F6: stk | G6: stk | H6: Pipe | I6: kg | J6: paller
A7: 0 | B7: 0 | C7: 0 | D7: 0 | E7: 0 | F7: 0 | G7: 0 | H7: 0 | I7: 0 | J7: 0
A8: 4 | B8: 19 | C8: 8 | D8: 1 | E8: 1 | F8: 3 | G8: 1 | H8: =SUM(B5*B8+C5*C8+D5*D8+E5*E8+F5*F8+G5*G8) -> 13627 | I8: 680 | J8: 2
A9: 4.2 | B9: 20 | C9: 9 | D9: 1 | E9: 1 | F9: 3 | G9: 1 | H9: =SUM(B5*B9+C5*C9+D5*D9+E5*E9+F5*F9+G5*G9) -> 14465 | I9: 714 | J9: 2
A10: 4.4 | B10: 21 | C10: 9 | D10: 1 | E10: 1 | F10: 3 | G10: 1 | H10: =SUM(B5*B10+C5*C10+D5*D10+E5*E10+F5*F10+G5*G10) -> 14683 | I10: 748 | J10: 2
A11: 4.7 | B11: 22 | C11: 10 | D11: 1 | E11: 1 | F11: 4 | G11: 1 | H11: =SUM(B5*B11+C5*C11+D5*D11+E5*E11+F5*F11+G5*G11) -> 15600 | I11: 772 | J11: 2 | N11: Toppbeslag | Q11: Ekspansjonsblikk | T11: Monteringssett
A12: 4.9 | B12: 23 | C12: 10 | D12: 1 | E12: 1 | F12: 4 | G12: 1 | H12: =SUM(B5*B12+C5*C12+D5*D12+E5*E12+F5*F12+G5*G12) -> 15818 | I12: 796 | J12: 2 | N12: Ja | O12: 1 | Q12: Ja | R12: 1 | T12: Ja | U12: 1
A13: 5.1 | B13: 24 | C13: 11 | D13: 1 | E13: 1 | F13: 4 | G13: 1 | H13: =SUM(B5*B13+C5*C13+D5*D13+E5*E13+F5*F13+G5*G13) -> 16656 | I13: 820 | J13: 2 | N13: Nei | O13: 0 | Q13: Nei | R13: 0 | T13: Nei | U13: 0
A14: 5.3 | B14: 25 | C14: 11 | D14: 1 | E14: 1 | F14: 4 | G14: 1 | H14: =SUM(B5*B14+C5*C14+D5*D14+E5*E14+F5*F14+G5*G14) -> 16874 | I14: 844 | J14: 2
A15: 5.5 | B15: 26 | C15: 11 | D15: 1 | E15: 1 | F15: 4 | G15: 1 | H15: =SUM(B5*B15+C5*C15+D5*D15+E5*E15+F5*F15+G5*G15) -> 17092 | I15: 868 | J15: 2
A16: 5.7 | B16: 27 | C16: 12 | D16: 1 | E16: 1 | F16: 4 | G16: 1 | H16: =SUM(B5*B16+C5*C16+D5*D16+E5*E16+F5*F16+G5*G16) -> 17930 | I16: 892 | J16: 2
A17: 5.9 | B17: 28 | C17: 12 | D17: 1 | E17: 1 | F17: 4 | G17: 1 | H17: =SUM(B5*B17+C5*C17+D5*D17+E5*E17+F5*F17+G5*G17) -> 18148 | I17: 916 | J17: 2
A18: 6.1 | B18: 29 | C18: 13 | D18: 1 | E18: 1 | F18: 5 | G18: 1 | H18: =SUM(B5*B18+C5*C18+D5*D18+E5*E18+F5*F18+G5*G18) -> 19065 | I18: 940 | J18: 2
A19: 6.3 | B19: 30 | C19: 13 | D19: 1 | E19: 1 | F19: 5 | G19: 1 | H19: =SUM(B5*B19+C5*C19+D5*D19+E5*E19+F5*F19+G5*G19) -> 19283 | I19: 964 | J19: 3
A20: 6.5 | B20: 31 | C20: 13 | D20: 1 | E20: 1 | F20: 5 | G20: 1 | H20: =SUM(B5*B20+C5*C20+D5*D20+E5*E20+F5*F20+G5*G20) -> 19501 | I20: 988 | J20: 3
A21: 6.8 | B21: 32 | C21: 14 | D21: 1 | E21: 1 | F21: 5 | G21: 1 | H21: =SUM(B5*B21+C5*C21+D5*D21+E5*E21+F5*F21+G5*G21) -> 20339 | I21: 1012 | J21: 3
A22: 7 | B22: 33 | C22: 14 | D22: 1 | E22: 1 | F22: 5 | G22: 1 | H22: =SUM(B5*B22+C5*C22+D5*D22+E5*E22+F5*F22+G5*G22) -> 20557 | I22: 1036 | J22: 3
A23: 7.2 | B23: 34 | C23: 15 | D23: 1 | E23: 1 | F23: 5 | G23: 1 | H23: =SUM(B5*B23+C5*C23+D5*D23+E5*E23+F5*F23+G5*G23) -> 21395 | I23: 1060 | J23: 3
A24: 7.4 | B24: 35 | C24: 15 | D24: 1 | E24: 1 | F24: 5 | G24: 1 | H24: =SUM(B5*B24+C5*C24+D5*D24+E5*E24+F5*F24+G5*G24) -> 21613 | I24: 1084 | J24: 3
A25: 7.6 | B25: 36 | C25: 16 | D25: 1 | E25: 1 | F25: 6 | G25: 1 | H25: =SUM(B5*B25+C5*C25+D5*D25+E5*E25+F5*F25+G5*G25) -> 22530 | I25: 1108 | J25: 3
A26: 7.8 | B26: 37 | C26: 16 | D26: 1 | E26: 1 | F26: 6 | G26: 1 | H26: =SUM(B5*B26+C5*C26+D5*D26+E5*E26+F5*F26+G5*G26) -> 22748 | I26: 1132 | J26: 3
A27: 8 | B27: 38 | C27: 16 | D27: 1 | E27: 1 | F27: 6 | G27: 1 | H27: =SUM(B5*B27+C5*C27+D5*D27+E5*E27+F5*F27+G5*G27) -> 22966 | I27: 1156 | J27: 3
A28: 8.2 | B28: 39 | C28: 17 | D28: 1 | E28: 1 | F28: 6 | G28: 1 | H28: =SUM(B5*B28+C5*C28+D5*D28+E5*E28+F5*F28+G5*G28) -> 23804 | I28: 1180 | J28: 3
A29: 8.4 | B29: 40 | C29: 17 | D29: 1 | E29: 1 | F29: 6 | G29: 1 | H29: =SUM(B5*B29+C5*C29+D5*D29+E5*E29+F5*F29+G5*G29) -> 24022 | I29: 1204 | J29: 3
A30: 8.7 | B30: 41 | C30: 18 | D30: 1 | E30: 1 | F30: 6 | G30: 1 | H30: =SUM(B5*B30+C5*C30+D5*D30+E5*E30+F5*F30+G5*G30) -> 24860 | I30: 1228 | J30: 4
A31: 8.9 | B31: 42 | C31: 18 | D31: 1 | E31: 1 | F31: 6 | G31: 1 | H31: =SUM(B5*B31+C5*C31+D5*D31+E5*E31+F5*F31+G5*G31) -> 25078 | I31: 1252 | J31: 4
A32: 9.1 | B32: 43 | C32: 19 | D32: 1 | E32: 1 | F32: 7 | G32: 1 | H32: =SUM(B5*B32+C5*C32+D5*D32+E5*E32+F5*F32+G5*G32) -> 25995 | I32: 1276 | J32: 4
A33: 9.3 | B33: 44 | C33: 19 | D33: 1 | E33: 1 | F33: 7 | G33: 1 | H33: =SUM(B5*B33+C5*C33+D5*D33+E5*E33+F5*F33+G5*G33) -> 26213 | I33: 1300 | J33: 4
A34: 9.5 | B34: 45 | C34: 19 | D34: 1 | E34: 1 | F34: 7 | G34: 1 | H34: =SUM(B5*B34+C5*C34+D5*D34+E5*E34+F5*F34+G5*G34) -> 26431 | I34: 1324 | J34: 4
A35: 9.7 | B35: 46 | C35: 20 | D35: 1 | E35: 1 | F35: 7 | G35: 1 | H35: =SUM(B5*B35+C5*C35+D5*D35+E5*E35+F5*F35+G5*G35) -> 27269 | I35: 1348 | J35: 4
A36: 9.9 | B36: 47 | C36: 20 | D36: 1 | E36: 1 | F36: 7 | G36: 1 | H36: =SUM(B5*B36+C5*C36+D5*D36+E5*E36+F5*F36+G5*G36) -> 27487 | I36: 1372 | J36: 4
A37: 10.1 | B37: 48 | C37: 20 | D37: 1 | E37: 1 | F37: 7 | G37: 1 | H37: =SUM(B5*B37+C5*C37+D5*D37+E5*E37+F5*F37+G5*G37) -> 27705 | I37: 1396 | J37: 4
A38: 10.3 | B38: 49 | C38: 21 | D38: 1 | E38: 1 | F38: 7 | G38: 1 | H38: =SUM(B5*B38+C5*C38+D5*D38+E5*E38+F5*F38+G5*G38) -> 28543 | I38: 1420 | J38: 4
A39: 10.5 | B39: 50 | C39: 21 | D39: 1 | E39: 1 | F39: 7 | G39: 1 | H39: =SUM(B5*B39+C5*C39+D5*D39+E5*E39+F5*F39+G5*G39) -> 28761 | I39: 1444 | J39: 4
A40: 10.7 | B40: 51 | C40: 22 | D40: 1 | E40: 1 | F40: 8 | G40: 1 | H40: =SUM(B5*B40+C5*C40+D5*D40+E5*E40+F5*F40+G5*G40) -> 29678 | I40: 1468 | J40: 4
A41: 11 | B41: 52 | C41: 22 | D41: 1 | E41: 1 | F41: 8 | G41: 1 | H41: =SUM(B5*B41+C5*C41+D5*D41+E5*E41+F5*F41+G5*G41) -> 29896 | I41: 1492 | J41: 4
A42: 11.2 | B42: 53 | C42: 23 | D42: 1 | E42: 1 | F42: 8 | G42: 1 | H42: =SUM(B5*B42+C5*C42+D5*D42+E5*E42+F5*F42+G5*G42) -> 30734 | I42: 1516 | J42: 4
A43: 11.4 | B43: 54 | C43: 23 | D43: 1 | E43: 1 | F43: 8 | G43: 1 | H43: =SUM(B5*B43+C5*C43+D5*D43+E5*E43+F5*F43+G5*G43) -> 30952 | I43: 1540 | J43: 5
A44: 11.6 | B44: 55 | C44: 24 | D44: 1 | E44: 1 | F44: 8 | G44: 1 | H44: =SUM(B5*B44+C5*C44+D5*D44+E5*E44+F5*F44+G5*G44) -> 31790 | I44: 1564 | J44: 5
A45: 11.8 | B45: 56 | C45: 24 | D45: 1 | E45: 1 | F45: 8 | G45: 1 | H45: =SUM(B5*B45+C5*C45+D5*D45+E5*E45+F5*F45+G5*G45) -> 32008 | I45: 1588 | J45: 5
A46: 12 | B46: 57 | C46: 24 | D46: 1 | E46: 1 | F46: 8 | G46: 1 | H46: =SUM(B5*B46+C5*C46+D5*D46+E5*E46+F5*F46+G5*G46) -> 32226 | I46: 1612 | J46: 5
A47: 12.2 | B47: 58 | C47: 25 | D47: 1 | E47: 1 | F47: 8 | G47: 1 | H47: =SUM(B5*B47+C5*C47+D5*D47+E5*E47+F5*F47+G5*G47) -> 33064 | I47: 1636 | J47: 5
A48: 12.4 | B48: 59 | C48: 25 | D48: 1 | E48: 1 | F48: 8 | G48: 1 | H48: =SUM(B5*B48+C5*C48+D5*D48+E5*E48+F5*F48+G5*G48) -> 33282 | I48: 1660 | J48: 5
A49: 12.6 | B49: 60 | C49: 26 | D49: 1 | E49: 1 | F49: 9 | G49: 1 | H49: =SUM(B5*B49+C5*C49+D5*D49+E5*E49+F5*F49+G5*G49) -> 34199 | I49: 1684 | J49: 5
A50: 12.8 | B50: 61 | C50: 26 | D50: 1 | E50: 1 | F50: 9 | G50: 1 | H50: =SUM(B5*B50+C5*C50+D5*D50+E5*E50+F5*F50+G5*G50) -> 34417 | I50: 1708 | J50: 5
A51: 13 | B51: 62 | C51: 26 | D51: 1 | E51: 1 | F51: 9 | G51: 1 | H51: =SUM(B5*B51+C5*C51+D5*D51+E5*E51+F5*F51+G5*G51) -> 34635 | I51: 1732 | J51: 6
A52: 13.3 | B52: 63 | C52: 27 | D52: 1 | E52: 1 | F52: 9 | G52: 1 | H52: =SUM(B5*B52+C5*C52+D5*D52+E5*E52+F5*F52+G5*G52) -> 35473 | I52: 1756 | J52: 6
A53: 13.5 | B53: 64 | C53: 27 | D53: 1 | E53: 1 | F53: 9 | G53: 1 | H53: =SUM(B5*B53+C5*C53+D5*D53+E5*E53+F5*F53+G5*G53) -> 35691 | I53: 1780 | J53: 6
A54: 13.7 | B54: 66 | C54: 28 | D54: 1 | E54: 1 | F54: 9 | G54: 1 | I54: 2010 | J54: 6
A55: 13.9 | B55: 67 | C55: 28 | D55: 1 | E55: 1 | F55: 9 | G55: 1 | I55: 2040 | J55: 6
A56: 14.1 | B56: 68 | C56: 29 | D56: 1 | E56: 1 | F56: 10 | G56: 1 | I56: 2070 | J56: 6
A57: 14.3 | B57: 69 | C57: 29 | D57: 1 | E57: 1 | F57: 10 | G57: 1 | I57: 2100 | J57: 6
A58: 14.5 | B58: 70 | C58: 29 | D58: 1 | E58: 1 | F58: 10 | G58: 1 | I58: 2130 | J58: 6
A59: 14.7 | B59: 71 | C59: 30 | D59: 1 | E59: 1 | F59: 10 | G59: 1 | I59: 2160 | J59: 6
A60: 14.9 | B60: 72 | C60: 30 | D60: 1 | E60: 1 | F60: 10 | G60: 1 | I60: 2190 | J60: 6
A61: 15.1 | B61: 73 | C61: 31 | D61: 1 | E61: 1 | F61: 10 | G61: 1 | I61: 2220 | J61: 6
A62: 15.3 | B62: 74 | C62: 31 | D62: 1 | E62: 1 | F62: 10 | G62: 1 | I62: 2250 | J62: 6
